Workbook

Sheet 1. Info
AB1: Alectra Utilities Corporation-Brampton Rate Zone | AC1: 2025 RTSR Workform for Electricity Distributors
AB2: Alectra Utilities Corporation-Enersource Rate Zone | AC2: v 1.0
AB3: Alectra Utilities Corporation-Horizon Utilities Rate Zone
AB4: Alectra Utilities Corporation-PowerStream Rate Zone
AB5: Alectra Utilities Corporation-Guelph Rate Zone
AB6: Algoma Power Inc.
AB7: Atikokan Hydro Inc.
AB8: Bluewater Power Distribution Corporation
AB9: Burlington Hydro Inc.
AB10: Canadian Niagara Power Inc.
AB11: Centre Wellington Hydro Ltd.
AB12: Chapleau Public Utilities Corporation
A13: Drop-down lists are shaded blue; Input cells are shaded green. | AB13: Cooperative Hydro Embrun Inc.
AB14: E.L.K. Energy Inc.
C15: Utility Name | D15: Essex Powerlines Corporation | AB15: Elexicon Energy Inc.-Whitby Rate Zone
AB16: Elexicon Energy Inc.-Veridian Rate Zone
C17: Assigned EB Number | D17: EB-2024-0020 | AB17: Enova Power Corp.-Kitchener-Wilmot Hydro Rate Zone
AB18: Enova Power Corp.-Waterloo North Rate Zone
C19: Name and Title of Contact | D19: Grace Flood, Director Finance & Regulatory Affairs | AB19: Entegrus Powerlines Inc.-For Entegrus-Main Rate Zone
AB20: Entegrus Powerlines Inc.-For Former St. Thomas Energy Rate Zone
C21: Phone Number | D21: 519-737-9811 X 163 | AB21: ENWIN Utilities Ltd.
AB22: EPCOR Electricity Distribution Ontario Inc.
C23: Email Address | D23: gflood@essexpowerlines.ca | AB23: ERTH Power Corporation - ERTH Power Main Rate Zone
AB24: ERTH POWER CORPORATION – GODERICH RATE ZONE
C25: Last COS Re-based Year | D25: 2018 | AB25: Espanola Regional Hydro Distribution Corporation
AB26: Essex Powerlines Corporation
AB27: Festival Hydro Inc.
AB28: Fort Frances Power Corporation
AB29: GrandBridge Energy Inc.-Brantford Power Rate Zone
AB30: GrandBridge Energy Inc.-Energy+ Rate Zone
AB31: Greater Sudbury Hydro Inc.
AB32: Grimsby Power Incorporated
AB33: Halton Hills Hydro Inc.
AB34: Hearst Power Distribution Co. Ltd.
AB35: Hydro 2000 Inc.
AB36: Hydro Hawkesbury Inc.
AB37: Hydro One Networks Inc.
AB38: Hydro One Networks Inc.-Former Orillia Power Distribution Corporation Service Area
AB39: Hydro One Networks Inc.-Former Peterborough Distribution Inc. Service Area
AB40: Hydro One Networks Inc.-Former Haldimand County Hydro Inc. Service Area
AB41: Hydro One Networks Inc.-Former Norfolk Power Distribution Inc. Service Area
AB42: Hydro One Networks Inc.-Former Woodstock Hydro Services Inc. Service Area
AB43: Hydro One Remote Communites Inc.
AB44: Hydro Ottawa Limited
AB45: InnPower Corporation
AB46: Kingston Hydro Corporation
AB47: Lakefront Utilities Inc.
AB48: Lakeland Power Distribution Ltd.
AB49: London Hydro Inc.
AB50: Milton Hydro Distribution Inc.
AB51: Newmarket-Tay Power Distribution Ltd.-For Former Midland Power Utility Rate Zone
AB52: Newmarket-Tay Power Distribution Ltd.-For Newmarket-Tay Power Main Rate Zone
AB53: Niagara Peninsula Energy Inc.
AB54: Niagara-on-the-Lake Hydro Inc.
AB55: North Bay Hydro Distribution Limited
AB56: Northern Ontario Wires Inc.
AB57: Oakville Hydro Electricity Distribution Inc.
AB58: Orangeville Hydro Limited
AB59: Oshawa PUC Networks Inc.
AB60: Ottawa River Power Corporation
AB61: PUC Distribution Inc.
AB62: Renfrew Hydro Inc.
AB63: Rideau St. Lawrence Distribution Inc.
AB64: Sioux Lookout Hydro Inc.
AB65: Synergy North Corporation-Kenora Rate Zone
AB66: Synergy North Corporation-Thunder Bay Rate Zone
AB67: Tillsonburg Hydro Inc.
AB68: Toronto Hydro-Electric System Limited
AB69: Wasaga Distribution Inc.
AB70: Welland Hydro-Electric System Corp.
AB71: Wellington North Power Inc.
AB72: Westario Power Inc.

Sheet 2021 List (hidden)
A1: Alectra Utilities Corporation-Brampton Rate Zone | B1: HHPNS717
A2: Alectra Utilities Corporation-Enersource Rate Zone | B2: HHPNS717
A3: Alectra Utilities Corporation-Horizon Utilities Rate Zone | B3: HHPNS717
A4: Alectra Utilities Corporation-PowerStream Rate Zone | B4: HHPNS717
A5: Alectra Utilities Corporation-Guelph Rate Zone | B5: HHPNS717
A6: Algoma Power Inc. | B6: WKBSV849
A7: Atikokan Hydro Inc. | B7: NJYBW716
A8: Bluewater Power Distribution Corporation | B8: GQQHM388
A9: Burlington Hydro Inc. | B9: OARZC118
A10: Canadian Niagara Power Inc. | B10: HJHBH994
A11: Centre Wellington Hydro Ltd. | B11: KQEEH473
A12: Chapleau Public Utilities Corporation | B12: CPEFQ593
A13: Cooperative Hydro Embrun Inc. | B13: QXHJU641
A14: E.L.K. Energy Inc. | B14: AVXSO594
A15: Elexicon Energy Inc.-Whitby Rate Zone | B15: JMNNR431
A16: Elexicon Energy Inc.-Veridian Rate Zone | B16: JMNNR431
A17: Enova Power Corp.-Kitchener-Wilmot Hydro Rate Zone | B17: JMNNR432
A18: Enova Power Corp.-Waterloo North Rate Zone | B18: JMNNR432
A19: Entegrus Powerlines Inc.-For Entegrus-Main Rate Zone | B19: YEOQG654
A20: Entegrus Powerlines Inc.-For Former St. Thomas Energy Rate Zone | B20: YEOQG654
A21: ENWIN Utilities Ltd. | B21: PTLUC812
A22: EPCOR Electricity Distribution Ontario Inc. | B22: ADICB565
A23: ERTH Power Corporation - ERTH Power Main Rate Zone | B23: LRECV427
A24: ERTH POWER CORPORATION – GODERICH RATE ZONE | B24: KTCNY552
A25: Espanola Regional Hydro Distribution Corporation | B25: YEPCI143
A26: Essex Powerlines Corporation | B26: GRHTW113
A27: Festival Hydro Inc. | B27: GMGHU415
A28: Fort Frances Power Corporation | B28: YTPWF351
A29: GrandBridge Energy Inc.-Brantford Power Rate Zone | B29: YTPWF352
A30: GrandBridge Energy Inc.-Energy+ Rate Zone | B30: YTPWF352
A31: Greater Sudbury Hydro Inc. | B31: YCYKQ642
A32: Grimsby Power Incorporated | B32: ADZFM459
A33: Halton Hills Hydro Inc. | B33: RVWKN794
A34: Hearst Power Distribution Co. Ltd. | B34: KESKM585
A35: Hydro 2000 Inc. | B35: MQFNL784
A36: Hydro Hawkesbury Inc. | B36: FNDHH648
A37: Hydro One Networks Inc. | B37: PTREM828
A38: Hydro One Networks Inc.-Former Orillia Power Distribution Corporation Service Area | B38: PTREM829
A39: Hydro One Networks Inc.-Former Peterborough Distribution Inc. Service Area | B39: PTREM829
A40: Hydro One Networks Inc.-Former Haldimand County Hydro Inc. Service Area | B40: PTREM828
A41: Hydro One Networks Inc.-Former Norfolk Power Distribution Inc. Service Area | B41: PTREM828
A42: Hydro One Networks Inc.-Former Woodstock Hydro Services Inc. Service Area | B42: PTREM828
A43: Hydro One Remote Communites Inc. | B43: UBBYF452
A44: Hydro Ottawa Limited | B44: NSBED625
A45: InnPower Corporation | B45: TXKTT167
A46: Kingston Hydro Corporation | B46: ZHKLA874
A47: Lakefront Utilities Inc. | B47: YLCEC559
A48: Lakeland Power Distribution Ltd. | B48: NHKJF259
A49: London Hydro Inc. | B49: SLRXO177
A50: Milton Hydro Distribution Inc. | B50: UIFEM157
A51: Newmarket-Tay Power Distribution Ltd.-For Former Midland Power Utility Rate Zone | B51: RUZIU984
A52: Newmarket-Tay Power Distribution Ltd.-For Newmarket-Tay Power Main Rate Zone | B52: RUZIU984
A53: Niagara Peninsula Energy Inc. | B53: KSUYD122
A54: Niagara-on-the-Lake Hydro Inc. | B54: QHCKN852
A55: North Bay Hydro Distribution Limited | B55: FUIJX538
A56: Northern Ontario Wires Inc. | B56: PWKJP953
A57: Oakville Hydro Electricity Distribution Inc. | B57: JEGGW178
A58: Orangeville Hydro Limited | B58: TVKSH414
A59: Oshawa PUC Networks Inc. | B59: PQZCY963
A60: Ottawa River Power Corporation | B60: GTLBW445
A61: PUC Distribution Inc. | B61: MLWYG784
A62: Renfrew Hydro Inc. | B62: QDKIF127
A63: Rideau St. Lawrence Distribution Inc. | B63: AMZEN437
A64: Sioux Lookout Hydro Inc. | B64: ACEVX242
A65: Synergy North Corporation-Kenora Rate Zone | B65: DSPWZ318
A66: Synergy North Corporation-Thunder Bay Rate Zone | B66: DSPWZ318
A67: Tillsonburg Hydro Inc. | B67: OLIUU862
A68: Toronto Hydro-Electric System Limited | B68: NIOJF461
A69: Wasaga Distribution Inc. | B69: ZYZFO848
A70: Welland Hydro-Electric System Corp. | B70: IOKHC383
A71: Wellington North Power Inc. | B71: SKVKJ649
A72: Westario Power Inc. | B72: TPFNQ593

Sheet Sheet1 (hidden)
A5: 2. Table of Contents | B5: X
A6: 3. RRR Data | B6: X
A7: 4. UTRs and Sub-Transmission | B7: X
A8: 5. Historical Wholesale | B8: X
A9: 6. Current Wholesale | B9: X
A10: 7. Forecast Wholesale | B10: X
A11: 8. RTSR Rates to Forecast | B11: X

Sheet 2. Table of Contents
D20: 1. Info | I20: 5. Historical Wholesale
D22: 2. Table of Contents | I22: 6. Current Wholesale
D24: 3. RRR Data | I24: 7. Forecast Wholesale
D26: 4. UTRs and Sub-Transmission | I26: 8. RTSR Rates to Forecast

Sheet 3. RRR Data
AZ1: 1
B15: Rate Class | C15: Rate Description | D15: Unit | E15: Rate | F15: Non-Loss Adjusted Metered kWh | G15: Non-Loss Adjusted Metered kW | H15: Applicable Loss Factor eg: (1.0325) | I15: Loss Adjusted Billed kWh
B17: RESIDENTIAL SERVICE CLASSIFICATION | C17: Retail Transmission Rate - Network Service Rate | D17: $/kWh | E17: 0.0093 | F17: 259000634 | H17: 1.0355 | I17: =F17*H17 -> 268195156.5
B18: RESIDENTIAL SERVICE CLASSIFICATION | C18: Retail Transmission Rate - Line and Transformation Connection Service Rate | D18: $/kWh | E18: 0.0064 | F18: 259000634 | H18: 1.0355 | I18: 268195156.5
B19: GENERAL SERVICE LESS THAN 50 KW SERVICE CLASSIFICATION | C19: Retail Transmission Rate - Network Service Rate | D19: $/kWh | E19: 0.0079 | F19: 63293408 | H19: 1.0355 | I19: 65540323.98
B20: GENERAL SERVICE LESS THAN 50 KW SERVICE CLASSIFICATION | C20: Retail Transmission Rate - Line and Transformation Connection Service Rate - Interval Metered | D20: $/kWh | E20: 0.0061 | F20: 63293408 | H20: 1.0355 | I20: 65540323.98
B21: GENERAL SERVICE 50 to 4,999 kW SERVICE CLASSIFICATION | C21: Retail Transmission Rate - Network Service Rate - Interval Metered | D21: $/kW | E21: 4.0579 | F21: 183420703 | G21: 566315 | H21: 1.0355 | I21: 189932138 | J21: For this line item, please ensure that the consumption and demand values have been adjusted to account for non-interval/interval customers.
B22: GENERAL SERVICE 50 to 4,999 kW SERVICE CLASSIFICATION | C22: Retail Transmission Rate - Line and Transformation Connection Service Rate | D22: $/kW | E22: 2.7419 | F22: 183420703 | G22: 566315 | H22: 1.0355 | I22: 189932138 | J22: For this line item, please ensure that the consumption and demand values have been adjusted to account for non-interval/interval customers.
B23: EMBEDDED DISTRIBUTOR | C23: Retail Transmission Rate - Network Service Rate | D23: $/kW | F23: 34281228 | G23: 90976 | H23: 1.0355 | I23: 35498211.59 | J23: For this line item, please ensure that the consumption and demand values have been adjusted to account for non-interval/interval customers.
B24: EMBEDDED DISTRIBUTOR | C24: Retail Transmission Rate - Line and Transformation Connection Service Rate | D24: $/kW | F24: 34284228 | G24: 90976 | H24: 1.0355 | I24: 35501318.09 | J24: For this line item, please ensure that the consumption and demand values have been adjusted to account for non-interval/interval customers.
B25: UNMETERED SCATTERED LOAD SERVICE CLASSIFICATION | C25: Retail Transmission Rate - Network Service Rate | D25: $/kWh | E25: 0.0079 | F25: 1408699 | H25: 1.0355 | I25: 1458707.815
B26: UNMETERED SCATTERED LOAD SERVICE CLASSIFICATION | C26: Retail Transmission Rate - Line and Transformation Connection Service Rate | D26: $/kWh | E26: 0.0061 | F26: 1408699 | H26: 1.0355 | I26: 1458707.815
B27: SENTINEL LIGHTING SERVICE CLASSIFICATION | C27: Retail Transmission Rate - Network Service Rate | D27: $/kW | E27: 2.5362 | F27: 269986 | G27: 736 | H27: 1.0355 | I27: 279570.503
B28: SENTINEL LIGHTING SERVICE CLASSIFICATION | C28: Retail Transmission Rate - Line and Transformation Connection Service Rate | D28: $/kW | E28: 1.8847 | F28: 269986 | G28: 736 | H28: 1.0355 | I28: 279570.503
B29: STREET LIGHTING SERVICE CLASSIFICATION | C29: Retail Transmission Rate - Network Service Rate | D29: $/kW | E29: 2.5006 | F29: 2415233 | G29: 7310 | H29: 1.0355 | I29: 2500973.772
B30: STREET LIGHTING SERVICE CLASSIFICATION | C30: Retail Transmission Rate - Line and Transformation Connection Service Rate | D30: $/kW | E30: 1.8726 | F30: 2415233 | G30: 7310 | H30: 1.0355 | I30: 2500973.772

Sheet 4. UTRs and Sub-Transmission
B18: Uniform Transmission Rates | C18: Unit | E18: 2023 Jan to Jun | F18: 2023 Jul to Dec | G18: 2023 Jul to Dec | I18: 2024 | L18: 2025
B20: Rate Description | E20: Rate | I20: Rate | L20: Rate
B22: Network Service Rate | C22: kW | E22: 5.6 | G22: 5.37 | I22: 5.78 | L22: 6.37
B24: Line Connection Service Rate | C24: kW | E24: 0.92 | G24: 0.88 | I24: 0.95 | L24: 1
B26: Transformation Connection Service Rate | C26: kW | E26: 3.1 | G26: 2.98 | I26: 3.21 | L26: 3.39
B29: Hydro One Sub-Transmission Rates | C29: Unit | E29: 2023 | I29: 2024 | L29: 2025
B33: Rate Description | E33: Rate | I33: Rate | L33: Rate
B35: Network Service Rate | C35: kW | E35: 4.6545 | I35: 4.9103 | L35: 5.328
B37: Line Connection Service Rate | C37: kW | E37: 0.6056 | I37: 0.6537 | L37: 0.6882
B39: Transformation Connection Service Rate | C39: kW | E39: 2.8924 | I39: 3.3041 | L39: 3.4894
B41: Both Line and Transformation Connection Service Rate | C41: kW | E41: 3.489 | I41: =I39+I37 -> 3.9578 | L41: =L37+L39 -> 4.1776
B44: If needed, add extra host here. (I) | C44: Unit | E44: 2023 | I44: 2024 | L44: 2025
B48: Rate Description | E48: Rate | H48: Rate | L48: Rate
B50: Network Service Rate | C50: kW
B52: Line Connection Service Rate | C52: kW
B54: Transformation Connection Service Rate | C54: kW
B56: Both Line and Transformation Connection Service Rate | C56: kW | E56: =E54+E52 -> 0 | I56: =J54+J52 -> 0 | L56: =L54+L52 -> 0
B59: If needed, add extra host here. (II) | C59: Unit | E59: 2023 | I59: 2024 | L59: 2025
B63: Rate Description | E63: Rate | H63: Rate | L63: Rate
B65: Network Service Rate | C65: kW
B67: Line Connection Service Rate | C67: kW
B69: Transformation Connection Service Rate | C69: kW
B71: Both Line and Transformation Connection Service Rate | C71: kW | E71: =E69+E67 -> 0 | I71: =J69+J67 -> 0 | L71: =L69+L67 -> 0
E73: Historical 2022 | I73: Current 2023 | L73: Forecast 2024
B74: Low Voltage Switchgear Credit (if applicable, enter as a negative value) | C74: $

Sheet 5. Historical Wholesale
B21: IESO | D21: Network | H21: Line Connection | L21: Transformation Connection | P21: Total Connection
B22: Month | D22: Units Billed | E22: Rate | F22: Amount | H22: Units Billed | I22: Rate | J22: Amount | L22: Units Billed | M22: Rate | N22: Amount | P22: Amount
B24: January | E24: =IF(D24<>0,F24/D24,0) -> 0 | I24: =IF(H24<>0,J24/H24,0) -> 0 | M24: =IF(L24<>0,N24/L24,0) -> 0 | P24: =J24+N24 -> 0
B25: February | E25: 0 | I25: 0 | M25: 0 | P25: 0
B26: March | E26: 0 | I26: 0 | M26: 0 | P26: 0
B27: April | E27: 0 | I27: 0 | M27: 0 | P27: 0
B28: May | E28: 0 | I28: 0 | M28: 0 | P28: 0
B29: June | E29: 0 | I29: 0 | M29: 0 | P29: 0
B30: July | E30: 0 | I30: 0 | M30: 0 | P30: 0
B31: August | E31: 0 | I31: 0 | M31: 0 | P31: 0
B32: September | E32: 0 | I32: 0 | M32: 0 | P32: 0
B33: October | E33: 0 | I33: 0 | M33: 0 | P33: 0
B34: November | E34: 0 | I34: 0 | M34: 0 | P34: 0
B35: December | E35: 0 | I35: 0 | M35: 0 | P35: 0
B37: Total | D37: =SUM(D24:D35) -> 0 | E37: =IF(D37<>0,F37/D37,0) -> 0 | F37: =SUM(F24:F35) -> 0 | H37: =SUM(H24:H35) -> 0 | I37: =IF(H37<>0,J37/H37,0) -> 0 | J37: =SUM(J24:J35) -> 0 | L37: =SUM(L24:L35) -> 0 | M37: =IF(L37<>0,N37/L37,0) -> 0 | N37: =SUM(N24:N35) -> 0 | P37: =SUM(P24:P35) -> 0
B39: Hydro One | D39: Network | H39: Line Connection | L39: Transformation Connection | P39: Total Connection
B41: Month | D41: Units Billed | E41: Rate | F41: Amount | H41: Units Billed | I41: Rate | J41: Amount | L41: Units Billed | M41: Rate | N41: Amount | P41: Amount
B43: January | D43: 79926 | E43: =ROUND(IF(D43<>0,F43/D43,0),4) -> 4.6545 | F43: 372015.567 | H43: =23975.15+20986.73 -> 44961.88 | I43: =ROUND(IF(H43<>0,J43/H43,0),4) -> 0.6056 | J43: 27228.91 | L43: 80053.97 | M43: =ROUND(IF(L43<>0,N43/L43,0),4) -> 2.8924 | N43: 231548.1028 | P43: =J43+N43 -> 258777.0128
B44: February | D44: =18639.98+21211.07+25254.74+15465.03 -> 80570.82 | E44: =ROUND(IF(D44<>0,F44/D44,0),4) -> 4.6545 | F44: 375016.86 | H44: =19748.82+21211.07 -> 40959.89 | I44: =ROUND(IF(H44<>0,J44/H44,0),4) -> 0.6056 | J44: 24804.3 | L44: =19748.82+21211.07+25254.74+15465.03 -> 81679.66 | M44: =ROUND(IF(L44<>0,N44/L44,0),4) -> 2.8924 | N44: 236250.23 | P44: 261054.53
B45: March | D45: 74298 | E45: 4.6545 | F45: 345820.041 | H45: 38528.88 | I45: 0.6056 | J45: 23333.08973 | L45: 75614.44 | M45: 2.8924 | N45: 218707.2063 | P45: 242040.296
B46: April | D46: 72045 | E46: 4.6545 | F46: 335333.4525 | H46: 36256.75 | I46: 0.6056 | J46: 21957.0878 | L46: 73051.15 | M46: 2.8924 | N46: 211293.1463 | P46: 233250.2341
B47: May | D47: 99758 | E47: 4.6545 | F47: 464323.611 | H47: =23893.92+28567.56 -> 52461.48 | I47: 0.6056 | J47: 31770.66 | L47: =22848.03+27526.37+23893.92+28567.56 -> 102835.88 | M47: 2.8924 | N47: 297442.49 | P47: 329213.15
B48: June | D48: =26798.72+26435.36+27898.09+31124.007 -> 112256.177 | E48: 4.6545 | F48: 522496.63 | H48: =27898.09+31124.07 -> 59022.16 | I48: 0.6056 | J48: 35743.82 | L48: =26798.72+28685.88+27898.09+31124.07 -> 114506.76 | M48: 2.8924 | N48: 331199.35 | P48: 366943.17
B49: July | D49: =34525.55+31692.09+32321.2+29633.36 -> 128172.2 | E49: 4.6545 | F49: 596577.97 | H49: =34525.55+31816.29 -> 66341.84 | I49: 0.6056 | J49: 40176.62 | L49: =34525.55+31816.29+32321.2+29633.36 -> 128296.4 | M49: 2.8924 | N49: 371084.51 | P49: 411261.13
B50: August | D50: =32050.1+23405.68+28556.24+28957.72 -> 112969.74 | E50: 4.6545 | F50: 525817.62 | H50: =32050.1+23405.68 -> 55455.78 | I50: 0.6056 | J50: 33584.02 | L50: =32050.1+23405.68+31604.52+28957.72 -> 116018.02 | M50: 2.8924 | N50: =83757.3+91412.91+67698.58+92701.72 -> 335570.51 | P50: 369154.53
B51: September | D51: =30595.52+31603.1+23931.1+34942.06 -> 121071.78 | E51: 4.6545 | F51: =162637.83+111387.29+147096.65+142406.86 -> 563528.63 | H51: =23931.1+34942.06 -> 58873.16 | I51: 0.6056 | J51: 35653.58 | L51: =30595.52+33324.69+34942.06+23931.1 -> 122793.37 | M51: 2.8924 | N51: =69218.31+101066.42+96388.34+88494.49 -> 355167.56 | P51: 390821.14
B52: October | D52: =27836.17+16892.34+22475.04+22960.38 -> 90163.93 | E52: 4.6545 | F52: =106869.11+104610.1+78625.39+129563.45 -> 419668.05 | H52: =27836.17+17026.41 -> 44862.58 | I52: 0.6056 | J52: 27168.77 | L52: =27836.17+17026.41+23058.07+22960.38 -> 90881.03 | M52: 2.8924 | N52: =66410.61+66693.15+49247.19+80513.33 -> 262864.28 | P52: 290033.05
B53: November | D53: =23309.14+20979.74+21004.19+17368.02 -> 82661.09 | E53: 4.6545 | F53: =80839.43+97764+97650.2+108492.39 -> 384746.02 | H53: =23309.14+20979.74 -> 44288.88 | I53: 0.6056 | J53: =14116.02+12705.33 -> 26821.35 | L53: =23309.14+20979.74+21004.19+17473.78 -> 82766.85 | M53: 2.8924 | N53: =50541.17+60752.52+60681.8+67419.36 -> 239394.85 | P53: 266216.2
B54: December | D54: =18411.25+20022.57+20968.63+16872.92 -> 76275.37 | E54: 4.6545 | F54: =78534.98+97598.49+93195.06+85695.16 -> 355023.69 | H54: =18411.25+20022.57 -> 38433.82 | I54: 0.6056 | J54: =11149.85+12125.67 -> 23275.52 | L54: =18411.25+20022.57+20968.63+16943.36 -> 76345.81 | M54: 2.8924 | N54: =49006.98+60649.67+57913.29+53252.7 -> 220822.64 | P54: 244098.16
B56: Total | D56: =SUM(D43:D54) -> 1130168.107 | E56: =IF(D56<>0,F56/D56,0) -> 4.654500608 | F56: =SUM(F43:F54) -> 5260368.142 | H56: =SUM(H43:H54) -> 580447.1 | I56: =IF(H56<>0,J56/H56,0) -> 0.6055982148 | J56: =SUM(J43:J54) -> 351517.7275 | L56: =SUM(L43:L54) -> 1144843.34 | M56: =IF(L56<>0,N56/L56,0) -> 2.892399999 | N56: =SUM(N43:N54) -> 3311344.875 | P56: =SUM(P43:P54) -> 3662862.603
B58: Add Extra Host Here (I) | D58: Network | H58: Line Connection | L58: Transformation Connection | P58: Total Connection
B59: (if needed)
B60: Month | D60: Units Billed | E60: Rate | F60: Amount | H60: Units Billed | I60: Rate | J60: Amount | L60: Units Billed | M60: Rate | N60: Amount | P60: Amount
B62: January | E62: =IF(D62<>0,F62/D62,0) -> 0 | I62: =IF(H62<>0,J62/H62,0) -> 0 | M62: =IF(L62<>0,N62/L62,0) -> 0 | P62: =J62+N62 -> 0
B63: February | E63: 0 | I63: 0 | M63: 0 | P63: 0
B64: March | E64: 0 | I64: 0 | M64: 0 | P64: 0
B65: April | E65: 0 | I65: 0 | M65: 0 | P65: 0
B66: May | E66: 0 | I66: 0 | M66: 0 | P66: 0
B67: June | E67: 0 | I67: 0 | M67: 0 | P67: 0
B68: July | E68: 0 | I68: 0 | M68: 0 | P68: 0
B69: August | E69: 0 | I69: 0 | M69: 0 | P69: 0
B70: September | E70: 0 | I70: 0 | M70: 0 | P70: 0
B71: October | E71: 0 | I71: 0 | M71: 0 | P71: 0
B72: November | E72: 0 | I72: 0 | M72: 0 | P72: 0
B73: December | E73: 0 | I73: 0 | M73: 0 | P73: 0
B75: Total | D75: =SUM(D62:D73) -> 0 | E75: =IF(D75<>0,F75/D75,0) -> 0 | F75: =SUM(F62:F73) -> 0 | H75: =SUM(H62:H73) -> 0 | I75: =IF(H75<>0,J75/H75,0) -> 0 | J75: =SUM(J62:J73) -> 0 | L75: =SUM(L62:L73) -> 0 | M75: =IF(L75<>0,N75/L75,0) -> 0 | N75: =SUM(N62:N73) -> 0 | P75: =SUM(P62:P73) -> 0
B77: Add Extra Host Here (II) | D77: Network | H77: Line Connection | L77: Transformation Connection | P77: Total Connection
B78: (if needed)
B79: Month | D79: Units Billed | E79: Rate | F79: Amount | H79: Units Billed | I79: Rate | J79: Amount | L79: Units Billed | M79: Rate | N79: Amount | P79: Amount
B81: January | E81: =IF(D81<>0,F81/D81,0) -> 0 | I81: =IF(H81<>0,J81/H81,0) -> 0 | M81: =IF(L81<>0,N81/L81,0) -> 0 | P81: =J81+N81 -> 0
B82: February | E82: 0 | I82: 0 | M82: 0 | P82: 0
B83: March | E83: 0 | I83: 0 | M83: 0 | P83: 0
B84: April | E84: 0 | I84: 0 | M84: 0 | P84: 0
B85: May | E85: 0 | I85: 0 | M85: 0 | P85: 0
B86: June | E86: 0 | I86: 0 | M86: 0 | P86: 0
B87: July | E87: 0 | I87: 0 | M87: 0 | P87: 0
B88: August | E88: 0 | I88: 0 | M88: 0 | P88: 0
B89: September | E89: 0 | I89: 0 | M89: 0 | P89: 0
B90: October | E90: 0 | I90: 0 | M90: 0 | P90: 0
B91: November | E91: 0 | I91: 0 | M91: 0 | P91: 0
B92: December | E92: 0 | I92: 0 | M92: 0 | P92: 0
B94: Total | D94: =SUM(D81:D92) -> 0 | E94: =IF(D94<>0,F94/D94,0) -> 0 | F94: =SUM(F81:F92) -> 0 | H94: =SUM(H81:H92) -> 0 | I94: =IF(H94<>0,J94/H94,0) -> 0 | J94: =SUM(J81:J92) -> 0 | L94: =SUM(L81:L92) -> 0 | M94: =IF(L94<>0,N94/L94,0) -> 0 | N94: =SUM(N81:N92) -> 0 | P94: =SUM(P81:P92) -> 0
B96: Total | D96: Network | H96: Line Connection | L96: Transformation Connection | P96: Total Connection
B98: Month | D98: Units Billed | E98: Rate | F98: Amount | H98: Units Billed | I98: Rate | J98: Amount | L98: Units Billed | M98: Rate | N98: Amount | P98: Amount
B100: January | D100: =D24+D43+D62+D81 -> 79926 | E100: =IF(D100<>0,F100/D100,0) -> 4.6545 | F100: =F24+F43+F62+F81 -> 372015.567 | H100: =H24+H43+H62+H81 -> 44961.88 | I100: =IF(H100<>0,J100/H100,0) -> 0.6055998993 | J100: =J24+J43+J62+J81 -> 27228.91 | L100: =L24+L43+L62+L81 -> 80053.97 | M100: =IF(L100<>0,N100/L100,0) -> 2.8924 | N100: =N24+N43+N62+N81 -> 231548.1028 | P100: =J100+N100 -> 258777.0128
B101: February | D101: =D25+D44+D63+D82 -> 80570.82 | E101: 4.654499731 | F101: =F25+F44+F63+F82 -> 375016.86 | H101: =H25+H44+H63+H82 -> 40959.89 | I101: 0.6055753568 | J101: =J25+J44+J63+J82 -> 24804.3 | L101: =L25+L44+L63+L82 -> 81679.66 | M101: 2.892399772 | N101: =N25+N44+N63+N82 -> 236250.23 | P101: 261054.53
B102: March | D102: 74298 | E102: 4.6545 | F102: 345820.041 | H102: 38528.88 | I102: 0.6056 | J102: 23333.08973 | L102: 75614.44 | M102: 2.8924 | N102: 218707.2063 | P102: 242040.296
B103: April | D103: 72045 | E103: 4.6545 | F103: 335333.4525 | H103: 36256.75 | I103: 0.6056 | J103: 21957.0878 | L103: 73051.15 | M103: 2.8924 | N103: 211293.1463 | P103: 233250.2341
B104: May | D104: 99758 | E104: 4.6545 | F104: 464323.611 | H104: 52461.48 | I104: 0.6055997658 | J104: 31770.66 | L104: 102835.88 | M104: 2.892399909 | N104: 297442.49 | P104: 329213.15
B105: June | D105: 112256.177 | E105: 4.654502264 | F105: 522496.63 | H105: 59022.16 | I105: 0.6055999984 | J105: 35743.82 | L105: 114506.76 | M105: 2.892399977 | N105: 331199.35 | P105: 366943.17
B106: July | D106: 128172.2 | E106: 4.654503629 | F106: 596577.97 | H106: 66341.84 | I106: 0.6056000256 | J106: 40176.62 | L106: 128296.4 | M106: 2.892400021 | N106: 371084.51 | P106: 411261.13
B107: August | D107: 112969.74 | E107: 4.654499692 | F107: 525817.62 | H107: 55455.78 | I107: 0.6055999934 | J107: 33584.02 | L107: 116018.02 | M107: 2.892399905 | N107: 335570.51 | P107: 369154.53
B108: September | D108: 121071.78 | E108: 4.654500248 | F108: 563528.63 | H108: 58873.16 | I108: 0.6055999032 | J108: 35653.58 | L108: 122793.37 | M108: 2.892400135 | N108: 355167.56 | P108: 390821.14
B109: October | D109: 90163.93 | E109: 4.654500419 | F109: 419668.05 | H109: 44862.58 | I109: 0.6055998117 | J109: 27168.77 | L109: 90881.03 | M109: 2.892399877 | N109: 262864.28 | P109: 290033.05
B110: November | D110: 82661.09 | E110: 4.654499717 | F110: 384746.02 | H110: 44288.88 | I110: 0.6056000965 | J110: 26821.35 | L110: 82766.85 | M110: 2.892400158 | N110: 239394.85 | P110: 266216.2
B111: December | D111: 76275.37 | E111: 4.654499742 | F111: 355023.69 | H111: 38433.82 | I111: 0.6055999638 | J111: 23275.52 | L111: 76345.81 | M111: 2.892400251 | N111: 220822.64 | P111: 244098.16
B113: Total | D113: =SUM(D100:D111) -> 1130168.107 | E113: =IF(D113<>0,F113/D113,0) -> 4.654500608 | F113: =SUM(F100:F111) -> 5260368.142 | H113: =SUM(H100:H111) -> 580447.1 | I113: =IF(H113<>0,J113/H113,0) -> 0.6055982148 | J113: =SUM(J100:J111) -> 351517.7275 | L113: =SUM(L100:L111) -> 1144843.34 | M113: =IF(L113<>0,N113/L113,0) -> 2.892399999 | N113: =SUM(N100:N111) -> 3311344.875 | P113: =SUM(P100:P111) -> 3662862.603
N115: Low Voltage Switchgear Credit (if applicable) | P115: ='4. UTRs and Sub-Transmission'!E76 -> 0
N117: Total including deduction for Low Voltage Switchgear Credit | P117: =P113+P115 -> 3662862.603

Sheet 6. Current Wholesale
B13: The purpose of this sheet is to calculate the expected billing when current 2024 Uniform Transmission Rates and Hydro One Sub-transmission Rates are applied against historical 2023 transmission units.
B20: IESO | D20: Network | H20: Line Connection | L20: Transformation Connection | P20: Total Connection
B22: Month | D22: Units Billed | E22: Rate | F22: Amount | H22: Units Billed | I22: Rate | J22: Amount | L22: Units Billed | M22: Rate | N22: Amount | P22: Amount
B24: January | D24: ='5. Historical Wholesale'!D24 -> 0 | E24: ='4. UTRs and Sub-Transmission'!I22 -> 5.78 | F24: =D24*E24 -> 0 | H24: ='5. Historical Wholesale'!H24 -> 0 | I24: ='4. UTRs and Sub-Transmission'!I24 -> 0.95 | J24: =H24*I24 -> 0 | L24: ='5. Historical Wholesale'!L24 -> 0 | M24: ='4. UTRs and Sub-Transmission'!I26 -> 3.21 | N24: =L24*M24 -> 0 | P24: =J24+N24 -> 0
B25: February | D25: ='5. Historical Wholesale'!D25 -> 0 | E25: =E24 -> 5.78 | F25: =D25*E25 -> 0 | H25: ='5. Historical Wholesale'!H25 -> 0 | I25: =I24 -> 0.95 | J25: =H25*I25 -> 0 | L25: ='5. Historical Wholesale'!L25 -> 0 | M25: =M24 -> 3.21 | N25: =L25*M25 -> 0 | P25: 0
B26: March | D26: ='5. Historical Wholesale'!D26 -> 0 | E26: =E25 -> 5.78 | F26: 0 | H26: ='5. Historical Wholesale'!H26 -> 0 | I26: =I25 -> 0.95 | J26: 0 | L26: ='5. Historical Wholesale'!L26 -> 0 | M26: =M25 -> 3.21 | N26: 0 | P26: 0
B27: April | D27: ='5. Historical Wholesale'!D27 -> 0 | E27: 5.78 | F27: 0 | H27: ='5. Historical Wholesale'!H27 -> 0 | I27: 0.95 | J27: 0 | L27: ='5. Historical Wholesale'!L27 -> 0 | M27: 3.21 | N27: 0 | P27: 0
B28: May | D28: ='5. Historical Wholesale'!D28 -> 0 | E28: 5.78 | F28: 0 | H28: ='5. Historical Wholesale'!H28 -> 0 | I28: 0.95 | J28: 0 | L28: ='5. Historical Wholesale'!L28 -> 0 | M28: 3.21 | N28: 0 | P28: 0
B29: June | D29: ='5. Historical Wholesale'!D29 -> 0 | E29: 5.78 | F29: 0 | H29: ='5. Historical Wholesale'!H29 -> 0 | I29: 0.95 | J29: 0 | L29: ='5. Historical Wholesale'!L29 -> 0 | M29: 3.21 | N29: 0 | P29: 0
B30: July | D30: ='5. Historical Wholesale'!D30 -> 0 | E30: 5.78 | F30: 0 | H30: ='5. Historical Wholesale'!H30 -> 0 | I30: 0.95 | J30: 0 | L30: ='5. Historical Wholesale'!L30 -> 0 | M30: 3.21 | N30: 0 | P30: 0
B31: August | D31: ='5. Historical Wholesale'!D31 -> 0 | E31: 5.78 | F31: 0 | H31: ='5. Historical Wholesale'!H31 -> 0 | I31: 0.95 | J31: 0 | L31: ='5. Historical Wholesale'!L31 -> 0 | M31: 3.21 | N31: 0 | P31: 0
B32: September | D32: ='5. Historical Wholesale'!D32 -> 0 | E32: 5.78 | F32: 0 | H32: ='5. Historical Wholesale'!H32 -> 0 | I32: 0.95 | J32: 0 | L32: ='5. Historical Wholesale'!L32 -> 0 | M32: 3.21 | N32: 0 | P32: 0
B33: October | D33: ='5. Historical Wholesale'!D33 -> 0 | E33: 5.78 | F33: 0 | H33: ='5. Historical Wholesale'!H33 -> 0 | I33: 0.95 | J33: 0 | L33: ='5. Historical Wholesale'!L33 -> 0 | M33: 3.21 | N33: 0 | P33: 0
B34: November | D34: ='5. Historical Wholesale'!D34 -> 0 | E34: 5.78 | F34: 0 | H34: ='5. Historical Wholesale'!H34 -> 0 | I34: 0.95 | J34: 0 | L34: ='5. Historical Wholesale'!L34 -> 0 | M34: 3.21 | N34: 0 | P34: 0
B35: December | D35: ='5. Historical Wholesale'!D35 -> 0 | E35: 5.78 | F35: 0 | H35: ='5. Historical Wholesale'!H35 -> 0 | I35: 0.95 | J35: 0 | L35: ='5. Historical Wholesale'!L35 -> 0 | M35: 3.21 | N35: 0 | P35: 0
B37: Total | D37: =SUM(D24:D35) -> 0 | E37: =IF(D37<>0,F37/D37,0) -> 0 | F37: =SUM(F24:F35) -> 0 | H37: =SUM(H24:H35) -> 0 | I37: =IF(H37<>0,J37/H37,0) -> 0 | J37: =SUM(J24:J35) -> 0 | L37: =SUM(L24:L35) -> 0 | M37: =IF(L37<>0,N37/L37,0) -> 0 | N37: =SUM(N24:N35) -> 0 | P37: =SUM(P24:P35) -> 0
B39: Hydro One | D39: Network | H39: Line Connection | L39: Transformation Connection | P39: Total Connection
B41: Month | D41: Units Billed | E41: Rate | F41: Amount | H41: Units Billed | I41: Rate | J41: Amount | L41: Units Billed | M41: Rate | N41: Amount | P41: Amount
B43: January | D43: ='5. Historical Wholesale'!D43 -> 79926 | E43: ='4. UTRs and Sub-Transmission'!I35 -> 4.9103 | F43: =D43*E43 -> 392460.6378 | H43: ='5. Historical Wholesale'!H43 -> 44961.88 | I43: ='4. UTRs and Sub-Transmission'!I37 -> 0.6537 | J43: =H43*I43 -> 29391.58096 | L43: ='5. Historical Wholesale'!L43 -> 80053.97 | M43: ='4. UTRs and Sub-Transmission'!I39 -> 3.3041 | N43: =L43*M43 -> 264506.3223 | P43: =J43+N43 -> 293897.9032
B44: February | D44: ='5. Historical Wholesale'!D44 -> 80570.82 | E44: =E43 -> 4.9103 | F44: =D44*E44 -> 395626.8974 | H44: ='5. Historical Wholesale'!H44 -> 40959.89 | I44: =I43 -> 0.6537 | J44: =H44*I44 -> 26775.48009 | L44: ='5. Historical Wholesale'!L44 -> 81679.66 | M44: =M43 -> 3.3041 | N44: =L44*M44 -> 269877.7646 | P44: 296653.2447
B45: March | D45: ='5. Historical Wholesale'!D45 -> 74298 | E45: 4.9103 | F45: 364825.4694 | H45: ='5. Historical Wholesale'!H45 -> 38528.88 | I45: 0.6537 | J45: 25186.32886 | L45: ='5. Historical Wholesale'!L45 -> 75614.44 | M45: =M44 -> 3.3041 | N45: 249837.6712 | P45: 275024.0001
B46: April | D46: ='5. Historical Wholesale'!D46 -> 72045 | E46: 4.9103 | F46: 353762.5635 | H46: ='5. Historical Wholesale'!H46 -> 36256.75 | I46: 0.6537 | J46: 23701.03747 | L46: ='5. Historical Wholesale'!L46 -> 73051.15 | M46: =M45 -> 3.3041 | N46: 241368.3047 | P46: 265069.3422
B47: May | D47: ='5. Historical Wholesale'!D47 -> 99758 | E47: 4.9103 | F47: 489841.7074 | H47: ='5. Historical Wholesale'!H47 -> 52461.48 | I47: 0.6537 | J47: 34294.06948 | L47: ='5. Historical Wholesale'!L47 -> 102835.88 | M47: 3.3041 | N47: 339780.0311 | P47: 374074.1006
B48: June | D48: ='5. Historical Wholesale'!D48 -> 112256.177 | E48: 4.9103 | F48: 551211.5059 | H48: ='5. Historical Wholesale'!H48 -> 59022.16 | I48: 0.6537 | J48: 38582.78599 | L48: ='5. Historical Wholesale'!L48 -> 114506.76 | M48: 3.3041 | N48: 378341.7857 | P48: 416924.5717
B49: July | D49: ='5. Historical Wholesale'!D49 -> 128172.2 | E49: 4.9103 | F49: 629363.9537 | H49: ='5. Historical Wholesale'!H49 -> 66341.84 | I49: 0.6537 | J49: 43367.66081 | L49: ='5. Historical Wholesale'!L49 -> 128296.4 | M49: 3.3041 | N49: 423904.1352 | P49: 467271.796
B50: August | D50: ='5. Historical Wholesale'!D50 -> 112969.74 | E50: 4.9103 | F50: 554715.3143 | H50: ='5. Historical Wholesale'!H50 -> 55455.78 | I50: 0.6537 | J50: 36251.44339 | L50: ='5. Historical Wholesale'!L50 -> 116018.02 | M50: 3.3041 | N50: 383335.1399 | P50: 419586.5833
B51: September | D51: ='5. Historical Wholesale'!D51 -> 121071.78 | E51: 4.9103 | F51: 594498.7613 | H51: ='5. Historical Wholesale'!H51 -> 58873.16 | I51: 0.6537 | J51: 38485.38469 | L51: ='5. Historical Wholesale'!L51 -> 122793.37 | M51: 3.3041 | N51: 405721.5738 | P51: 444206.9585
B52: October | D52: ='5. Historical Wholesale'!D52 -> 90163.93 | E52: 4.9103 | F52: 442731.9455 | H52: ='5. Historical Wholesale'!H52 -> 44862.58 | I52: 0.6537 | J52: 29326.66855 | L52: ='5. Historical Wholesale'!L52 -> 90881.03 | M52: 3.3041 | N52: 300280.0112 | P52: 329606.6798
B53: November | D53: ='5. Historical Wholesale'!D53 -> 82661.09 | E53: 4.9103 | F53: 405890.7502 | H53: ='5. Historical Wholesale'!H53 -> 44288.88 | I53: 0.6537 | J53: 28951.64086 | L53: ='5. Historical Wholesale'!L53 -> 82766.85 | M53: 3.3041 | N53: 273469.9491 | P53: 302421.5899
B54: December | D54: ='5. Historical Wholesale'!D54 -> 76275.37 | E54: 4.9103 | F54: 374534.9493 | H54: ='5. Historical Wholesale'!H54 -> 38433.82 | I54: 0.6537 | J54: 25124.18813 | L54: ='5. Historical Wholesale'!L54 -> 76345.81 | M54: 3.3041 | N54: 252254.1908 | P54: 277378.379
B56: Total | D56: =SUM(D43:D54) -> 1130168.107 | E56: =IF(D56<>0,F56/D56,0) -> 4.9103 | F56: =SUM(F43:F54) -> 5549464.456 | H56: =SUM(H43:H54) -> 580447.1 | I56: =IF(H56<>0,J56/H56,0) -> 0.6537 | J56: =SUM(J43:J54) -> 379438.2693 | L56: =SUM(L43:L54) -> 1144843.34 | M56: =IF(L56<>0,N56/L56,0) -> 3.3041 | N56: =SUM(N43:N54) -> 3782676.88 | P56: =SUM(P43:P54) -> 4162115.149
B58: ='5. Historical Wholesale'!B58 -> Add Extra Host Here (I) | D58: Network | H58: Line Connection | L58: Transformation Connection | P58: Total Connection
B60: Month | D60: Units Billed | E60: Rate | F60: Amount | H60: Units Billed | I60: Rate | J60: Amount | L60: Units Billed | M60: Rate | N60: Amount | P60: Amount
B62: January | D62: ='5. Historical Wholesale'!D62 -> 0 | E62: ='4. UTRs and Sub-Transmission'!H52 -> 0 | F62: =D62*E62 -> 0 | H62: ='5. Historical Wholesale'!H62 -> 0 | I62: ='4. UTRs and Sub-Transmission'!H54 -> 0 | J62: =H62*I62 -> 0 | L62: ='5. Historical Wholesale'!L62 -> 0 | M62: ='4. UTRs and Sub-Transmission'!H56 -> 0 | N62: =L62*M62 -> 0 | P62: =J62+N62 -> 0
B63: February | D63: ='5. Historical Wholesale'!D63 -> 0 | E63: =E62 -> 0 | F63: =D63*E63 -> 0 | H63: ='5. Historical Wholesale'!H63 -> 0 | I63: =I62 -> 0 | J63: =H63*I63 -> 0 | L63: ='5. Historical Wholesale'!L63 -> 0 | M63: =M62 -> 0 | N63: =L63*M63 -> 0 | P63: 0
B64: March | D64: ='5. Historical Wholesale'!D64 -> 0 | E64: =E63 -> 0 | F64: 0 | H64: ='5. Historical Wholesale'!H64 -> 0 | I64: =I63 -> 0 | J64: 0 | L64: ='5. Historical Wholesale'!L64 -> 0 | M64: =M63 -> 0 | N64: 0 | P64: 0
B65: April | D65: ='5. Historical Wholesale'!D65 -> 0 | E65: 0 | F65: 0 | H65: ='5. Historical Wholesale'!H65 -> 0 | I65: 0 | J65: 0 | L65: ='5. Historical Wholesale'!L65 -> 0 | M65: =M64 -> 0 | N65: 0 | P65: 0
B66: May | D66: ='5. Historical Wholesale'!D66 -> 0 | E66: 0 | F66: 0 | H66: ='5. Historical Wholesale'!H66 -> 0 | I66: 0 | J66: 0 | L66: ='5. Historical Wholesale'!L66 -> 0 | M66: 0 | N66: 0 | P66: 0
B67: June | D67: ='5. Historical Wholesale'!D67 -> 0 | E67: 0 | F67: 0 | H67: ='5. Historical Wholesale'!H67 -> 0 | I67: 0 | J67: 0 | L67: ='5. Historical Wholesale'!L67 -> 0 | M67: 0 | N67: 0 | P67: 0
B68: July | D68: ='5. Historical Wholesale'!D68 -> 0 | E68: 0 | F68: 0 | H68: ='5. Historical Wholesale'!H68 -> 0 | I68: 0 | J68: 0 | L68: ='5. Historical Wholesale'!L68 -> 0 | M68: 0 | N68: 0 | P68: 0
B69: August | D69: ='5. Historical Wholesale'!D69 -> 0 | E69: 0 | F69: 0 | H69: ='5. Historical Wholesale'!H69 -> 0 | I69: 0 | J69: 0 | L69: ='5. Historical Wholesale'!L69 -> 0 | M69: 0 | N69: 0 | P69: 0
B70: September | D70: ='5. Historical Wholesale'!D70 -> 0 | E70: 0 | F70: 0 | H70: ='5. Historical Wholesale'!H70 -> 0 | I70: 0 | J70: 0 | L70: ='5. Historical Wholesale'!L70 -> 0 | M70: 0 | N70: 0 | P70: 0
B71: October | D71: ='5. Historical Wholesale'!D71 -> 0 | E71: 0 | F71: 0 | H71: ='5. Historical Wholesale'!H71 -> 0 | I71: 0 | J71: 0 | L71: ='5. Historical Wholesale'!L71 -> 0 | M71: 0 | N71: 0 | P71: 0
B72: November | D72: ='5. Historical Wholesale'!D72 -> 0 | E72: 0 | F72: 0 | H72: ='5. Historical Wholesale'!H72 -> 0 | I72: 0 | J72: 0 | L72: ='5. Historical Wholesale'!L72 -> 0 | M72: 0 | N72: 0 | P72: 0
B73: December | D73: ='5. Historical Wholesale'!D73 -> 0 | E73: 0 | F73: 0 | H73: ='5. Historical Wholesale'!H73 -> 0 | I73: 0 | J73: 0 | L73: ='5. Historical Wholesale'!L73 -> 0 | M73: 0 | N73: 0 | P73: 0
B75: Total | D75: =SUM(D62:D73) -> 0 | E75: =IF(D75<>0,F75/D75,0) -> 0 | F75: =SUM(F62:F73) -> 0 | H75: =SUM(H62:H73) -> 0 | I75: =IF(H75<>0,J75/H75,0) -> 0 | J75: =SUM(J62:J73) -> 0 | L75: =SUM(L62:L73) -> 0 | M75: =IF(L75<>0,N75/L75,0) -> 0 | N75: =SUM(N62:N73) -> 0 | P75: =SUM(P62:P73) -> 0
B77: ='5. Historical Wholesale'!B77 -> Add Extra Host Here (II) | D77: Network | H77: Line Connection | L77: Transformation Connection | P77: Total Connection
B79: Month | D79: Units Billed | E79: Rate | F79: Amount | H79: Units Billed | I79: Rate | J79: Amount | L79: Units Billed | M79: Rate | N79: Amount | P79: Amount
B81: January | D81: ='5. Historical Wholesale'!D81 -> 0 | E81: ='4. UTRs and Sub-Transmission'!H67 -> 0 | F81: =D81*E81 -> 0 | H81: ='5. Historical Wholesale'!H81 -> 0 | I81: ='4. UTRs and Sub-Transmission'!H69 -> 0 | J81: =H81*I81 -> 0 | L81: ='5. Historical Wholesale'!L81 -> 0 | M81: ='4. UTRs and Sub-Transmission'!H71 -> 0 | N81: =L81*M81 -> 0 | P81: =J81+N81 -> 0
B82: February | D82: ='5. Historical Wholesale'!D82 -> 0 | E82: =E81 -> 0 | F82: =D82*E82 -> 0 | H82: ='5. Historical Wholesale'!H82 -> 0 | I82: =I81 -> 0 | J82: =H82*I82 -> 0 | L82: ='5. Historical Wholesale'!L82 -> 0 | M82: =M81 -> 0 | N82: =L82*M82 -> 0 | P82: 0
B83: March | D83: ='5. Historical Wholesale'!D83 -> 0 | E83: =E82 -> 0 | F83: 0 | H83: ='5. Historical Wholesale'!H83 -> 0 | I83: =I82 -> 0 | J83: 0 | L83: ='5. Historical Wholesale'!L83 -> 0 | M83: =M82 -> 0 | N83: 0 | P83: 0
B84: April | D84: ='5. Historical Wholesale'!D84 -> 0 | E84: 0 | F84: 0 | H84: ='5. Historical Wholesale'!H84 -> 0 | I84: 0 | J84: 0 | L84: ='5. Historical Wholesale'!L84 -> 0 | M84: =M83 -> 0 | N84: 0 | P84: 0
B85: May | D85: ='5. Historical Wholesale'!D85 -> 0 | E85: 0 | F85: 0 | H85: ='5. Historical Wholesale'!H85 -> 0 | I85: 0 | J85: 0 | L85: ='5. Historical Wholesale'!L85 -> 0 | M85: 0 | N85: 0 | P85: 0
B86: June | D86: ='5. Historical Wholesale'!D86 -> 0 | E86: 0 | F86: 0 | H86: ='5. Historical Wholesale'!H86 -> 0 | I86: 0 | J86: 0 | L86: ='5. Historical Wholesale'!L86 -> 0 | M86: 0 | N86: 0 | P86: 0
B87: July | D87: ='5. Historical Wholesale'!D87 -> 0 | E87: 0 | F87: 0 | H87: ='5. Historical Wholesale'!H87 -> 0 | I87: 0 | J87: 0 | L87: ='5. Historical Wholesale'!L87 -> 0 | M87: 0 | N87: 0 | P87: 0
B88: August | D88: ='5. Historical Wholesale'!D88 -> 0 | E88: 0 | F88: 0 | H88: ='5. Historical Wholesale'!H88 -> 0 | I88: 0 | J88: 0 | L88: ='5. Historical Wholesale'!L88 -> 0 | M88: 0 | N88: 0 | P88: 0
B89: September | D89: ='5. Historical Wholesale'!D89 -> 0 | E89: 0 | F89: 0 | H89: ='5. Historical Wholesale'!H89 -> 0 | I89: 0 | J89: 0 | L89: ='5. Historical Wholesale'!L89 -> 0 | M89: 0 | N89: 0 | P89: 0
B90: October | D90: ='5. Historical Wholesale'!D90 -> 0 | E90: 0 | F90: 0 | H90: ='5. Historical Wholesale'!H90 -> 0 | I90: 0 | J90: 0 | L90: ='5. Historical Wholesale'!L90 -> 0 | M90: 0 | N90: 0 | P90: 0
B91: November | D91: ='5. Historical Wholesale'!D91 -> 0 | E91: 0 | F91: 0 | H91: ='5. Historical Wholesale'!H91 -> 0 | I91: 0 | J91: 0 | L91: ='5. Historical Wholesale'!L91 -> 0 | M91: 0 | N91: 0 | P91: 0
B92: December | D92: ='5. Historical Wholesale'!D92 -> 0 | E92: 0 | F92: 0 | H92: ='5. Historical Wholesale'!H92 -> 0 | I92: 0 | J92: 0 | L92: ='5. Historical Wholesale'!L92 -> 0 | M92: 0 | N92: 0 | P92: 0
B94: Total | D94: =SUM(D81:D92) -> 0 | E94: =IF(D94<>0,F94/D94,0) -> 0 | F94: =SUM(F81:F92) -> 0 | H94: =SUM(H81:H92) -> 0 | I94: =IF(H94<>0,J94/H94,0) -> 0 | J94: =SUM(J81:J92) -> 0 | L94: =SUM(L81:L92) -> 0 | M94: =IF(L94<>0,N94/L94,0) -> 0 | N94: =SUM(N81:N92) -> 0 | P94: =SUM(P81:P92) -> 0
B96: Total | D96: Network | H96: Line Connection | L96: Transformation Connection | P96: Total Connection
B98: Month | D98: Units Billed | E98: Rate | F98: Amount | H98: Units Billed | I98: Rate | J98: Amount | L98: Units Billed | M98: Rate | N98: Amount | P98: Amount
B100: January | D100: =D24+D43+D62+D81 -> 79926 | E100: =IF(D100<>0,F100/D100,0) -> 4.9103 | F100: =F24+F43+F62+F81 -> 392460.6378 | H100: =H24+H43+H62+H81 -> 44961.88 | I100: =IF(H100<>0,J100/H100,0) -> 0.6537 | J100: =J24+J43+J62+J81 -> 29391.58096 | L100: =L24+L43+L62+L81 -> 80053.97 | M100: =IF(L100<>0,N100/L100,0) -> 3.3041 | N100: =N24+N43+N62+N81 -> 264506.3223 | P100: =J100+N100 -> 293897.9032
B101: February | D101: =D25+D44+D63+D82 -> 80570.82 | E101: 4.9103 | F101: =F25+F44+F63+F82 -> 395626.8974 | H101: =H25+H44+H63+H82 -> 40959.89 | I101: 0.6537 | J101: =J25+J44+J63+J82 -> 26775.48009 | L101: =L25+L44+L63+L82 -> 81679.66 | M101: 3.3041 | N101: =N25+N44+N63+N82 -> 269877.7646 | P101: 296653.2447
B102: March | D102: 74298 | E102: 4.9103 | F102: 364825.4694 | H102: 38528.88 | I102: 0.6537 | J102: 25186.32886 | L102: 75614.44 | M102: 3.3041 | N102: 249837.6712 | P102: 275024.0001
B103: April | D103: 72045 | E103: 4.9103 | F103: 353762.5635 | H103: 36256.75 | I103: 0.6537 | J103: 23701.03747 | L103: 73051.15 | M103: 3.3041 | N103: 241368.3047 | P103: 265069.3422
B104: May | D104: 99758 | E104: 4.9103 | F104: 489841.7074 | H104: 52461.48 | I104: 0.6537 | J104: 34294.06948 | L104: 102835.88 | M104: 3.3041 | N104: 339780.0311 | P104: 374074.1006
B105: June | D105: 112256.177 | E105: 4.9103 | F105: 551211.5059 | H105: 59022.16 | I105: 0.6537 | J105: 38582.78599 | L105: 114506.76 | M105: 3.3041 | N105: 378341.7857 | P105: 416924.5717
B106: July | D106: 128172.2 | E106: 4.9103 | F106: 629363.9537 | H106: 66341.84 | I106: 0.6537 | J106: 43367.66081 | L106: 128296.4 | M106: 3.3041 | N106: 423904.1352 | P106: 467271.796
B107: August | D107: 112969.74 | E107: 4.9103 | F107: 554715.3143 | H107: 55455.78 | I107: 0.6537 | J107: 36251.44339 | L107: 116018.02 | M107: 3.3041 | N107: 383335.1399 | P107: 419586.5833
B108: September | D108: 121071.78 | E108: 4.9103 | F108: 594498.7613 | H108: 58873.16 | I108: 0.6537 | J108: 38485.38469 | L108: 122793.37 | M108: 3.3041 | N108: 405721.5738 | P108: 444206.9585
B109: October | D109: 90163.93 | E109: 4.9103 | F109: 442731.9455 | H109: 44862.58 | I109: 0.6537 | J109: 29326.66855 | L109: 90881.03 | M109: 3.3041 | N109: 300280.0112 | P109: 329606.6798
B110: November | D110: 82661.09 | E110: 4.9103 | F110: 405890.7502 | H110: 44288.88 | I110: 0.6537 | J110: 28951.64086 | L110: 82766.85 | M110: 3.3041 | N110: 273469.9491 | P110: 302421.5899
B111: December | D111: 76275.37 | E111: 4.9103 | F111: 374534.9493 | H111: 38433.82 | I111: 0.6537 | J111: 25124.18813 | L111: 76345.81 | M111: 3.3041 | N111: 252254.1908 | P111: 277378.379
B113: Total | D113: =SUM(D100:D111) -> 1130168.107 | E113: =IF(D113<>0,F113/D113,0) -> 4.9103 | F113: =SUM(F100:F111) -> 5549464.456 | H113: =SUM(H100:H111) -> 580447.1 | I113: =IF(H113<>0,J113/H113,0) -> 0.6537 | J113: =SUM(J100:J111) -> 379438.2693 | L113: =SUM(L100:L111) -> 1144843.34 | M113: =IF(L113<>0,N113/L113,0) -> 3.3041 | N113: =SUM(N100:N111) -> 3782676.88 | P113: =SUM(P100:P111) -> 4162115.149
N115: Low Voltage Switchgear Credit (if applicable) | P115: ='4. UTRs and Sub-Transmission'!J76 -> 0
N117: Total including deduction for Low Voltage Switchgear Credit | P117: =P113+P115 -> 4162115.149

Sheet 7. Forecast Wholesale
B13: The purpose of this sheet is to calculate the expected billing when forecasted 2025 Uniform Transmission Rates and Hydro One Sub-transmission Rates are applied against historical 2023 transmission units.
B20: IESO | D20: Network | H20: Line Connection | L20: Transformation Connection | P20: Total Connection
B22: Month | D22: Units Billed | E22: Rate | F22: Amount | H22: Units Billed | I22: Rate | J22: Amount | L22: Units Billed | M22: Rate | N22: Amount | P22: Amount
B24: January | D24: ='5. Historical Wholesale'!D24 -> 0 | E24: ='4. UTRs and Sub-Transmission'!L22 -> 6.37 | F24: =D24*E24 -> 0 | H24: ='5. Historical Wholesale'!H24 -> 0 | I24: ='4. UTRs and Sub-Transmission'!L24 -> 1 | J24: =H24*I24 -> 0 | L24: ='5. Historical Wholesale'!L24 -> 0 | M24: ='4. UTRs and Sub-Transmission'!L26 -> 3.39 | N24: =L24*M24 -> 0 | P24: =J24+N24 -> 0
B25: February | D25: ='5. Historical Wholesale'!D25 -> 0 | E25: =E24 -> 6.37 | F25: 0 | H25: ='5. Historical Wholesale'!H25 -> 0 | I25: =I24 -> 1 | J25: 0 | L25: ='5. Historical Wholesale'!L25 -> 0 | M25: =M24 -> 3.39 | N25: 0 | P25: 0
B26: March | D26: ='5. Historical Wholesale'!D26 -> 0 | E26: 6.37 | F26: 0 | H26: ='5. Historical Wholesale'!H26 -> 0 | I26: 1 | J26: 0 | L26: ='5. Historical Wholesale'!L26 -> 0 | M26: 3.39 | N26: 0 | P26: 0
B27: April | D27: ='5. Historical Wholesale'!D27 -> 0 | E27: 6.37 | F27: 0 | H27: ='5. Historical Wholesale'!H27 -> 0 | I27: 1 | J27: 0 | L27: ='5. Historical Wholesale'!L27 -> 0 | M27: 3.39 | N27: 0 | P27: 0
B28: May | D28: ='5. Historical Wholesale'!D28 -> 0 | E28: 6.37 | F28: 0 | H28: ='5. Historical Wholesale'!H28 -> 0 | I28: 1 | J28: 0 | L28: ='5. Historical Wholesale'!L28 -> 0 | M28: 3.39 | N28: 0 | P28: 0
B29: June | D29: ='5. Historical Wholesale'!D29 -> 0 | E29: 6.37 | F29: 0 | H29: ='5. Historical Wholesale'!H29 -> 0 | I29: 1 | J29: 0 | L29: ='5. Historical Wholesale'!L29 -> 0 | M29: 3.39 | N29: 0 | P29: 0
B30: July | D30: ='5. Historical Wholesale'!D30 -> 0 | E30: 6.37 | F30: 0 | H30: ='5. Historical Wholesale'!H30 -> 0 | I30: 1 | J30: 0 | L30: ='5. Historical Wholesale'!L30 -> 0 | M30: 3.39 | N30: 0 | P30: 0
B31: August | D31: ='5. Historical Wholesale'!D31 -> 0 | E31: 6.37 | F31: 0 | H31: ='5. Historical Wholesale'!H31 -> 0 | I31: 1 | J31: 0 | L31: ='5. Historical Wholesale'!L31 -> 0 | M31: 3.39 | N31: 0 | P31: 0
B32: September | D32: ='5. Historical Wholesale'!D32 -> 0 | E32: 6.37 | F32: 0 | H32: ='5. Historical Wholesale'!H32 -> 0 | I32: 1 | J32: 0 | L32: ='5. Historical Wholesale'!L32 -> 0 | M32: 3.39 | N32: 0 | P32: 0
B33: October | D33: ='5. Historical Wholesale'!D33 -> 0 | E33: 6.37 | F33: 0 | H33: ='5. Historical Wholesale'!H33 -> 0 | I33: 1 | J33: 0 | L33: ='5. Historical Wholesale'!L33 -> 0 | M33: 3.39 | N33: 0 | P33: 0
B34: November | D34: ='5. Historical Wholesale'!D34 -> 0 | E34: 6.37 | F34: 0 | H34: ='5. Historical Wholesale'!H34 -> 0 | I34: 1 | J34: 0 | L34: ='5. Historical Wholesale'!L34 -> 0 | M34: 3.39 | N34: 0 | P34: 0
B35: December | D35: ='5. Historical Wholesale'!D35 -> 0 | E35: 6.37 | F35: 0 | H35: ='5. Historical Wholesale'!H35 -> 0 | I35: 1 | J35: 0 | L35: ='5. Historical Wholesale'!L35 -> 0 | M35: 3.39 | N35: 0 | P35: 0
B37: Total | D37: =SUM(D24:D35) -> 0 | E37: =IF(D37<>0,F37/D37,0) -> 0 | F37: =SUM(F24:F35) -> 0 | H37: =SUM(H24:H35) -> 0 | I37: =IF(H37<>0,J37/H37,0) -> 0 | J37: =SUM(J24:J35) -> 0 | L37: =SUM(L24:L35) -> 0 | M37: =IF(L37<>0,N37/L37,0) -> 0 | N37: =SUM(N24:N35) -> 0 | P37: =SUM(P24:P35) -> 0
B39: Hydro One | D39: Network | H39: Line Connection | L39: Transformation Connection | P39: Total Connection
B41: Month | D41: Units Billed | E41: Rate | F41: Amount | H41: Units Billed | I41: Rate | J41: Amount | L41: Units Billed | M41: Rate | N41: Amount | P41: Amount
B43: January | D43: ='5. Historical Wholesale'!D43 -> 79926 | E43: ='4. UTRs and Sub-Transmission'!L35 -> 5.328 | F43: =D43*E43 -> 425845.728 | H43: ='5. Historical Wholesale'!H43 -> 44961.88 | I43: ='4. UTRs and Sub-Transmission'!L37 -> 0.6882 | J43: =H43*I43 -> 30942.76582 | L43: ='5. Historical Wholesale'!L43 -> 80053.97 | M43: ='4. UTRs and Sub-Transmission'!L39 -> 3.4894 | N43: =L43*M43 -> 279340.3229 | P43: =J43+N43 -> 310283.0887
B44: February | D44: ='5. Historical Wholesale'!D44 -> 80570.82 | E44: =E43 -> 5.328 | F44: 429281.329 | H44: ='5. Historical Wholesale'!H44 -> 40959.89 | I44: =I43 -> 0.6882 | J44: 28188.5963 | L44: ='5. Historical Wholesale'!L44 -> 81679.66 | M44: =M43 -> 3.4894 | N44: 285013.0056 | P44: 313201.6019
B45: March | D45: ='5. Historical Wholesale'!D45 -> 74298 | E45: 5.328 | F45: 395859.744 | H45: ='5. Historical Wholesale'!H45 -> 38528.88 | I45: 0.6882 | J45: 26515.57522 | L45: ='5. Historical Wholesale'!L45 -> 75614.44 | M45: 3.4894 | N45: 263849.0269 | P45: 290364.6022
B46: April | D46: ='5. Historical Wholesale'!D46 -> 72045 | E46: 5.328 | F46: 383855.76 | H46: ='5. Historical Wholesale'!H46 -> 36256.75 | I46: 0.6882 | J46: 24951.89535 | L46: ='5. Historical Wholesale'!L46 -> 73051.15 | M46: 3.4894 | N46: 254904.6828 | P46: 279856.5782
B47: May | D47: ='5. Historical Wholesale'!D47 -> 99758 | E47: 5.328 | F47: 531510.624 | H47: ='5. Historical Wholesale'!H47 -> 52461.48 | I47: 0.6882 | J47: 36103.99054 | L47: ='5. Historical Wholesale'!L47 -> 102835.88 | M47: 3.4894 | N47: 358835.5197 | P47: 394939.5102
B48: June | D48: ='5. Historical Wholesale'!D48 -> 112256.177 | E48: 5.328 | F48: 598100.9111 | H48: ='5. Historical Wholesale'!H48 -> 59022.16 | I48: 0.6882 | J48: 40619.05051 | L48: ='5. Historical Wholesale'!L48 -> 114506.76 | M48: 3.4894 | N48: 399559.8883 | P48: 440178.9389
B49: July | D49: ='5. Historical Wholesale'!D49 -> 128172.2 | E49: 5.328 | F49: 682901.4816 | H49: ='5. Historical Wholesale'!H49 -> 66341.84 | I49: 0.6882 | J49: 45656.45429 | L49: ='5. Historical Wholesale'!L49 -> 128296.4 | M49: 3.4894 | N49: 447677.4582 | P49: 493333.9124
B50: August | D50: ='5. Historical Wholesale'!D50 -> 112969.74 | E50: 5.328 | F50: 601902.7747 | H50: ='5. Historical Wholesale'!H50 -> 55455.78 | I50: 0.6882 | J50: 38164.6678 | L50: ='5. Historical Wholesale'!L50 -> 116018.02 | M50: 3.4894 | N50: 404833.279 | P50: 442997.9468
B51: September | D51: ='5. Historical Wholesale'!D51 -> 121071.78 | E51: 5.328 | F51: 645070.4438 | H51: ='5. Historical Wholesale'!H51 -> 58873.16 | I51: 0.6882 | J51: 40516.50871 | L51: ='5. Historical Wholesale'!L51 -> 122793.37 | M51: 3.4894 | N51: 428475.1853 | P51: 468991.694
B52: October | D52: ='5. Historical Wholesale'!D52 -> 90163.93 | E52: 5.328 | F52: 480393.419 | H52: ='5. Historical Wholesale'!H52 -> 44862.58 | I52: 0.6882 | J52: 30874.42756 | L52: ='5. Historical Wholesale'!L52 -> 90881.03 | M52: 3.4894 | N52: 317120.2661 | P52: 347994.6936
B53: November | D53: ='5. Historical Wholesale'!D53 -> 82661.09 | E53: 5.328 | F53: 440418.2875 | H53: ='5. Historical Wholesale'!H53 -> 44288.88 | I53: 0.6882 | J53: 30479.60722 | L53: ='5. Historical Wholesale'!L53 -> 82766.85 | M53: 3.4894 | N53: 288806.6464 | P53: 319286.2536
B54: December | D54: ='5. Historical Wholesale'!D54 -> 76275.37 | E54: 5.328 | F54: 406395.1714 | H54: ='5. Historical Wholesale'!H54 -> 38433.82 | I54: 0.6882 | J54: 26450.15492 | L54: ='5. Historical Wholesale'!L54 -> 76345.81 | M54: 3.4894 | N54: 266401.0694 | P54: 292851.2243
B56: Total | D56: =SUM(D43:D54) -> 1130168.107 | E56: =IF(D56<>0,F56/D56,0) -> 5.328 | F56: =SUM(F43:F54) -> 6021535.674 | H56: =SUM(H43:H54) -> 580447.1 | I56: =IF(H56<>0,J56/H56,0) -> 0.6882 | J56: =SUM(J43:J54) -> 399463.6942 | L56: =SUM(L43:L54) -> 1144843.34 | M56: =IF(L56<>0,N56/L56,0) -> 3.4894 | N56: =SUM(N43:N54) -> 3994816.351 | P56: =SUM(P43:P54) -> 4394280.045
B58: ='5. Historical Wholesale'!B58 -> Add Extra Host Here (I) | D58: Network | H58: Line Connection | L58: Transformation Connection | P58: Total Connection
B60: Month | D60: Units Billed | E60: Rate | F60: Amount | H60: Units Billed | I60: Rate | J60: Amount | L60: Units Billed | M60: Rate | N60: Amount | P60: Amount
B62: January | D62: ='5. Historical Wholesale'!D62 -> 0 | E62: ='4. UTRs and Sub-Transmission'!L52 -> 0 | F62: =D62*E62 -> 0 | H62: ='5. Historical Wholesale'!H62 -> 0 | I62: ='4. UTRs and Sub-Transmission'!L54 -> 0 | J62: =H62*I62 -> 0 | L62: ='5. Historical Wholesale'!L62 -> 0 | M62: ='4. UTRs and Sub-Transmission'!L56 -> 0 | N62: =L62*M62 -> 0 | P62: =J62+N62 -> 0
B63: February | D63: ='5. Historical Wholesale'!D63 -> 0 | E63: =E62 -> 0 | F63: 0 | H63: ='5. Historical Wholesale'!H63 -> 0 | I63: =I62 -> 0 | J63: 0 | L63: ='5. Historical Wholesale'!L63 -> 0 | M63: =M62 -> 0 | N63: 0 | P63: 0
B64: March | D64: ='5. Historical Wholesale'!D64 -> 0 | E64: 0 | F64: 0 | H64: ='5. Historical Wholesale'!H64 -> 0 | I64: 0 | J64: 0 | L64: ='5. Historical Wholesale'!L64 -> 0 | M64: 0 | N64: 0 | P64: 0
B65: April | D65: ='5. Historical Wholesale'!D65 -> 0 | E65: 0 | F65: 0 | H65: ='5. Historical Wholesale'!H65 -> 0 | I65: 0 | J65: 0 | L65: ='5. Historical Wholesale'!L65 -> 0 | M65: 0 | N65: 0 | P65: 0
B66: May | D66: ='5. Historical Wholesale'!D66 -> 0 | E66: 0 | F66: 0 | H66: ='5. Historical Wholesale'!H66 -> 0 | I66: 0 | J66: 0 | L66: ='5. Historical Wholesale'!L66 -> 0 | M66: 0 | N66: 0 | P66: 0
B67: June | D67: ='5. Historical Wholesale'!D67 -> 0 | E67: 0 | F67: 0 | H67: ='5. Historical Wholesale'!H67 -> 0 | I67: 0 | J67: 0 | L67: ='5. Historical Wholesale'!L67 -> 0 | M67: 0 | N67: 0 | P67: 0
B68: July | D68: ='5. Historical Wholesale'!D68 -> 0 | E68: 0 | F68: 0 | H68: ='5. Historical Wholesale'!H68 -> 0 | I68: 0 | J68: 0 | L68: ='5. Historical Wholesale'!L68 -> 0 | M68: 0 | N68: 0 | P68: 0
B69: August | D69: ='5. Historical Wholesale'!D69 -> 0 | E69: 0 | F69: 0 | H69: ='5. Historical Wholesale'!H69 -> 0 | I69: 0 | J69: 0 | L69: ='5. Historical Wholesale'!L69 -> 0 | M69: 0 | N69: 0 | P69: 0
B70: September | D70: ='5. Historical Wholesale'!D70 -> 0 | E70: 0 | F70: 0 | H70: ='5. Historical Wholesale'!H70 -> 0 | I70: 0 | J70: 0 | L70: ='5. Historical Wholesale'!L70 -> 0 | M70: 0 | N70: 0 | P70: 0
B71: October | D71: ='5. Historical Wholesale'!D71 -> 0 | E71: 0 | F71: 0 | H71: ='5. Historical Wholesale'!H71 -> 0 | I71: 0 | J71: 0 | L71: ='5. Historical Wholesale'!L71 -> 0 | M71: 0 | N71: 0 | P71: 0
B72: November | D72: ='5. Historical Wholesale'!D72 -> 0 | E72: 0 | F72: 0 | H72: ='5. Historical Wholesale'!H72 -> 0 | I72: 0 | J72: 0 | L72: ='5. Historical Wholesale'!L72 -> 0 | M72: 0 | N72: 0 | P72: 0
B73: December | D73: ='5. Historical Wholesale'!D73 -> 0 | E73: 0 | F73: 0 | H73: ='5. Historical Wholesale'!H73 -> 0 | I73: 0 | J73: 0 | L73: ='5. Historical Wholesale'!L73 -> 0 | M73: 0 | N73: 0 | P73: 0
B75: Total | D75: =SUM(D62:D73) -> 0 | E75: =IF(D75<>0,F75/D75,0) -> 0 | F75: =SUM(F62:F73) -> 0 | H75: =SUM(H62:H73) -> 0 | I75: =IF(H75<>0,J75/H75,0) -> 0 | J75: =SUM(J62:J73) -> 0 | L75: =SUM(L62:L73) -> 0 | M75: =IF(L75<>0,N75/L75,0) -> 0 | N75: =SUM(N62:N73) -> 0 | P75: =SUM(P62:P73) -> 0
B77: ='5. Historical Wholesale'!B77 -> Add Extra Host Here (II) | D77: Network | H77: Line Connection | L77: Transformation Connection | P77: Total Connection
B79: Month | D79: Units Billed | E79: Rate | F79: Amount | H79: Units Billed | I79: Rate | J79: Amount | L79: Units Billed | M79: Rate | N79: Amount | P79: Amount
B81: January | D81: ='5. Historical Wholesale'!D81 -> 0 | E81: ='4. UTRs and Sub-Transmission'!L67 -> 0 | F81: =D81*E81 -> 0 | H81: ='5. Historical Wholesale'!H81 -> 0 | I81: ='4. UTRs and Sub-Transmission'!L69 -> 0 | J81: =H81*I81 -> 0 | L81: ='5. Historical Wholesale'!L81 -> 0 | M81: ='4. UTRs and Sub-Transmission'!L71 -> 0 | N81: =L81*M81 -> 0 | P81: =J81+N81 -> 0
B82: February | D82: ='5. Historical Wholesale'!D82 -> 0 | E82: =E81 -> 0 | F82: 0 | H82: ='5. Historical Wholesale'!H82 -> 0 | I82: =I81 -> 0 | J82: 0 | L82: ='5. Historical Wholesale'!L82 -> 0 | M82: =M81 -> 0 | N82: 0 | P82: 0
B83: March | D83: ='5. Historical Wholesale'!D83 -> 0 | E83: 0 | F83: 0 | H83: ='5. Historical Wholesale'!H83 -> 0 | I83: 0 | J83: 0 | L83: ='5. Historical Wholesale'!L83 -> 0 | M83: 0 | N83: 0 | P83: 0
B84: April | D84: ='5. Historical Wholesale'!D84 -> 0 | E84: 0 | F84: 0 | H84: ='5. Historical Wholesale'!H84 -> 0 | I84: 0 | J84: 0 | L84: ='5. Historical Wholesale'!L84 -> 0 | M84: 0 | N84: 0 | P84: 0
B85: May | D85: ='5. Historical Wholesale'!D85 -> 0 | E85: 0 | F85: 0 | H85: ='5. Historical Wholesale'!H85 -> 0 | I85: 0 | J85: 0 | L85: ='5. Historical Wholesale'!L85 -> 0 | M85: 0 | N85: 0 | P85: 0
B86: June | D86: ='5. Historical Wholesale'!D86 -> 0 | E86: 0 | F86: 0 | H86: ='5. Historical Wholesale'!H86 -> 0 | I86: 0 | J86: 0 | L86: ='5. Historical Wholesale'!L86 -> 0 | M86: 0 | N86: 0 | P86: 0
B87: July | D87: ='5. Historical Wholesale'!D87 -> 0 | E87: 0 | F87: 0 | H87: ='5. Historical Wholesale'!H87 -> 0 | I87: 0 | J87: 0 | L87: ='5. Historical Wholesale'!L87 -> 0 | M87: 0 | N87: 0 | P87: 0
B88: August | D88: ='5. Historical Wholesale'!D88 -> 0 | E88: 0 | F88: 0 | H88: ='5. Historical Wholesale'!H88 -> 0 | I88: 0 | J88: 0 | L88: ='5. Historical Wholesale'!L88 -> 0 | M88: 0 | N88: 0 | P88: 0
B89: September | D89: ='5. Historical Wholesale'!D89 -> 0 | E89: 0 | F89: 0 | H89: ='5. Historical Wholesale'!H89 -> 0 | I89: 0 | J89: 0 | L89: ='5. Historical Wholesale'!L89 -> 0 | M89: 0 | N89: 0 | P89: 0
B90: October | D90: ='5. Historical Wholesale'!D90 -> 0 | E90: 0 | F90: 0 | H90: ='5. Historical Wholesale'!H90 -> 0 | I90: 0 | J90: 0 | L90: ='5. Historical Wholesale'!L90 -> 0 | M90: 0 | N90: 0 | P90: 0
B91: November | D91: ='5. Historical Wholesale'!D91 -> 0 | E91: 0 | F91: 0 | H91: ='5. Historical Wholesale'!H91 -> 0 | I91: 0 | J91: 0 | L91: ='5. Historical Wholesale'!L91 -> 0 | M91: 0 | N91: 0 | P91: 0
B92: December | D92: ='5. Historical Wholesale'!D92 -> 0 | E92: 0 | F92: 0 | H92: ='5. Historical Wholesale'!H92 -> 0 | I92: 0 | J92: 0 | L92: ='5. Historical Wholesale'!L92 -> 0 | M92: 0 | N92: 0 | P92: 0
B94: Total | D94: =SUM(D81:D92) -> 0 | E94: =IF(D94<>0,F94/D94,0) -> 0 | F94: =SUM(F81:F92) -> 0 | H94: =SUM(H81:H92) -> 0 | I94: =IF(H94<>0,J94/H94,0) -> 0 | J94: =SUM(J81:J92) -> 0 | L94: =SUM(L81:L92) -> 0 | M94: =IF(L94<>0,N94/L94,0) -> 0 | N94: =SUM(N81:N92) -> 0 | P94: =SUM(P81:P92) -> 0
B96: Total | D96: Network | H96: Line Connection | L96: Transformation Connection | P96: Total Connection
B98: Month | D98: Units Billed | E98: Rate | F98: Amount | H98: Units Billed | I98: Rate | J98: Amount | L98: Units Billed | M98: Rate | N98: Amount | P98: Amount
B100: January | D100: =D24+D43+D62+D81 -> 79926 | E100: =IF(D100<>0,F100/D100,0) -> 5.328 | F100: =F24+F43+F62+F81 -> 425845.728 | H100: =H24+H43+H62+H81 -> 44961.88 | I100: =IF(H100<>0,J100/H100,0) -> 0.6882 | J100: =J24+J43+J62+J81 -> 30942.76582 | L100: =L24+L43+L62+L81 -> 80053.97 | M100: =IF(L100<>0,N100/L100,0) -> 3.4894 | N100: =N24+N43+N62+N81 -> 279340.3229 | P100: =J100+N100 -> 310283.0887
B101: February | D101: =D25+D44+D63+D82 -> 80570.82 | E101: 5.328 | F101: 429281.329 | H101: =H25+H44+H63+H82 -> 40959.89 | I101: 0.6882 | J101: =J25+J44+J63+J82 -> 28188.5963 | L101: =L25+L44+L63+L82 -> 81679.66 | M101: 3.4894 | N101: =N25+N44+N63+N82 -> 285013.0056 | P101: 313201.6019
B102: March | D102: 74298 | E102: 5.328 | F102: 395859.744 | H102: =H26+H45+H64+H83 -> 38528.88 | I102: 0.6882 | J102: =J26+J45+J64+J83 -> 26515.57522 | L102: =L26+L45+L64+L83 -> 75614.44 | M102: 3.4894 | N102: =N26+N45+N64+N83 -> 263849.0269 | P102: 290364.6022
B103: April | D103: 72045 | E103: 5.328 | F103: 383855.76 | H103: =H27+H46+H65+H84 -> 36256.75 | I103: 0.6882 | J103: =J27+J46+J65+J84 -> 24951.89535 | L103: =L27+L46+L65+L84 -> 73051.15 | M103: 3.4894 | N103: =N27+N46+N65+N84 -> 254904.6828 | P103: 279856.5782
B104: May | D104: 99758 | E104: 5.328 | F104: 531510.624 | H104: =H28+H47+H66+H85 -> 52461.48 | I104: 0.6882 | J104: =J28+J47+J66+J85 -> 36103.99054 | L104: =L28+L47+L66+L85 -> 102835.88 | M104: 3.4894 | N104: =N28+N47+N66+N85 -> 358835.5197 | P104: 394939.5102
B105: June | D105: 112256.177 | E105: 5.328 | F105: 598100.9111 | H105: =H29+H48+H67+H86 -> 59022.16 | I105: 0.6882 | J105: =J29+J48+J67+J86 -> 40619.05051 | L105: =L29+L48+L67+L86 -> 114506.76 | M105: 3.4894 | N105: =N29+N48+N67+N86 -> 399559.8883 | P105: 440178.9389
B106: July | D106: 128172.2 | E106: 5.328 | F106: 682901.4816 | H106: =H30+H49+H68+H87 -> 66341.84 | I106: 0.6882 | J106: =J30+J49+J68+J87 -> 45656.45429 | L106: =L30+L49+L68+L87 -> 128296.4 | M106: 3.4894 | N106: =N30+N49+N68+N87 -> 447677.4582 | P106: 493333.9124
B107: August | D107: 112969.74 | E107: 5.328 | F107: 601902.7747 | H107: =H31+H50+H69+H88 -> 55455.78 | I107: 0.6882 | J107: =J31+J50+J69+J88 -> 38164.6678 | L107: =L31+L50+L69+L88 -> 116018.02 | M107: 3.4894 | N107: =N31+N50+N69+N88 -> 404833.279 | P107: 442997.9468
B108: September | D108: 121071.78 | E108: 5.328 | F108: 645070.4438 | H108: =H32+H51+H70+H89 -> 58873.16 | I108: 0.6882 | J108: =J32+J51+J70+J89 -> 40516.50871 | L108: =L32+L51+L70+L89 -> 122793.37 | M108: 3.4894 | N108: =N32+N51+N70+N89 -> 428475.1853 | P108: 468991.694
B109: October | D109: 90163.93 | E109: 5.328 | F109: 480393.419 | H109: =H33+H52+H71+H90 -> 44862.58 | I109: 0.6882 | J109: =J33+J52+J71+J90 -> 30874.42756 | L109: =L33+L52+L71+L90 -> 90881.03 | M109: 3.4894 | N109: =N33+N52+N71+N90 -> 317120.2661 | P109: 347994.6936
B110: November | D110: 82661.09 | E110: 5.328 | F110: 440418.2875 | H110: =H34+H53+H72+H91 -> 44288.88 | I110: 0.6882 | J110: =J34+J53+J72+J91 -> 30479.60722 | L110: =L34+L53+L72+L91 -> 82766.85 | M110: 3.4894 | N110: =N34+N53+N72+N91 -> 288806.6464 | P110: 319286.2536
B111: December | D111: 76275.37 | E111: 5.328 | F111: 406395.1714 | H111: =H35+H54+H73+H92 -> 38433.82 | I111: 0.6882 | J111: =J35+J54+J73+J92 -> 26450.15492 | L111: =L35+L54+L73+L92 -> 76345.81 | M111: 3.4894 | N111: =N35+N54+N73+N92 -> 266401.0694 | P111: 292851.2243
B113: Total | D113: =SUM(D100:D111) -> 1130168.107 | E113: =IF(D113<>0,F113/D113,0) -> 5.328 | F113: =SUM(F100:F111) -> 6021535.674 | H113: =SUM(H100:H111) -> 580447.1 | I113: =IF(H113<>0,J113/H113,0) -> 0.6882 | J113: =SUM(J100:J111) -> 399463.6942 | L113: =SUM(L100:L111) -> 1144843.34 | M113: =IF(L113<>0,N113/L113,0) -> 3.4894 | N113: =SUM(N100:N111) -> 3994816.351 | P113: =SUM(P100:P111) -> 4394280.045
N115: Low Voltage Switchgear Credit (if applicable) | P115: ='4. UTRs and Sub-Transmission'!L76 -> 0
N117: Total including deduction for Low Voltage Switchgear Credit | P117: =P113+P115 -> 4394280.045

Sheet 8. RTSR Rates to Forecast
A13: The purpose of this sheet is to re-align the current RTS Network Rates to recover current wholesale network costs.
A15: Rate Class | B15: Rate Description | C15: Unit | D15: Current RTSR-Network | E15: Loss Adjusted Billed kWh | F15: Billed kW | G15: Billed Amount | H15: Billed Amount % | I15: Current Wholesale Billing | J15: Adjusted RTSR Network
A17: RESIDENTIAL SERVICE CLASSIFICATION | B17: Retail Transmission Rate - Network Service Rate | C17: $/kWh | D17: 0.0093 | E17: 268195156.5 | G17: =ROUND(D17*E17, 2) -> 2494214.96 | H17: =G17/5341702.98 -> 0.4669325437 | I17: =H17*total_current_wholesale_network -> 2591225.554 | J17: =IF(ISERROR(I17/E17), 0, I17/E17) -> 0.009661716446
A18: GENERAL SERVICE LESS THAN 50 KW SERVICE CLASSIFICATION | B18: Retail Transmission Rate - Network Service Rate | C18: $/kWh | D18: 0.0079 | E18: 65540323.98 | G18: =ROUND(D18*E18, 2) -> 517768.56 | H18: =G18/5341702.98 -> 0.0969294927 | I18: =H18*total_current_wholesale_network -> 537906.7745 | J18: =IF(ISERROR(I18/E18), 0, I18/E18) -> 0.008207264502
A19: GENERAL SERVICE 50 to 4,999 kW SERVICE CLASSIFICATION | B19: Retail Transmission Rate - Network Service Rate - Interval Metered | C19: $/kW | D19: 4.0579 | E19: 189932138 | F19: 566315 | G19: =ROUND(D19*F19, 2) -> 2298049.64 | H19: =G19/5341702.98 -> 0.4302091765 | I19: =H19*total_current_wholesale_network -> 2387430.533 | J19: =IF(ISERROR(I19/F19), 0, I19/F19) -> 4.215728938
A20: EMBEDDED DISTRIBUTOR | B20: Retail Transmission Rate - Network Service Rate | C20: $/kW | E20: 35498211.59 | F20: 90976 | G20: =ROUND(D20*F20, 2) -> 0 | H20: =G20/5341702.98 -> 0 | I20: =H20*total_current_wholesale_network -> 0 | J20: =IF(ISERROR(I20/F20), 0, I20/F20) -> 0
A21: UNMETERED SCATTERED LOAD SERVICE CLASSIFICATION | B21: Retail Transmission Rate - Network Service Rate | C21: $/kWh | D21: 0.0079 | E21: 1458707.815 | G21: =ROUND(D21*E21, 2) -> 11523.79 | H21: =G21/5341702.98 -> 0.002157325116 | I21: =H21*total_current_wholesale_network -> 11971.99905 | J21: =IF(ISERROR(I21/E21), 0, I21/E21) -> 0.008207263258
A22: SENTINEL LIGHTING SERVICE CLASSIFICATION | B22: Retail Transmission Rate - Network Service Rate | C22: $/kW | D22: 2.5362 | E22: 279570.503 | F22: 736 | G22: =ROUND(D22*F22, 2) -> 1866.64 | H22: =G22/5341702.98 -> 0.0003494466104 | I22: =H22*total_current_wholesale_network -> 1939.241543 | J22: =IF(ISERROR(I22/F22), 0, I22/F22) -> 2.634839054
A23: STREET LIGHTING SERVICE CLASSIFICATION | B23: Retail Transmission Rate - Network Service Rate | C23: $/kW | D23: 2.5006 | E23: 2500973.772 | F23: 7310 | G23: =ROUND(D23*F23, 2) -> 18279.39 | H23: =G23/5341702.98 -> 0.003422015426 | I23: =H23*total_current_wholesale_network -> 18990.35298 | J23: =IF(ISERROR(I23/F23), 0, I23/F23) -> 2.597859504
A25: The purpose of this table is to re-align the current RTS Connection Rates to recover current wholesale connection costs.
A26: Rate Class | B26: Rate Description | C26: Unit | D26: Current RTSR-Connection | E26: Loss Adjusted Billed kWh | F26: Billed kW | G26: Billed Amount | H26: Billed Amount % | I26: Current Wholesale Billing | J26: Adjusted RTSR-Connection
A28: RESIDENTIAL SERVICE CLASSIFICATION | B28: Retail Transmission Rate - Line and Transformation Connection Service Rate | C28: $/kWh | D28: 0.0064 | E28: 268195156.5 | G28: =ROUND(D28*E28, 2) -> 1716449 | H28: =G28/3692998.05 -> 0.4647847025 | I28: =H28*Total_Current_Wholesale_Lineplus -> 1934487.451 | J28: =IF(ISERROR(I28/E28), 0, I28/E28) -> 0.007212984293
A29: GENERAL SERVICE LESS THAN 50 KW SERVICE CLASSIFICATION | B29: Retail Transmission Rate - Line and Transformation Connection Service Rate - Interval Metered | C29: $/kWh | D29: 0.0061 | E29: 65540323.98 | G29: =ROUND(D29*E29, 2) -> 399795.98 | H29: =G29/3692998.05 -> 0.1082578367 | I29: =H29*Total_Current_Wholesale_Lineplus -> 450581.5823 | J29: =IF(ISERROR(I29/E29), 0, I29/E29) -> 0.006874875724
A30: GENERAL SERVICE 50 to 4,999 kW SERVICE CLASSIFICATION | B30: Retail Transmission Rate - Line and Transformation Connection Service Rate | C30: $/kW | D30: 2.7419 | E30: 189932138 | F30: 566315 | G30: =ROUND(D30*F30, 2) -> 1552779.1 | H30: =G30/3692998.05 -> 0.4204657243 | I30: =H30*Total_Current_Wholesale_Lineplus -> 1750026.761 | J30: =IF(ISERROR(I30/F30), 0, I30/F30) -> 3.090200261
A31: EMBEDDED DISTRIBUTOR | B31: Retail Transmission Rate - Line and Transformation Connection Service Rate | C31: $/kW | E31: 35501318.09 | F31: 90976 | G31: =ROUND(D31*F31, 2) -> 0 | H31: =G31/3692998.05 -> 0 | I31: =H31*Total_Current_Wholesale_Lineplus -> 0 | J31: =IF(ISERROR(I31/F31), 0, I31/F31) -> 0
A32: UNMETERED SCATTERED LOAD SERVICE CLASSIFICATION | B32: Retail Transmission Rate - Line and Transformation Connection Service Rate | C32: $/kWh | D32: 0.0061 | E32: 1458707.815 | G32: =ROUND(D32*E32, 2) -> 8898.12 | H32: =G32/3692998.05 -> 0.002409456999 | I32: =H32*Total_Current_Wholesale_Lineplus -> 10028.43748 | J32: =IF(ISERROR(I32/E32), 0, I32/E32) -> 0.006874877462
A33: SENTINEL LIGHTING SERVICE CLASSIFICATION | B33: Retail Transmission Rate - Line and Transformation Connection Service Rate | C33: $/kW | D33: 1.8847 | E33: 279570.503 | F33: 736 | G33: =ROUND(D33*F33, 2) -> 1387.14 | H33: =G33/3692998.05 -> 0.0003756135208 | I33: =H33*Total_Current_Wholesale_Lineplus -> 1563.346725 | J33: =IF(ISERROR(I33/F33), 0, I33/F33) -> 2.124112398
A34: STREET LIGHTING SERVICE CLASSIFICATION | B34: Retail Transmission Rate - Line and Transformation Connection Service Rate | C34: $/kW | D34: 1.8726 | E34: 2500973.772 | F34: 7310 | G34: =ROUND(D34*F34, 2) -> 13688.71 | H34: =G34/3692998.05 -> 0.003706665916 | I34: =H34*Total_Current_Wholesale_Lineplus -> 15427.57036 | J34: =IF(ISERROR(I34/F34), 0, I34/F34) -> 2.110474742
A36: The purpose of this table is to update the re-aligned RTS Network Rates to recover future wholesale network costs.
A37: Rate Class | B37: Rate Description | C37: Unit | D37: Adjusted RTSR-Network | E37: Loss Adjusted Billed kWh | F37: Billed kW | G37: Billed Amount | H37: Billed Amount % | I37: Forecast Wholesale Billing | J37: Proposed RTSR-Network
A39: RESIDENTIAL SERVICE CLASSIFICATION | B39: Retail Transmission Rate - Network Service Rate | C39: $/kWh | D39: 0.009661716446 | E39: 268195156.5 | G39: =IF(ISERROR(D39*E39), 0, ROUND(D39*E39, 2)) -> 2591225.55 | H39: =G39/5549464.44 -> 0.4669325442 | I39: =H39*forecast_wholesale_network -> 2811650.972 | J39: =IF(ISERROR(I39/E39), 0, I39/E39) -> 0.01048360086
A40: GENERAL SERVICE LESS THAN 50 KW SERVICE CLASSIFICATION | B40: Retail Transmission Rate - Network Service Rate | C40: $/kWh | D40: 0.008207264502 | E40: 65540323.98 | G40: =IF(ISERROR(D40*E40), 0, ROUND(D40*E40, 2)) -> 537906.77 | H40: =G40/5549464.44 -> 0.09692949217 | I40: =H40*forecast_wholesale_network -> 583664.395 | J40: =IF(ISERROR(I40/E40), 0, I40/E40) -> 0.008905424318
A41: GENERAL SERVICE 50 to 4,999 kW SERVICE CLASSIFICATION | B41: Retail Transmission Rate - Network Service Rate - Interval Metered | C41: $/kW | D41: 4.215728938 | E41: 189932138 | F41: 566315 | G41: =ROUND(D41*F41, 2) -> 2387430.53 | H41: =G41/5549464.44 -> 0.4302091771 | I41: =H41*forecast_wholesale_network -> 2590519.907 | J41: =IF(ISERROR(I41/F41), 0, I41/F41) -> 4.574344503
A42: EMBEDDED DISTRIBUTOR | B42: Retail Transmission Rate - Network Service Rate | C42: $/kW | D42: 0 | E42: 35498211.59 | F42: 90976 | G42: =ROUND(D42*F42, 2) -> 0 | H42: =G42/5549464.44 -> 0 | I42: =H42*forecast_wholesale_network -> 0 | J42: =IF(ISERROR(I42/F42), 0, I42/F42) -> 0
A43: UNMETERED SCATTERED LOAD SERVICE CLASSIFICATION | B43: Retail Transmission Rate - Network Service Rate | C43: $/kWh | D43: 0.008207263258 | E43: 1458707.815 | G43: =IF(ISERROR(D43*E43), 0, ROUND(D43*E43, 2)) -> 11972 | H43: =G43/5549464.44 -> 0.002157325293 | I43: =H43*forecast_wholesale_network -> 12990.41121 | J43: =IF(ISERROR(I43/E43), 0, I43/E43) -> 0.008905423749
A44: SENTINEL LIGHTING SERVICE CLASSIFICATION | B44: Retail Transmission Rate - Network Service Rate | C44: $/kW | D44: 2.634839054 | E44: 279570.503 | F44: 736 | G44: =ROUND(D44*F44, 2) -> 1939.24 | H44: =G44/5549464.44 -> 0.0003494463332 | I44: =H44*forecast_wholesale_network -> 2104.203562 | J44: =IF(ISERROR(I44/F44), 0, I44/F44) -> 2.858972231
A45: STREET LIGHTING SERVICE CLASSIFICATION | B45: Retail Transmission Rate - Network Service Rate | C45: $/kW | D45: 2.597859504 | E45: 2500973.772 | F45: 7310 | G45: =ROUND(D45*F45, 2) -> 18990.35 | H45: =G45/5549464.44 -> 0.0034220149 | I45: =H45*forecast_wholesale_network -> 20605.7848 | J45: =IF(ISERROR(I45/F45), 0, I45/F45) -> 2.818848809
A47: The purpose of this table is to update the re-aligned RTS Connection Rates to recover future wholesale connection costs.
A48: Rate Class | B48: Rate Description | C48: Unit | D48: Adjusted RTSR-Connection | E48: Loss Adjusted Billed kWh | F48: Billed kW | G48: Billed Amount | H48: Billed Amount % | I48: Forecast Wholesale Billing | J48: Proposed RTSR-Connection
A50: RESIDENTIAL SERVICE CLASSIFICATION | B50: Retail Transmission Rate - Line and Transformation Connection Service Rate | C50: $/kWh | D50: 0.007212984293 | E50: 268195156.5 | G50: =ROUND(D50*E50, 2) -> 1934487.45 | H50: =G50/4162115.15 -> 0.4647847021 | I50: =H50*forecast_wholesale_lineplus -> 2042394.141 | J50: =IF(ISERROR(I50/E50), 0, I50/E50) -> 0.007615328211
A51: GENERAL SERVICE LESS THAN 50 KW SERVICE CLASSIFICATION | B51: Retail Transmission Rate - Line and Transformation Connection Service Rate - Interval Metered | C51: $/kWh | D51: 0.006874875724 | E51: 65540323.98 | G51: =ROUND(D51*E51, 2) -> 450581.58 | H51: =G51/4162115.15 -> 0.1082578362 | I51: =H51*forecast_wholesale_lineplus -> 475715.2491 | J51: =IF(ISERROR(I51/E51), 0, I51/E51) -> 0.007258359743
A52: GENERAL SERVICE 50 to 4,999 kW SERVICE CLASSIFICATION | B52: Retail Transmission Rate - Line and Transformation Connection Service Rate | C52: $/kW | D52: 3.090200261 | E52: 189932138 | F52: 566315 | G52: =ROUND(D52*F52, 2) -> 1750026.76 | H52: =G52/4162115.15 -> 0.420465724 | I52: =H52*forecast_wholesale_lineplus -> 1847644.141 | J52: =IF(ISERROR(I52/F52), 0, I52/F52) -> 3.262573198
A53: EMBEDDED DISTRIBUTOR | B53: Retail Transmission Rate - Line and Transformation Connection Service Rate | C53: $/kW | D53: 0 | E53: 35501318.09 | F53: 90976 | G53: =ROUND(D53*F53, 2) -> 0 | H53: =G53/4162115.15 -> 0 | I53: =H53*forecast_wholesale_lineplus -> 0 | J53: =IF(ISERROR(I53/F53), 0, I53/F53) -> 0 | K53: Confirm that the correct value is shown in the highlighted cell
A54: UNMETERED SCATTERED LOAD SERVICE CLASSIFICATION | B54: Retail Transmission Rate - Line and Transformation Connection Service Rate | C54: $/kWh | D54: 0.006874877462 | E54: 1458707.815 | G54: =ROUND(D54*E54, 2) -> 10028.44 | H54: =G54/4162115.15 -> 0.002409457605 | I54: =H54*forecast_wholesale_lineplus -> 10587.83147 | J54: =IF(ISERROR(I54/E54), 0, I54/E54) -> 0.007258363441
A55: SENTINEL LIGHTING SERVICE CLASSIFICATION | B55: Retail Transmission Rate - Line and Transformation Connection Service Rate | C55: $/kW | D55: 2.124112398 | E55: 279570.503 | F55: 736 | G55: =ROUND(D55*F55, 2) -> 1563.35 | H55: =G55/4162115.15 -> 0.0003756143075 | I55: =H55*forecast_wholesale_lineplus -> 1650.554456 | J55: =IF(ISERROR(I55/F55), 0, I55/F55) -> 2.242601163
A56: STREET LIGHTING SERVICE CLASSIFICATION | B56: Retail Transmission Rate - Line and Transformation Connection Service Rate | C56: $/kW | D56: 2.110474742 | E56: 2500973.772 | F56: 7310 | G56: =ROUND(D56*F56, 2) -> 15427.57 | H56: =G56/4162115.15 -> 0.003706665828 | I56: =H56*forecast_wholesale_lineplus -> 16288.12768 | J56: =IF(ISERROR(I56/F56), 0, I56/F56) -> 2.228198041

Sheet 9. LV Rates
A13: The purpose of this sheet is to calculate Low Voltage service rates based on a forecasted host distribution expense.
B15: Low Voltage Charges
B17: Host I: HONI
D18: 2020 | E18: =D18+1 -> 2021 | F18: 2022 | G18: 2023 | H18: =G18+1&" Forecast" -> 2024 Forecast | I18: =G18+2&" Forecast" -> 2025 Forecast | J18: Forecast Methodology
B19: Host Volume | D19: 77725.98 | E19: 1111832.07 | F19: 1134333.35 | G19: 1115847.17 | H19: =+G19 -> 1115847.17 | I19: =+G19 -> 1115847.17 | J19: 2023 volumes at 2024 rates
B20: Host Charges | D20: 185192.88 | E20: 2640369.12 | F20: 2036862.05 | G20: 1699062.16 | H20: 1778731.86 | I20: 1778731.86
B22: Host II:
D23: =D18 -> 2020 | E23: 2021 | F23: 2022 | G23: 2023 | H23: 2024 Forecast | I23: 2025 Forecast | J23: Forecast Methodology
B24: Host Volume
B25: Host Charges
B27: Instructions: The methodology of the test year forecast for host charges is at the distributor's discretion. Please provide a brief descriptor of the methodology used here, and a complete description with rationale in the filed evidence.
B28: Regardless of the methodology chosen, please ensure that the Host Charges for the test year is completed for each host distributor.
B30: Low Voltage Rates
B32: Proposed Loss Factor | C32: 1.0425
B34: Instructions: Please enter the rate class volumes consistent with the proposed load forecast, and proposed loss factor.
B35: If Low Voltage charges are applied based on volumes uplifted for losses, please select Loss Adjusted Volume in cell J37
B37: Rate Class | C37: Unit | D37: =D18+6&" Forecasted Volume" -> 2026 Forecasted Volume | E37: RTSR Connection Rate | F37: Loss Adjusted Volume | G37: RTSR Connection Revenue | H37: Allocation | I37: Allocated Low Voltage Charges | J37: Delivered Volume | K37: Low Voltage Rates
B39: RESIDENTIAL SERVICE CLASSIFICATION | C39: $/kWh | D39: 280949153 | E39: 0.007212984286 | F39: =IF(C39="$/kWh",D39*C$32,D39) -> 292889492 | G39: =F39*E39 -> 2112607.303 | H39: =G39/$G47 -> 0.4376745386 | I39: =H39*(I20+I25) -> 778505.6461 | J39: =IF(J$37="Loss Adjusted Volume",F39,D39) -> 280949153 | K39: =IFERROR(I39/J39,0) -> 0.002770984136
B40: GENERAL SERVICE LESS THAN 50 KW SERVICE CLASSIFICATION | C40: $/kWh | D40: 70095830 | E40: 0.006874875687 | F40: 73074902.78 | G40: 502380.8724 | H40: =G40/$G47 -> 0.1040795969 | I40: =H40*(I20+I25) -> 185129.695 | J40: 70095830 | K40: 0.00264109427
B41: GENERAL SERVICE 50 to 4,999 kW SERVICE CLASSIFICATION | C41: $/kW | D41: 707026 | E41: 3.090200259 | F41: 707026 | G41: 2184851.928 | H41: =G41/$G47 -> 0.4526416518 | I41: =H41*(I20+I25) -> 805128.1273 | J41: 707026 | K41: 1.13875321
B42: EMBEDDED DISTRIBUTOR | C42: $/kW | D42: 94898 | E42: 0 | F42: 94898 | G42: 0 | H42: =G42/$G47 -> 0 | I42: =H42*(I20+I25) -> 0 | J42: 94898 | K42: 0
B43: UNMETERED SCATTERED LOAD SERVICE CLASSIFICATION | C43: $/kWh | D43: 1394244 | E43: 0.00687487919 | F43: 1453499.37 | G43: 9992.632571 | H43: =G43/$G47 -> 0.002070200573 | I43: =H43*(I20+I25) -> 3682.331715 | J43: 1394244 | K43: 0.002641095615
B44: SENTINEL LIGHTING SERVICE CLASSIFICATION | C44: $/kW | D44: 724 | E44: 2.124116847 | F44: 724 | G44: 1537.860597 | H44: =G44/$G47 -> 0.0003186027173 | I44: =H44*(I20+I25) -> 566.7088039 | J44: 724 | K44: 0.7827469667
B45: STREET LIGHTING SERVICE CLASSIFICATION | C45: $/kW | D45: 7354 | E45: 2.110474692 | F45: 7354 | G45: 15520.43088 | H45: =G45/$G47 -> 0.00321540942 | I45: =H45*(I20+I25) -> 5719.351179 | J45: 7354 | K45: 0.7777197687
H46: =G46/$G47 -> 0
B47: TOTAL | G47: =SUM(G39:G45) -> 4826891.028 | H47: =SUM(H39:H45) -> 1 | I47: =I20+I25 -> 1778731.86

Sheet RateClasses (hidden)
A2: Alectra Utilities Corporation-Brampton Rate Zone | B2: RESIDENTIAL SERVICE CLASSIFICATION~Retail Transmission Rate - Network Service Rate | C2: RESIDENTIAL SERVICE CLASSIFICATION~Retail Transmission Rate - Line and Transformation Connection Service Rate | D2: GENERAL SERVICE LESS THAN 50 KW SERVICE CLASSIFICATION~Retail Transmission Rate - Network Service Rate | E2: GENERAL SERVICE LESS THAN 50 KW SERVICE CLASSIFICATION~Retail Transmission Rate - Line and Transformation Connection Service Rate | F2: GENERAL SERVICE 50 TO 699 KW SERVICE CLASSIFICATION~Retail Transmission Rate - Network Service Rate | G2: GENERAL SERVICE 50 TO 699 KW SERVICE CLASSIFICATION~Retail Transmission Rate - Line and Transformation Connection Service Rate | H2: GENERAL SERVICE 700 TO 4,999 KW SERVICE CLASSIFICATION~Retail Transmission Rate - Network Service Rate | I2: GENERAL SERVICE 700 TO 4,999 KW SERVICE CLASSIFICATION~Retail Transmission Rate - Line and Transformation Connection Service Rate | J2: LARGE USE SERVICE CLASSIFICATION~Retail Transmission Rate - Network Service Rate | K2: LARGE USE SERVICE CLASSIFICATION~Retail Transmission Rate - Line and Transformation Connection Service Rate | L2: UNMETERED SCATTERED LOAD SERVICE CLASSIFICATION~Retail Transmission Rate - Network Service Rate | M2: UNMETERED SCATTERED LOAD SERVICE CLASSIFICATION~Retail Transmission Rate - Line and Transformation Connection Service Rate | N2: STREET LIGHTING SERVICE CLASSIFICATION~Retail Transmission Rate - Network Service Rate | O2: STREET LIGHTING SERVICE CLASSIFICATION~Retail Transmission Rate - Line and Transformation Connection Service Rate | P2: EMBEDDED DISTRIBUTOR SERVICE CLASSIFICATION~Retail Transmission Rate - Network Service Rate | Q2: EMBEDDED DISTRIBUTOR SERVICE CLASSIFICATION~Retail Transmission Rate - Line and Transformation Connection Service Rate | R2: DISTRIBUTED GENERATION [DGEN] SERVICE CLASSIFICATION~Retail Transmission Rate - Network Service Rate | S2: DISTRIBUTED GENERATION [DGEN] SERVICE CLASSIFICATION~Retail Transmission Rate - Line and Transformation Connection Service Rate
A3: Alectra Utilities Corporation-Enersource Rate Zone | B3: RESIDENTIAL SERVICE CLASSIFICATION~Retail Transmission Rate - Network Service Rate | C3: RESIDENTIAL SERVICE CLASSIFICATION~Retail Transmission Rate - Line and Transformation Connection Service Rate | D3: GENERAL SERVICE LESS THAN 50 KW SERVICE CLASSIFICATION~Retail Transmission Rate - Network Service Rate | E3: GENERAL SERVICE LESS THAN 50 KW SERVICE CLASSIFICATION~Retail Transmission Rate - Line and Transformation Connection Service Rate | F3: GENERAL SERVICE 50 TO 499 KW SERVICE CLASSIFICATION~Retail Transmission Rate - Network Service Rate | G3: GENERAL SERVICE 50 TO 499 KW SERVICE CLASSIFICATION~Retail Transmission Rate - Line and Transformation Connection Service Rate | H3: GENERAL SERVICE 500 TO 4,999 KW SERVICE CLASSIFICATION~Retail Transmission Rate - Network Service Rate | I3: GENERAL SERVICE 500 TO 4,999 KW SERVICE CLASSIFICATION~Retail Transmission Rate - Line and Transformation Connection Service Rate | J3: LARGE USE SERVICE CLASSIFICATION~Retail Transmission Rate - Network Service Rate – Interval Metered | K3: LARGE USE SERVICE CLASSIFICATION~Retail Transmission Rate - Line and Transformation Connection Service Rate – Interval Metered | L3: UNMETERED SCATTERED LOAD SERVICE CLASSIFICATION~Retail Transmission Rate - Network Service Rate | M3: UNMETERED SCATTERED LOAD SERVICE CLASSIFICATION~Retail Transmission Rate - Line and Transformation Connection Service Rate | N3: STREET LIGHTING SERVICE CLASSIFICATION~Retail Transmission Rate - Network Service Rate | O3: STREET LIGHTING SERVICE CLASSIFICATION~Retail Transmission Rate - Line and Transformation Connection Service Rate
A4: Alectra Utilities Corporation-Horizon Utilities Rate Zone | B4: RESIDENTIAL SERVICE CLASSIFICATION~Retail Transmission Rate - Network Service Rate | C4: RESIDENTIAL SERVICE CLASSIFICATION~Retail Transmission Rate - Line and Transformation Connection Service Rate | D4: GENERAL SERVICE LESS THAN 50 KW SERVICE CLASSIFICATION~Retail Transmission Rate - Network Service Rate | E4: GENERAL SERVICE LESS THAN 50 KW SERVICE CLASSIFICATION~Retail Transmission Rate - Line and Transformation Connection Service Rate | F4: GENERAL SERVICE 50 to 4,999 kW SERVICE CLASSIFICATION~Retail Transmission Rate - Network Service Rate | G4: GENERAL SERVICE 50 to 4,999 kW SERVICE CLASSIFICATION~Retail Transmission Rate - Line and Transformation Connection Service Rate | H4: LARGE USE SERVICE CLASSIFICATION~Retail Transmission Rate - Network Service Rate | I4: LARGE USE SERVICE CLASSIFICATION~Retail Transmission Rate - Line and Transformation Connection Service Rate | J4: LARGE USE WITH DEDICATED ASSETS SERVICE CLASSIFICATION~Retail Transmission Rate - Network Service Rate | K4: LARGE USE WITH DEDICATED ASSETS SERVICE CLASSIFICATION~Retail Transmission Rate - Line and Transformation Connection Service Rate | L4: UNMETERED SCATTERED LOAD SERVICE CLASSIFICATION~Retail Transmission Rate - Network Service Rate | M4: UNMETERED SCATTERED LOAD SERVICE CLASSIFICATION~Retail Transmission Rate - Line and Transformation Connection Service Rate | N4: SENTINEL LIGHTING SERVICE CLASSIFICATION~Retail Transmission Rate - Network Service Rate | O4: SENTINEL LIGHTING SERVICE CLASSIFICATION~Retail Transmission Rate - Line and Transformation Connection Service Rate | P4: STREET LIGHTING SERVICE CLASSIFICATION~Retail Transmission Rate - Network Service Rate | Q4: STREET LIGHTING SERVICE CLASSIFICATION~Retail Transmission Rate - Line and Transformation Connection Service Rate
A5: Alectra Utilities Corporation-PowerStream Rate Zone | B5: RESIDENTIAL SERVICE CLASSIFICATION~Retail Transmission Rate - Network Service Rate | C5: RESIDENTIAL SERVICE CLASSIFICATION~Retail Transmission Rate - Line and Transformation Connection Service Rate | D5: GENERAL SERVICE LESS THAN 50 KW SERVICE CLASSIFICATION~Retail Transmission Rate - Network Service Rate | E5: GENERAL SERVICE LESS THAN 50 KW SERVICE CLASSIFICATION~Retail Transmission Rate - Line and Transformation Connection Service Rate | F5: GENERAL SERVICE 50 to 4,999 kW SERVICE CLASSIFICATION~Retail Transmission Rate - Network Service Rate | G5: GENERAL SERVICE 50 to 4,999 kW SERVICE CLASSIFICATION~Retail Transmission Rate - Line and Transformation Connection Service Rate | H5: GENERAL SERVICE 50 to 4,999 kW SERVICE CLASSIFICATION~Retail Transmission Rate - Network Service Rate – Interval Metered | I5: GENERAL SERVICE 50 to 4,999 kW SERVICE CLASSIFICATION~Retail Transmission Rate - Line and Transformation Connection Service Rate – Interval Metered | J5: LARGE USE SERVICE CLASSIFICATION~Retail Transmission Rate - Network Service Rate | K5: LARGE USE SERVICE CLASSIFICATION~Retail Transmission Rate - Line and Transformation Connection Service Rate | L5: UNMETERED SCATTERED LOAD SERVICE CLASSIFICATION~Retail Transmission Rate - Network Service Rate | M5: UNMETERED SCATTERED LOAD SERVICE CLASSIFICATION~Retail Transmission Rate - Line and Transformation Connection Service Rate | N5: SENTINEL LIGHTING SERVICE CLASSIFICATION~Retail Transmission Rate - Network Service Rate | O5: SENTINEL LIGHTING SERVICE CLASSIFICATION~Retail Transmission Rate - Line and Transformation Connection Service Rate | P5: STREET LIGHTING SERVICE CLASSIFICATION~Retail Transmission Rate - Network Service Rate | Q5: STREET LIGHTING SERVICE CLASSIFICATION~Retail Transmission Rate - Line and Transformation Connection Service Rate
A6: Algoma Power Inc. | B6: RESIDENTIAL R1 SERVICE CLASSIFICATION~Retail Transmission Rate - Network Service Rate | C6: RESIDENTIAL R1 SERVICE CLASSIFICATION~Retail Transmission Rate - Line and Transformation Connection Service Rate | D6: RESIDENTIAL R2 SERVICE CLASSIFICATION~Retail Transmission Rate - Network Service Rate | E6: RESIDENTIAL R2 SERVICE CLASSIFICATION~Retail Transmission Rate - Line and Transformation Connection Service Rate | F6: SEASONAL CUSTOMERS SERVICE CLASSIFICATION~Retail Transmission Rate - Network Service Rate | G6: SEASONAL CUSTOMERS SERVICE CLASSIFICATION~Retail Transmission Rate - Line and Transformation Connection Service Rate | H6: STREET LIGHTING SERVICE CLASSIFICATION~Retail Transmission Rate - Network Service Rate | I6: STREET LIGHTING SERVICE CLASSIFICATION~Retail Transmission Rate - Line and Transformation Connection Service Rate
A7: Centre Wellington Hydro Ltd. | B7: RESIDENTIAL SERVICE CLASSIFICATION~Retail Transmission Rate - Network Service Rate | C7: RESIDENTIAL SERVICE CLASSIFICATION~Retail Transmission Rate - Line and Transformation Connection Service Rate | D7: GENERAL SERVICE LESS THAN 50 KW SERVICE CLASSIFICATION~Retail Transmission Rate - Network Service Rate | E7: GENERAL SERVICE LESS THAN 50 KW SERVICE CLASSIFICATION~Retail Transmission Rate - Line and Transformation Connection Service Rate | F7: GENERAL SERVICE 50 TO 2,999 KW SERVICE CLASSIFICATION~Retail Transmission Rate - Network Service Rate | G7: GENERAL SERVICE 50 TO 2,999 KW SERVICE CLASSIFICATION~Retail Transmission Rate - Line and Transformation Connection Service Rate | H7: GENERAL SERVICE 3,000 TO 4,999 KW SERVICE CLASSIFICATION~Retail Transmission Rate - Network Service Rate | I7: GENERAL SERVICE 3,000 TO 4,999 KW SERVICE CLASSIFICATION~Retail Transmission Rate - Line and Transformation Connection Service Rate | J7: UNMETERED SCATTERED LOAD SERVICE CLASSIFICATION~Retail Transmission Rate - Network Service Rate | K7: UNMETERED SCATTERED LOAD SERVICE CLASSIFICATION~Retail Transmission Rate - Line and Transformation Connection Service Rate | L7: SENTINEL LIGHTING SERVICE CLASSIFICATION~Retail Transmission Rate - Network Service Rate | M7: SENTINEL LIGHTING SERVICE CLASSIFICATION~Retail Transmission Rate - Line and Transformation Connection Service Rate | N7: STREET LIGHTING SERVICE CLASSIFICATION~Retail Transmission Rate - Network Service Rate | O7: STREET LIGHTING SERVICE CLASSIFICATION~Retail Transmission Rate - Line and Transformation Connection Service Rate
A8: Canadian Niagara Power Inc. | B8: RESIDENTIAL SERVICE CLASSIFICATION~Retail Transmission Rate - Network Service Rate | C8: RESIDENTIAL SERVICE CLASSIFICATION~Retail Transmission Rate - Line and Transformation Connection Service Rate | D8: GENERAL SERVICE LESS THAN 50 KW SERVICE CLASSIFICATION~Retail Transmission Rate - Network Service Rate | E8: GENERAL SERVICE LESS THAN 50 KW SERVICE CLASSIFICATION~Retail Transmission Rate - Line and Transformation Connection Service Rate | F8: GENERAL SERVICE 50 to 4,999 kW SERVICE CLASSIFICATION~Retail Transmission Rate - Network Service Rate | G8: GENERAL SERVICE 50 to 4,999 kW SERVICE CLASSIFICATION~Retail Transmission Rate - Line and Transformation Connection Service Rate | H8: EMBEDDED DISTRIBUTOR SERVICE CLASSIFICATION~Retail Transmission Rate - Network Service Rate | I8: EMBEDDED DISTRIBUTOR SERVICE CLASSIFICATION~Retail Transmission Rate - Line and Transformation Connection Service Rate | J8: UNMETERED SCATTERED LOAD SERVICE CLASSIFICATION~Retail Transmission Rate - Network Service Rate | K8: UNMETERED SCATTERED LOAD SERVICE CLASSIFICATION~Retail Transmission Rate - Line and Transformation Connection Service Rate | L8: SENTINEL LIGHTING SERVICE CLASSIFICATION~Retail Transmission Rate - Network Service Rate | M8: SENTINEL LIGHTING SERVICE CLASSIFICATION~Retail Transmission Rate - Line and Transformation Connection Service Rate | N8: STREET LIGHTING SERVICE CLASSIFICATION~Retail Transmission Rate - Network Service Rate | O8: STREET LIGHTING SERVICE CLASSIFICATION~Retail Transmission Rate - Line and Transformation Connection Service Rate
A9: Entegrus Powerlines Inc. | B9: RESIDENTIAL SERVICE CLASSIFICATION~Retail Transmission Rate - Network Service Rate | C9: RESIDENTIAL SERVICE CLASSIFICATION~Retail Transmission Rate - Line and Transformation Connection Service Rate | D9: GENERAL SERVICE LESS THAN 50 KW SERVICE CLASSIFICATION~Retail Transmission Rate - Network Service Rate | E9: GENERAL SERVICE LESS THAN 50 KW SERVICE CLASSIFICATION~Retail Transmission Rate - Line and Transformation Connection Service Rate | F9: GENERAL SERVICE 50 to 4,999 kW SERVICE CLASSIFICATION~Retail Transmission Rate - Network Service Rate | G9: GENERAL SERVICE 50 to 4,999 kW SERVICE CLASSIFICATION~Retail Transmission Rate - Line and Transformation Connection Service Rate (see Note 1) | H9: LARGE USE SERVICE CLASSIFICATION~Retail Transmission Rate - Network Service Rate | I9: LARGE USE SERVICE CLASSIFICATION~Retail Transmission Rate - Line and Transformation Connection Service Rate (see Note 1) | J9: UNMETERED SCATTERED LOAD SERVICE CLASSIFICATION~Retail Transmission Rate - Network Service Rate | K9: UNMETERED SCATTERED LOAD SERVICE CLASSIFICATION~Retail Transmission Rate - Line and Transformation Connection Service Rate | L9: SENTINEL LIGHTING SERVICE CLASSIFICATION~Retail Transmission Rate - Network Service Rate | M9: SENTINEL LIGHTING SERVICE CLASSIFICATION~Retail Transmission Rate - Line and Transformation Connection Service Rate | N9: STREET LIGHTING SERVICE CLASSIFICATION~Retail Transmission Rate - Network Service Rate | O9: STREET LIGHTING SERVICE CLASSIFICATION~Retail Transmission Rate - Line and Transformation Connection Service Rate | P9: EMBEDDED DISTRIBUTOR SERVICE CLASSIFICATION~Retail Transmission Rate - Network Service Rate | Q9: EMBEDDED DISTRIBUTOR SERVICE CLASSIFICATION~Retail Transmission Rate - Line and Transformation Connection Service Rate
A10: Entegrus Powerlines Inc.-For Former St. Thomas Energy Rate Zone | B10: RESIDENTIAL SERVICE CLASSIFICATION~Retail Transmission Rate - Network Service Rate | C10: RESIDENTIAL SERVICE CLASSIFICATION~Retail Transmission Rate - Line and Transformation Connection Service Rate | D10: GENERAL SERVICE LESS THAN 50 KW SERVICE CLASSIFICATION~Retail Transmission Rate - Network Service Rate | E10: GENERAL SERVICE LESS THAN 50 KW SERVICE CLASSIFICATION~Retail Transmission Rate - Line and Transformation Connection Service Rate | F10: GENERAL SERVICE 50 to 4,999 kW SERVICE CLASSIFICATION~Retail Transmission Rate - Network Service Rate | G10: GENERAL SERVICE 50 to 4,999 kW SERVICE CLASSIFICATION~Retail Transmission Rate - Line and Transformation Connection Service Rate | H10: SENTINEL LIGHTING SERVICE CLASSIFICATION~Retail Transmission Rate - Network Service Rate | I10: SENTINEL LIGHTING SERVICE CLASSIFICATION~Retail Transmission Rate - Line and Transformation Connection Service Rate | J10: STREET LIGHTING SERVICE CLASSIFICATION~Retail Transmission Rate - Network Service Rate | K10: STREET LIGHTING SERVICE CLASSIFICATION~Retail Transmission Rate - Line and Transformation Connection Service Rate
A11: Festival Hydro Inc. | B11: RESIDENTIAL SERVICE CLASSIFICATION~Retail Transmission Rate - Network Service Rate | C11: RESIDENTIAL SERVICE CLASSIFICATION~Retail Transmission Rate - Line and Transformation Connection Service Rate | D11: GENERAL SERVICE LESS THAN 50 KW SERVICE CLASSIFICATION~Retail Transmission Rate - Network Service Rate | E11: GENERAL SERVICE LESS THAN 50 KW SERVICE CLASSIFICATION~Retail Transmission Rate - Line and Transformation Connection Service Rate | F11: GENERAL SERVICE 50 to 4,999 kW SERVICE CLASSIFICATION~Retail Transmission Rate - Network Service Rate | G11: GENERAL SERVICE 50 to 4,999 kW SERVICE CLASSIFICATION~Retail Transmission Rate - Line and Transformation Connection Service Rate | H11: GENERAL SERVICE 50 to 4,999 kW SERVICE CLASSIFICATION~Retail Transmission Rate - Network Service Rate - Interval Metered | I11: GENERAL SERVICE 50 to 4,999 kW SERVICE CLASSIFICATION~Retail Transmission Rate - Line and Transformation Connection Service Rate - Interval Metered | J11: LARGE USE SERVICE CLASSIFICATION~Retail Transmission Rate - Network Service Rate - Interval Metered | K11: LARGE USE SERVICE CLASSIFICATION~Retail Transmission Rate - Line and Transformation Connection Service Rate - Interval Metered | L11: UNMETERED SCATTERED LOAD SERVICE CLASSIFICATION~Retail Transmission Rate - Network Service Rate | M11: UNMETERED SCATTERED LOAD SERVICE CLASSIFICATION~Retail Transmission Rate - Line and Transformation Connection Service Rate | N11: SENTINEL LIGHTING SERVICE CLASSIFICATION~Retail Transmission Rate - Network Service Rate | O11: SENTINEL LIGHTING SERVICE CLASSIFICATION~Retail Transmission Rate - Line and Transformation Connection Service Rate | P11: STREET LIGHTING SERVICE CLASSIFICATION~Retail Transmission Rate - Network Service Rate | Q11: STREET LIGHTING SERVICE CLASSIFICATION~Retail Transmission Rate - Line and Transformation Connection Service Rate
A12: Grimsby Power Incorporated | B12: RESIDENTIAL SERVICE CLASSIFICATION~Retail Transmission Rate - Network Service Rate | C12: RESIDENTIAL SERVICE CLASSIFICATION~Retail Transmission Rate - Line and Transformation Connection Service Rate | D12: GENERAL SERVICE LESS THAN 50 KW SERVICE CLASSIFICATION~Retail Transmission Rate - Network Service Rate | E12: GENERAL SERVICE LESS THAN 50 KW SERVICE CLASSIFICATION~Retail Transmission Rate - Line and Transformation Connection Service Rate | F12: GENERAL SERVICE 50 to 4,999 kW SERVICE CLASSIFICATION~Retail Transmission Rate - Network Service Rate | G12: GENERAL SERVICE 50 to 4,999 kW SERVICE CLASSIFICATION~Retail Transmission Rate - Line and Transformation Connection Service Rate | H12: GENERAL SERVICE 50 to 4,999 kW SERVICE CLASSIFICATION~Retail Transmission Rate - Network Service Rate - Interval Metered | I12: GENERAL SERVICE 50 to 4,999 kW SERVICE CLASSIFICATION~Retail Transmission Rate - Line and Transformation Connection Service Rate - Interval Metered | J12: UNMETERED SCATTERED LOAD SERVICE CLASSIFICATION~Retail Transmission Rate - Network Service Rate | K12: UNMETERED SCATTERED LOAD SERVICE CLASSIFICATION~Retail Transmission Rate - Line and Transformation Connection Service Rate | L12: STREET LIGHTING SERVICE CLASSIFICATION~Retail Transmission Rate - Network Service Rate | M12: STREET LIGHTING SERVICE CLASSIFICATION~Retail Transmission Rate - Line and Transformation Connection Service Rate | N12: EMBEDDED DISTRIBUTOR SERVICE CLASSIFICATION~Retail Transmission Rate - Network Service Rate | O12: EMBEDDED DISTRIBUTOR SERVICE CLASSIFICATION~Retail Transmission Rate - Line and Transformation Connection Service Rate
A13: Alectra Utilities Corporation-Guelph Rate Zone | B13: RESIDENTIAL SERVICE CLASSIFICATION~Retail Transmission Rate - Network Service Rate | C13: RESIDENTIAL SERVICE CLASSIFICATION~Retail Transmission Rate - Line and Transformation Connection Service Rate | D13: GENERAL SERVICE LESS THAN 50 KW SERVICE CLASSIFICATION~Retail Transmission Rate - Network Service Rate | E13: GENERAL SERVICE LESS THAN 50 KW SERVICE CLASSIFICATION~Retail Transmission Rate - Line and Transformation Connection Service Rate | F13: GENERAL SERVICE 50 TO 999 KW SERVICE CLASSIFICATION~Retail Transmission Rate - Network Service Rate | G13: GENERAL SERVICE 50 TO 999 KW SERVICE CLASSIFICATION~Retail Transmission Rate - Network Service Rate - Interval Metered | H13: GENERAL SERVICE 50 TO 999 KW SERVICE CLASSIFICATION~Retail Transmission Rate - Line and Transformation Connection Service Rate | I13: GENERAL SERVICE 50 TO 999 KW SERVICE CLASSIFICATION~Retail Transmission Rate - Line and Transformation Connection Service Rate - Interval Metered | J13: GENERAL SERVICE 1,000 TO 4,999 KW SERVICE CLASSIFICATION~Retail Transmission Rate - Network Service Rate - Interval Metered | K13: GENERAL SERVICE 1,000 TO 4,999 KW SERVICE CLASSIFICATION~Retail Transmission Rate - Line and Transformation Connection Service Rate - Interval Metered | L13: LARGE USE SERVICE CLASSIFICATION~Retail Transmission Rate - Network Service Rate - Interval Metered | M13: LARGE USE SERVICE CLASSIFICATION~Retail Transmission Rate - Line and Transformation Connection Service Rate - Interval Metered | N13: UNMETERED SCATTERED LOAD SERVICE CLASSIFICATION~Retail Transmission Rate - Network Service Rate | O13: UNMETERED SCATTERED LOAD SERVICE CLASSIFICATION~Retail Transmission Rate - Line and Transformation Connection Service Rate | P13: SENTINEL LIGHTING SERVICE CLASSIFICATION~Retail Transmission Rate - Network Service Rate | Q13: SENTINEL LIGHTING SERVICE CLASSIFICATION~Retail Transmission Rate - Line and Transformation Connection Service Rate | R13: STREET LIGHTING SERVICE CLASSIFICATION~Retail Transmission Rate - Network Service Rate | S13: STREET LIGHTING SERVICE CLASSIFICATION~Retail Transmission Rate - Line and Transformation Connection Service Rate
A14: Hydro Hawkesbury Inc. | B14: RESIDENTIAL SERVICE CLASSIFICATION~Retail Transmission Rate - Network Service Rate | C14: RESIDENTIAL SERVICE CLASSIFICATION~Retail Transmission Rate - Line and Transformation Connection Service Rate | D14: GENERAL SERVICE LESS THAN 50 KW SERVICE CLASSIFICATION~Retail Transmission Rate - Network Service Rate | E14: GENERAL SERVICE LESS THAN 50 KW SERVICE CLASSIFICATION~Retail Transmission Rate - Line and Transformation Connection Service Rate | F14: GENERAL SERVICE 50 to 4,999 kW SERVICE CLASSIFICATION~Retail Transmission Rate - Network Service Rate | G14: GENERAL SERVICE 50 to 4,999 kW SERVICE CLASSIFICATION~Retail Transmission Rate - Line and Transformation Connection Service Rate | H14: UNMETERED SCATTERED LOAD SERVICE CLASSIFICATION~Retail Transmission Rate - Network Service Rate | I14: UNMETERED SCATTERED LOAD SERVICE CLASSIFICATION~Retail Transmission Rate - Line and Transformation Connection Service Rate | J14: SENTINEL LIGHTING SERVICE CLASSIFICATION~Retail Transmission Rate - Network Service Rate | K14: SENTINEL LIGHTING SERVICE CLASSIFICATION~Retail Transmission Rate - Line and Transformation Connection Service Rate | L14: STREET LIGHTING SERVICE CLASSIFICATION~Retail Transmission Rate - Network Service Rate | M14: STREET LIGHTING SERVICE CLASSIFICATION~Retail Transmission Rate - Line and Transformation Connection Service Rate
A15: Hydro Ottawa Limited | B15: RESIDENTIAL SERVICE CLASSIFICATION~Retail Transmission Rate - Network Service Rate | C15: RESIDENTIAL SERVICE CLASSIFICATION~Retail Transmission Rate - Line and Transformation Connection Service Rate | D15: GENERAL SERVICE LESS THAN 50 KW SERVICE CLASSIFICATION~Retail Transmission Rate - Network Service Rate | E15: GENERAL SERVICE LESS THAN 50 KW SERVICE CLASSIFICATION~Retail Transmission Rate - Line and Transformation Connection Service Rate | F15: GENERAL SERVICE 50 TO 1,499 KW SERVICE CLASSIFICATION~Retail Transmission Rate - Network Service Rate | G15: GENERAL SERVICE 50 TO 1,499 KW SERVICE CLASSIFICATION~Retail Transmission Rate - Line and Transformation Connection Service Rate | H15: GENERAL SERVICE 1,500 TO 4,999 KW SERVICE CLASSIFICATION~Retail Transmission Rate - Network Service Rate | I15: GENERAL SERVICE 1,500 TO 4,999 KW SERVICE CLASSIFICATION~Retail Transmission Rate - Line and Transformation Connection Service Rate | J15: LARGE USE SERVICE CLASSIFICATION~Retail Transmission Rate - Network Service Rate | K15: LARGE USE SERVICE CLASSIFICATION~Retail Transmission Rate - Line and Transformation Connection Service Rate | L15: UNMETERED SCATTERED LOAD SERVICE CLASSIFICATION~Retail Transmission Rate - Network Service Rate | M15: UNMETERED SCATTERED LOAD SERVICE CLASSIFICATION~Retail Transmission Rate - Line and Transformation Connection Service Rate | N15: SENTINEL LIGHTING SERVICE CLASSIFICATION~Retail Transmission Rate - Network Service Rate | O15: SENTINEL LIGHTING SERVICE CLASSIFICATION~Retail Transmission Rate - Line and Transformation Connection Service Rate | P15: STREET LIGHTING SERVICE CLASSIFICATION~Retail Transmission Rate - Network Service Rate | Q15: STREET LIGHTING SERVICE CLASSIFICATION~Retail Transmission Rate - Line and Transformation Connection Service Rate
A16: InnPower Corporation | B16: RESIDENTIAL SERVICE CLASSIFICATION~Retail Transmission Rate - Network Service Rate | C16: RESIDENTIAL SERVICE CLASSIFICATION~Retail Transmission Rate - Line and Transformation Connection Service Rate | D16: GENERAL SERVICE LESS THAN 50 KW SERVICE CLASSIFICATION~Retail Transmission Rate - Network Service Rate | E16: GENERAL SERVICE LESS THAN 50 KW SERVICE CLASSIFICATION~Retail Transmission Rate - Line and Transformation Connection Service Rate | F16: GENERAL SERVICE 50 to 4,999 kW SERVICE CLASSIFICATION~Retail Transmission Rate - Network Service Rate | G16: GENERAL SERVICE 50 to 4,999 kW SERVICE CLASSIFICATION~Retail Transmission Rate - Line and Transformation Connection Service Rate | H16: GENERAL SERVICE 50 to 4,999 kW SERVICE CLASSIFICATION~Retail Transmission Rate - Network Service Rate - Interval Metered | I16: GENERAL SERVICE 50 to 4,999 kW SERVICE CLASSIFICATION~Retail Transmission Rate - Line and Transformation Connection Service Rate - Interval Metered | J16: UNMETERED SCATTERED LOAD SERVICE CLASSIFICATION~Retail Transmission Rate - Network Service Rate | K16: UNMETERED SCATTERED LOAD SERVICE CLASSIFICATION~Retail Transmission Rate - Line and Transformation Connection Service Rate | L16: SENTINEL LIGHTING SERVICE CLASSIFICATION~Retail Transmission Rate - Network Service Rate | M16: SENTINEL LIGHTING SERVICE CLASSIFICATION~Retail Transmission Rate - Line and Transformation Connection Service Rate | N16: STREET LIGHTING SERVICE CLASSIFICATION~Retail Transmission Rate - Network Service Rate | O16: STREET LIGHTING SERVICE CLASSIFICATION~Retail Transmission Rate - Line and Transformation Connection Service Rate
A17: Kingston Hydro Corporation | B17: RESIDENTIAL SERVICE CLASSIFICATION~Retail Transmission Rate - Network Service Rate | C17: RESIDENTIAL SERVICE CLASSIFICATION~Retail Transmission Rate - Line and Transformation Connection Service Rate | D17: GENERAL SERVICE LESS THAN 50 KW SERVICE CLASSIFICATION~Retail Transmission Rate - Network Service Rate | E17: GENERAL SERVICE LESS THAN 50 KW SERVICE CLASSIFICATION~Retail Transmission Rate - Line and Transformation Connection Service Rate | F17: GENERAL SERVICE 50 to 4,999 kW SERVICE CLASSIFICATION~Retail Transmission Rate - Network Service Rate | G17: GENERAL SERVICE 50 to 4,999 kW SERVICE CLASSIFICATION~Retail Transmission Rate - Line and Transformation Connection Service Rate | H17: LARGE USE SERVICE CLASSIFICATION~Retail Transmission Rate - Network Service Rate | I17: LARGE USE SERVICE CLASSIFICATION~Retail Transmission Rate - Line and Transformation Connection Service Rate | J17: UNMETERED SCATTERED LOAD SERVICE CLASSIFICATION~Retail Transmission Rate - Network Service Rate | K17: UNMETERED SCATTERED LOAD SERVICE CLASSIFICATION~Retail Transmission Rate - Line and Transformation Connection Service Rate | L17: STREET LIGHTING SERVICE CLASSIFICATION~Retail Transmission Rate - Network Service Rate | M17: STREET LIGHTING SERVICE CLASSIFICATION~Retail Transmission Rate - Line and Transformation Connection Service Rate
A18: Renfrew Hydro Inc. | B18: RESIDENTIAL SERVICE CLASSIFICATION~Retail Transmission Rate - Network Service Rate | C18: RESIDENTIAL SERVICE CLASSIFICATION~Retail Transmission Rate - Line and Transformation Connection Service Rate | D18: GENERAL SERVICE LESS THAN 50 KW SERVICE CLASSIFICATION~Retail Transmission Rate - Network Service Rate | E18: GENERAL SERVICE LESS THAN 50 KW SERVICE CLASSIFICATION~Retail Transmission Rate - Line and Transformation Connection Service Rate | F18: GENERAL SERVICE 50 to 4,999 kW SERVICE CLASSIFICATION~Retail Transmission Rate - Network Service Rate | G18: GENERAL SERVICE 50 to 4,999 kW SERVICE CLASSIFICATION~Retail Transmission Rate - Line and Transformation Connection Service Rate | H18: UNMETERED SCATTERED LOAD SERVICE CLASSIFICATION~Retail Transmission Rate - Network Service Rate | I18: UNMETERED SCATTERED LOAD SERVICE CLASSIFICATION~Retail Transmission Rate - Line and Transformation Connection Service Rate | J18: STREET LIGHTING SERVICE CLASSIFICATION~Retail Transmission Rate - Network Service Rate | K18: STREET LIGHTING SERVICE CLASSIFICATION~Retail Transmission Rate - Line and Transformation Connection Service Rate
A19: Cooperative Hydro Embrun Inc. | B19: RESIDENTIAL SERVICE CLASSIFICATION~Retail Transmission Rate - Network Service Rate | C19: RESIDENTIAL SERVICE CLASSIFICATION~Retail Transmission Rate - Line and Transformation Connection Service Rate | D19: GENERAL SERVICE LESS THAN 50 KW SERVICE CLASSIFICATION~Retail Transmission Rate - Network Service Rate | E19: GENERAL SERVICE LESS THAN 50 KW SERVICE CLASSIFICATION~Retail Transmission Rate - Line and Transformation Connection Service Rate | F19: GENERAL SERVICE 50 to 4,999 kW SERVICE CLASSIFICATION~Retail Transmission Rate - Network Service Rate | G19: GENERAL SERVICE 50 to 4,999 kW SERVICE CLASSIFICATION~Retail Transmission Rate - Line and Transformation Connection Service Rate | H19: UNMETERED SCATTERED LOAD SERVICE CLASSIFICATION~Retail Transmission Rate - Network Service Rate | I19: UNMETERED SCATTERED LOAD SERVICE CLASSIFICATION~Retail Transmission Rate - Line and Transformation Connection Service Rate | J19: STREET LIGHTING SERVICE CLASSIFICATION~Retail Transmission Rate - Network Service Rate | K19: STREET LIGHTING SERVICE CLASSIFICATION~Retail Transmission Rate - Line and Transformation Connection Service Rate
A20: Lakefront Utilities Inc. | B20: RESIDENTIAL SERVICE CLASSIFICATION~Retail Transmission Rate - Network Service Rate | C20: RESIDENTIAL SERVICE CLASSIFICATION~Retail Transmission Rate - Line and Transformation Connection Service Rate | D20: GENERAL SERVICE LESS THAN 50 KW SERVICE CLASSIFICATION~Retail Transmission Rate - Network Service Rate | E20: GENERAL SERVICE LESS THAN 50 KW SERVICE CLASSIFICATION~Retail Transmission Rate - Line and Transformation Connection Service Rate | F20: GENERAL SERVICE 50 TO 2,999 KW SERVICE CLASSIFICATION~Retail Transmission Rate - Network Service Rate | G20: GENERAL SERVICE 50 TO 2,999 KW SERVICE CLASSIFICATION~Retail Transmission Rate - Line and Transformation Connection Service Rate | H20: GENERAL SERVICE 3,000 TO 4,999 KW SERVICE CLASSIFICATION~Retail Transmission Rate - Network Service Rate | I20: GENERAL SERVICE 3,000 TO 4,999 KW SERVICE CLASSIFICATION~Retail Transmission Rate - Line and Transformation Connection Service Rate | J20: UNMETERED SCATTERED LOAD SERVICE CLASSIFICATION~Retail Transmission Rate - Network Service Rate | K20: UNMETERED SCATTERED LOAD SERVICE CLASSIFICATION~Retail Transmission Rate - Line and Transformation Connection Service Rate | L20: SENTINEL LIGHTING SERVICE CLASSIFICATION~Retail Transmission Rate - Network Service Rate | M20: SENTINEL LIGHTING SERVICE CLASSIFICATION~Retail Transmission Rate - Line and Transformation Connection Service Rate | N20: STREET LIGHTING SERVICE CLASSIFICATION~Retail Transmission Rate - Network Service Rate | O20: STREET LIGHTING SERVICE CLASSIFICATION~Retail Transmission Rate - Line and Transformation Connection Service Rate
A21: Toronto Hydro-Electric System Limited | B21: RESIDENTIAL SERVICE CLASSIFICATION~Retail Transmission Rate - Network Service Rate | C21: RESIDENTIAL SERVICE CLASSIFICATION~Retail Transmission Rate - Line and Transformation Connection Service Rate | D21: COMPETITIVE SECTOR MULTI-UNIT RESIDENTIAL SERVICE CLASSIFICATION~Retail Transmission Rate - Network Service Rate | E21: COMPETITIVE SECTOR MULTI-UNIT RESIDENTIAL SERVICE CLASSIFICATION~Retail Transmission Rate - Line and Transformation Connection Service Rate | F21: GENERAL SERVICE LESS THAN 50 KW SERVICE CLASSIFICATION~Retail Transmission Rate - Network Service Rate | G21: GENERAL SERVICE LESS THAN 50 KW SERVICE CLASSIFICATION~Retail Transmission Rate - Line and Transformation Connection Service Rate | H21: GENERAL SERVICE 50 TO 999 KW SERVICE CLASSIFICATION~Retail Transmission Rate - Network Service Rate | I21: GENERAL SERVICE 50 TO 999 KW SERVICE CLASSIFICATION~Retail Transmission Rate - Line and Transformation Connection Service Rate | J21: GENERAL SERVICE 1,000 TO 4,999 KW SERVICE CLASSIFICATION~Retail Transmission Rate - Network Service Rate | K21: GENERAL SERVICE 1,000 TO 4,999 KW SERVICE CLASSIFICATION~Retail Transmission Rate - Line and Transformation Connection Service Rate | L21: LARGE USE SERVICE CLASSIFICATION~Retail Transmission Rate - Network Service Rate | M21: LARGE USE SERVICE CLASSIFICATION~Retail Transmission Rate - Line and Transformation Connection Service Rate | N21: UNMETERED SCATTERED LOAD SERVICE CLASSIFICATION~Retail Transmission Rate - Network Service Rate | O21: UNMETERED SCATTERED LOAD SERVICE CLASSIFICATION~Retail Transmission Rate - Line and Transformation Connection Service Rate | P21: STREET LIGHTING SERVICE CLASSIFICATION~Retail Transmission Rate - Network Service Rate | Q21: STREET LIGHTING SERVICE CLASSIFICATION~Retail Transmission Rate - Line and Transformation Connection Service Rate
A22: Westario Power Inc. | B22: RESIDENTIAL SERVICE CLASSIFICATION~Retail Transmission Rate - Network Service Rate | C22: RESIDENTIAL SERVICE CLASSIFICATION~Retail Transmission Rate - Line and Transformation Connection Service Rate | D22: GENERAL SERVICE LESS THAN 50 KW SERVICE CLASSIFICATION~Retail Transmission Rate - Network Service Rate | E22: GENERAL SERVICE LESS THAN 50 KW SERVICE CLASSIFICATION~Retail Transmission Rate - Line and Transformation Connection Service Rate | F22: GENERAL SERVICE 50 to 4,999 kW SERVICE CLASSIFICATION~Retail Transmission Rate - Network Service Rate | G22: GENERAL SERVICE 50 to 4,999 kW SERVICE CLASSIFICATION~Retail Transmission Rate - Line and Transformation Connection Service Rate | H22: UNMETERED SCATTERED LOAD SERVICE CLASSIFICATION~Retail Transmission Rate - Network Service Rate | I22: UNMETERED SCATTERED LOAD SERVICE CLASSIFICATION~Retail Transmission Rate - Line and Transformation Connection Service Rate | J22: SENTINEL LIGHTING SERVICE CLASSIFICATION~Retail Transmission Rate - Network Service Rate | K22: SENTINEL LIGHTING SERVICE CLASSIFICATION~Retail Transmission Rate - Line and Transformation Connection Service Rate | L22: STREET LIGHTING SERVICE CLASSIFICATION~Retail Transmission Rate - Network Service Rate | M22: STREET LIGHTING SERVICE CLASSIFICATION~Retail Transmission Rate - Line and Transformation Connection Service Rate
A23: Elexicon Energy Inc.-Whitby Rate Zone | B23: RESIDENTIAL SERVICE CLASSIFICATION~Retail Transmission Rate - Network Service Rate | C23: RESIDENTIAL SERVICE CLASSIFICATION~Retail Transmission Rate - Line and Transformation Connection Service Rate | D23: GENERAL SERVICE LESS THAN 50 KW SERVICE CLASSIFICATION~Retail Transmission Rate - Network Service Rate | E23: GENERAL SERVICE LESS THAN 50 KW SERVICE CLASSIFICATION~Retail Transmission Rate - Line and Transformation Connection Service Rate | F23: GENERAL SERVICE 50 to 4,999 kW SERVICE CLASSIFICATION~Retail Transmission Rate - Network Service Rate | G23: GENERAL SERVICE 50 to 4,999 kW SERVICE CLASSIFICATION~Retail Transmission Rate - Line and Transformation Connection Service Rate | H23: UNMETERED SCATTERED LOAD SERVICE CLASSIFICATION~Retail Transmission Rate - Network Service Rate | I23: UNMETERED SCATTERED LOAD SERVICE CLASSIFICATION~Retail Transmission Rate - Line and Transformation Connection Service Rate | J23: SENTINEL LIGHTING SERVICE CLASSIFICATION~Retail Transmission Rate - Network Service Rate | K23: SENTINEL LIGHTING SERVICE CLASSIFICATION~Retail Transmission Rate - Line and Transformation Connection Service Rate | L23: STREET LIGHTING SERVICE CLASSIFICATION~Retail Transmission Rate - Network Service Rate | M23: STREET LIGHTING SERVICE CLASSIFICATION~Retail Transmission Rate - Line and Transformation Connection Service Rate
A24: Erie Thames Powerlines Corporation | B24: RESIDENTIAL SERVICE CLASSIFICATION~Retail Transmission Rate - Network Service Rate | C24: RESIDENTIAL SERVICE CLASSIFICATION~Retail Transmission Rate - Line and Transformation Connection Service Rate | D24: GENERAL SERVICE LESS THAN 50 KW SERVICE CLASSIFICATION~Retail Transmission Rate - Network Service Rate | E24: GENERAL SERVICE LESS THAN 50 KW SERVICE CLASSIFICATION~Retail Transmission Rate - Line and Transformation Connection Service Rate | F24: GENERAL SERVICE 50 TO 999 KW SERVICE CLASSIFICATION~Retail Transmission Rate - Network Service Rate | G24: GENERAL SERVICE 50 TO 999 KW SERVICE CLASSIFICATION~Retail Transmission Rate - Line and Transformation Connection Service Rate | H24: GENERAL SERVICE 1,000 TO 4,999 KW SERVICE CLASSIFICATION~Retail Transmission Rate - Network Service Rate | I24: GENERAL SERVICE 1,000 TO 4,999 KW SERVICE CLASSIFICATION~Retail Transmission Rate - Line and Transformation Connection Service Rate | J24: LARGE USE SERVICE CLASSIFICATION~Retail Transmission Rate - Network Service Rate | K24: LARGE USE SERVICE CLASSIFICATION~Retail Transmission Rate - Line and Transformation Connection Service Rate | L24: UNMETERED SCATTERED LOAD SERVICE CLASSIFICATION~Retail Transmission Rate - Network Service Rate | M24: UNMETERED SCATTERED LOAD SERVICE CLASSIFICATION~Retail Transmission Rate - Line and Transformation Connection Service Rate | N24: SENTINEL LIGHTING SERVICE CLASSIFICATION~Retail Transmission Rate - Network Service Rate | O24: SENTINEL LIGHTING SERVICE CLASSIFICATION~Retail Transmission Rate - Line and Transformation Connection Service Rate | P24: STREET LIGHTING SERVICE CLASSIFICATION~Retail Transmission Rate - Network Service Rate | Q24: STREET LIGHTING SERVICE CLASSIFICATION~Retail Transmission Rate - Line and Transformation Connection Service Rate | R24: EMBEDDED DISTRIBUTOR SERVICE CLASSIFICATION~Retail Transmission Rate - Network Service Rate | S24: EMBEDDED DISTRIBUTOR SERVICE CLASSIFICATION~Retail Transmission Rate - Line and Transformation Connection Service Rate
A25: Entegrus Powerlines Inc.-For Entegrus-Main Rate Zone | B25: RESIDENTIAL SERVICE CLASSIFICATION~Retail Transmission Rate - Network Service Rate | C25: RESIDENTIAL SERVICE CLASSIFICATION~Retail Transmission Rate - Line and Transformation Connection Service Rate | D25: GENERAL SERVICE LESS THAN 50 KW SERVICE CLASSIFICATION~Retail Transmission Rate - Network Service Rate | E25: GENERAL SERVICE LESS THAN 50 KW SERVICE CLASSIFICATION~Retail Transmission Rate - Line and Transformation Connection Service Rate | F25: GENERAL SERVICE 50 to 4,999 kW SERVICE CLASSIFICATION~Retail Transmission Rate - Network Service Rate | G25: GENERAL SERVICE 50 to 4,999 kW SERVICE CLASSIFICATION~Retail Transmission Rate - Line and Transformation Connection Service Rate (see Note 1) | H25: LARGE USE SERVICE CLASSIFICATION~Retail Transmission Rate - Network Service Rate | I25: LARGE USE SERVICE CLASSIFICATION~Retail Transmission Rate - Line and Transformation Connection Service Rate (see Note 1) | J25: UNMETERED SCATTERED LOAD SERVICE CLASSIFICATION~Retail Transmission Rate - Network Service Rate | K25: UNMETERED SCATTERED LOAD SERVICE CLASSIFICATION~Retail Transmission Rate - Line and Transformation Connection Service Rate | L25: SENTINEL LIGHTING SERVICE CLASSIFICATION~Retail Transmission Rate - Network Service Rate | M25: SENTINEL LIGHTING SERVICE CLASSIFICATION~Retail Transmission Rate - Line and Transformation Connection Service Rate | N25: STREET LIGHTING SERVICE CLASSIFICATION~Retail Transmission Rate - Network Service Rate | O25: STREET LIGHTING SERVICE CLASSIFICATION~Retail Transmission Rate - Line and Transformation Connection Service Rate | P25: EMBEDDED DISTRIBUTOR SERVICE CLASSIFICATION~Retail Transmission Rate - Network Service Rate | Q25: EMBEDDED DISTRIBUTOR SERVICE CLASSIFICATION~Retail Transmission Rate - Line and Transformation Connection Service Rate
A26: Lakeland Power Distribution Ltd. | B26: RESIDENTIAL SERVICE CLASSIFICATION~Retail Transmission Rate - Network Service Rate | C26: RESIDENTIAL SERVICE CLASSIFICATION~Retail Transmission Rate - Line and Transformation Connection Service Rate | D26: GENERAL SERVICE LESS THAN 50 KW SERVICE CLASSIFICATION~Retail Transmission Rate - Network Service Rate | E26: GENERAL SERVICE LESS THAN 50 KW SERVICE CLASSIFICATION~Retail Transmission Rate - Line and Transformation Connection Service Rate | F26: GENERAL SERVICE 50 to 4,999 kW SERVICE CLASSIFICATION~Retail Transmission Rate - Network Service Rate | G26: GENERAL SERVICE 50 to 4,999 kW SERVICE CLASSIFICATION~Retail Transmission Rate - Line and Transformation Connection Service Rate | H26: UNMETERED SCATTERED LOAD SERVICE CLASSIFICATION~Retail Transmission Rate - Network Service Rate | I26: UNMETERED SCATTERED LOAD SERVICE CLASSIFICATION~Retail Transmission Rate - Line and Transformation Connection Service Rate | J26: SENTINEL LIGHTING SERVICE CLASSIFICATION~Retail Transmission Rate - Network Service Rate | K26: SENTINEL LIGHTING SERVICE CLASSIFICATION~Retail Transmission Rate - Line and Transformation Connection Service Rate | L26: STREET LIGHTING SERVICE CLASSIFICATION~Retail Transmission Rate - Network Service Rate | M26: STREET LIGHTING SERVICE CLASSIFICATION~Retail Transmission Rate - Line and Transformation Connection Service Rate
A27: Newmarket-Tay Power Distribution Ltd.-For Former Midland Power Utility Rate Zone | B27: RESIDENTIAL SERVICE CLASSIFICATION~Retail Transmission Rate - Network Service Rate | C27: RESIDENTIAL SERVICE CLASSIFICATION~Retail Transmission Rate - Line and Transformation Connection Service Rate | D27: GENERAL SERVICE LESS THAN 50 KW SERVICE CLASSIFICATION~Retail Transmission Rate - Network Service Rate | E27: GENERAL SERVICE LESS THAN 50 KW SERVICE CLASSIFICATION~Retail Transmission Rate - Line and Transformation Connection Service Rate | F27: GENERAL SERVICE 50 to 4,999 kW SERVICE CLASSIFICATION~Retail Transmission Rate - Network Service Rate | G27: GENERAL SERVICE 50 to 4,999 kW SERVICE CLASSIFICATION~Retail Transmission Rate - Line and Transformation Connection Service Rate | H27: UNMETERED SCATTERED LOAD SERVICE CLASSIFICATION~Retail Transmission Rate - Network Service Rate | I27: UNMETERED SCATTERED LOAD SERVICE CLASSIFICATION~Retail Transmission Rate - Line and Transformation Connection Service Rate | J27: STREET LIGHTING SERVICE CLASSIFICATION~Retail Transmission Rate - Network Service Rate | K27: STREET LIGHTING SERVICE CLASSIFICATION~Retail Transmission Rate - Line and Transformation Connection Service Rate
A28: Newmarket-Tay Power Distribution Ltd.-For Newmarket-Tay Power Main Rate Zone | B28: RESIDENTIAL SERVICE CLASSIFICATION~Retail Transmission Rate - Network Service Rate | C28: RESIDENTIAL SERVICE CLASSIFICATION~Retail Transmission Rate - Line and Transformation Connection Service Rate | D28: GENERAL SERVICE LESS THAN 50 KW SERVICE CLASSIFICATION~Retail Transmission Rate - Network Service Rate | E28: GENERAL SERVICE LESS THAN 50 KW SERVICE CLASSIFICATION~Retail Transmission Rate - Line and Transformation Connection Service Rate | F28: GENERAL SERVICE 50 to 4,999 kW SERVICE CLASSIFICATION~Retail Transmission Rate - Network Service Rate | G28: GENERAL SERVICE 50 to 4,999 kW SERVICE CLASSIFICATION~Retail Transmission Rate - Line and Transformation Connection Service Rate | H28: UNMETERED SCATTERED LOAD SERVICE CLASSIFICATION~Retail Transmission Rate - Network Service Rate | I28: UNMETERED SCATTERED LOAD SERVICE CLASSIFICATION~Retail Transmission Rate - Line and Transformation Connection Service Rate | J28: SENTINEL LIGHTING SERVICE CLASSIFICATION~Retail Transmission Rate - Network Service Rate | K28: SENTINEL LIGHTING SERVICE CLASSIFICATION~Retail Transmission Rate - Line and Transformation Connection Service Rate | L28: STREET LIGHTING SERVICE CLASSIFICATION~Retail Transmission Rate - Network Service Rate | M28: STREET LIGHTING SERVICE CLASSIFICATION~Retail Transmission Rate - Line and Transformation Connection Service Rate
A29: Bluewater Power Distribution Corporation | B29: RESIDENTIAL SERVICE CLASSIFICATION~Retail Transmission Rate - Network Service Rate | C29: RESIDENTIAL SERVICE CLASSIFICATION~Retail Transmission Rate - Line and Transformation Connection Service Rate | D29: GENERAL SERVICE LESS THAN 50 KW SERVICE CLASSIFICATION~Retail Transmission Rate - Network Service Rate | E29: GENERAL SERVICE LESS THAN 50 KW SERVICE CLASSIFICATION~Retail Transmission Rate - Line and Transformation Connection Service Rate | F29: GENERAL SERVICE 50 TO 999 KW SERVICE CLASSIFICATION~Retail Transmission Rate - Network Service Rate | G29: GENERAL SERVICE 50 TO 999 KW SERVICE CLASSIFICATION~Retail Transmission Rate - Line and Transformation Connection Service Rate | H29: GENERAL SERVICE 1,000 TO 4,999 KW SERVICE CLASSIFICATION~Retail Transmission Rate - Network Service Rate | I29: GENERAL SERVICE 1,000 TO 4,999 KW SERVICE CLASSIFICATION~Retail Transmission Rate - Line and Transformation Connection Service Rate | J29: LARGE USE SERVICE CLASSIFICATION~Retail Transmission Rate - Network Service Rate - Interval Metered | K29: LARGE USE SERVICE CLASSIFICATION~Retail Transmission Rate - Line and Transformation Connection Service Rate - Interval Metered | L29: UNMETERED SCATTERED LOAD SERVICE CLASSIFICATION~Retail Transmission Rate - Network Service Rate | M29: UNMETERED SCATTERED LOAD SERVICE CLASSIFICATION~Retail Transmission Rate - Line and Transformation Connection Service Rate | N29: SENTINEL LIGHTING SERVICE CLASSIFICATION~Retail Transmission Rate - Network Service Rate | O29: SENTINEL LIGHTING SERVICE CLASSIFICATION~Retail Transmission Rate - Line and Transformation Connection Service Rate | P29: STREET LIGHTING SERVICE CLASSIFICATION~Retail Transmission Rate - Network Service Rate | Q29: STREET LIGHTING SERVICE CLASSIFICATION~Retail Transmission Rate - Line and Transformation Connection Service Rate
A30: Atikokan Hydro Inc. | B30: RESIDENTIAL SERVICE CLASSIFICATION~Retail Transmission Rate - Network Service Rate | C30: RESIDENTIAL SERVICE CLASSIFICATION~Retail Transmission Rate - Transformation Connection Service Rate | D30: GENERAL SERVICE LESS THAN 50 KW SERVICE CLASSIFICATION~Retail Transmission Rate - Network Service Rate | E30: GENERAL SERVICE LESS THAN 50 KW SERVICE CLASSIFICATION~Retail Transmission Rate - Transformation Connection Service Rate | F30: GENERAL SERVICE 50 to 4,999 kW SERVICE CLASSIFICATION~Retail Transmission Rate - Network Service Rate | G30: GENERAL SERVICE 50 to 4,999 kW SERVICE CLASSIFICATION~Retail Transmission Rate - Line and Transformation Connection Service Rate | H30: GENERAL SERVICE 50 to 4,999 kW SERVICE CLASSIFICATION~Retail Transmission Rate - Network Service Rate - Interval Metered | I30: GENERAL SERVICE 50 to 4,999 kW SERVICE CLASSIFICATION~Retail Transmission Rate - Line and Transformation Connection Service Rate - Interval Metered | J30: STREET LIGHTING SERVICE CLASSIFICATION~Retail Transmission Rate - Network Service Rate | K30: STREET LIGHTING SERVICE CLASSIFICATION~Retail Transmission Rate - Line and Transformation Connection Service Rate
A31: Burlington Hydro Inc. | B31: RESIDENTIAL SERVICE CLASSIFICATION~Retail Transmission Rate - Network Service Rate | C31: RESIDENTIAL SERVICE CLASSIFICATION~Retail Transmission Rate - Line and Transformation Connection Service Rate | D31: GENERAL SERVICE LESS THAN 50 KW SERVICE CLASSIFICATION~Retail Transmission Rate - Network Service Rate | E31: GENERAL SERVICE LESS THAN 50 KW SERVICE CLASSIFICATION~Retail Transmission Rate - Line and Transformation Connection Service Rate | F31: GENERAL SERVICE 50 to 4,999 kW SERVICE CLASSIFICATION~Retail Transmission Rate - Network Service Rate - Interval Metered | G31: GENERAL SERVICE 50 to 4,999 kW SERVICE CLASSIFICATION~Retail Transmission Rate - Line and Transformation Connection Service Rate - Interval Metered | H31: UNMETERED SCATTERED LOAD SERVICE CLASSIFICATION~Retail Transmission Rate - Network Service Rate | I31: UNMETERED SCATTERED LOAD SERVICE CLASSIFICATION~Retail Transmission Rate - Line and Transformation Connection Service Rate | J31: STREET LIGHTING SERVICE CLASSIFICATION~Retail Transmission Rate - Network Service Rate | K31: STREET LIGHTING SERVICE CLASSIFICATION~Retail Transmission Rate - Line Connection Service Rate
A32: E.L.K. Energy Inc. | B32: RESIDENTIAL SERVICE CLASSIFICATION~Retail Transmission Rate - Network Service Rate | C32: RESIDENTIAL SERVICE CLASSIFICATION~Retail Transmission Rate - Line and Transformation Connection Service Rate | D32: GENERAL SERVICE LESS THAN 50 KW SERVICE CLASSIFICATION~Retail Transmission Rate - Network Service Rate | E32: GENERAL SERVICE LESS THAN 50 KW SERVICE CLASSIFICATION~Retail Transmission Rate - Line and Transformation Connection Service Rate | F32: GENERAL SERVICE 50 to 4,999 kW SERVICE CLASSIFICATION~Retail Transmission Rate - Network Service Rate | G32: GENERAL SERVICE 50 to 4,999 kW SERVICE CLASSIFICATION~Retail Transmission Rate - Line and Transformation Connection Service Rate | H32: UNMETERED SCATTERED LOAD SERVICE CLASSIFICATION~Retail Transmission Rate - Network Service Rate | I32: UNMETERED SCATTERED LOAD SERVICE CLASSIFICATION~Retail Transmission Rate - Line and Transformation Connection Service Rate | J32: SENTINEL LIGHTING SERVICE CLASSIFICATION~Retail Transmission Rate - Network Service Rate | K32: SENTINEL LIGHTING SERVICE CLASSIFICATION~Retail Transmission Rate - Line and Transformation Connection Service Rate | L32: STREET LIGHTING SERVICE CLASSIFICATION~Retail Transmission Rate - Network Service Rate | M32: STREET LIGHTING SERVICE CLASSIFICATION~Retail Transmission Rate - Line and Transformation Connection Service Rate | N32: EMBEDDED DISTRIBUTOR SERVICE CLASSIFICATION~Retail Transmission Rate - Network Service Rate | O32: EMBEDDED DISTRIBUTOR SERVICE CLASSIFICATION~Retail Transmission Rate - Line and Transformation Connection Service Rate
A33: EPCOR Electricity Distribution Ontario Inc. | B33: RESIDENTIAL SERVICE CLASSIFICATION~Retail Transmission Rate - Network Service Rate | C33: RESIDENTIAL SERVICE CLASSIFICATION~Retail Transmission Rate - Line and Transformation Connection Service Rate | D33: GENERAL SERVICE LESS THAN 50 KW SERVICE CLASSIFICATION~Retail Transmission Rate - Network Service Rate | E33: GENERAL SERVICE LESS THAN 50 KW SERVICE CLASSIFICATION~Retail Transmission Rate - Line and Transformation Connection Service Rate | F33: GENERAL SERVICE 50 to 4,999 kW SERVICE CLASSIFICATION~Retail Transmission Rate - Network Service Rate | G33: GENERAL SERVICE 50 to 4,999 kW SERVICE CLASSIFICATION~Retail Transmission Rate - Line and Transformation Connection Service Rate | H33: UNMETERED SCATTERED LOAD SERVICE CLASSIFICATION~Retail Transmission Rate - Network Service Rate | I33: UNMETERED SCATTERED LOAD SERVICE CLASSIFICATION~Retail Transmission Rate - Line and Transformation Connection Service Rate | J33: STREET LIGHTING SERVICE CLASSIFICATION~Retail Transmission Rate - Network Service Rate | K33: STREET LIGHTING SERVICE CLASSIFICATION~Retail Transmission Rate - Line and Transformation Connection Service Rate
A34: Essex Powerlines Corporation | B34: RESIDENTIAL SERVICE CLASSIFICATION~Retail Transmission Rate - Network Service Rate | C34: RESIDENTIAL SERVICE CLASSIFICATION~Retail Transmission Rate - Line and Transformation Connection Service Rate | D34: GENERAL SERVICE LESS THAN 50 KW SERVICE CLASSIFICATION~Retail Transmission Rate - Network Service Rate | E34: GENERAL SERVICE LESS THAN 50 KW SERVICE CLASSIFICATION~Retail Transmission Rate - Line and Transformation Connection Service Rate | F34: GENERAL SERVICE 50 to 4,999 kW SERVICE CLASSIFICATION~Retail Transmission Rate - Network Service Rate | G34: GENERAL SERVICE 50 to 4,999 kW SERVICE CLASSIFICATION~Retail Transmission Rate - Line and Transformation Connection Service Rate | H34: GENERAL SERVICE 50 to 4,999 kW SERVICE CLASSIFICATION~Retail Transmission Rate - Network Service Rate - Interval Metered | I34: GENERAL SERVICE 50 to 4,999 kW SERVICE CLASSIFICATION~Retail Transmission Rate - Line and Transformation Connection Service Rate - Interval Metered | J34: UNMETERED SCATTERED LOAD SERVICE CLASSIFICATION~Retail Transmission Rate - Network Service Rate | K34: UNMETERED SCATTERED LOAD SERVICE CLASSIFICATION~Retail Transmission Rate - Line and Transformation Connection Service Rate | L34: SENTINEL LIGHTING SERVICE CLASSIFICATION~Retail Transmission Rate - Network Service Rate | M34: SENTINEL LIGHTING SERVICE CLASSIFICATION~Retail Transmission Rate - Line and Transformation Connection Service Rate | N34: STREET LIGHTING SERVICE CLASSIFICATION~Retail Transmission Rate - Network Service Rate | O34: STREET LIGHTING SERVICE CLASSIFICATION~Retail Transmission Rate - Line and Transformation Connection Service Rate
A35: Fort Frances Power Corporation | B35: RESIDENTIAL SERVICE CLASSIFICATION~Retail Transmission Rate - Network Service Rate | C35: RESIDENTIAL SERVICE CLASSIFICATION~Retail Transmission Rate - Line and Transformation Connection Service Rate | D35: GENERAL SERVICE LESS THAN 50 KW SERVICE CLASSIFICATION~Retail Transmission Rate - Network Service Rate | E35: GENERAL SERVICE LESS THAN 50 KW SERVICE CLASSIFICATION~Retail Transmission Rate - Line and Transformation Connection Service Rate | F35: GENERAL SERVICE 50 to 4,999 kW SERVICE CLASSIFICATION~Retail Transmission Rate - Network Service Rate | G35: GENERAL SERVICE 50 to 4,999 kW SERVICE CLASSIFICATION~Retail Transmission Rate - Line and Transformation Connection Service Rate | H35: UNMETERED SCATTERED LOAD SERVICE CLASSIFICATION~Retail Transmission Rate - Network Service Rate | I35: UNMETERED SCATTERED LOAD SERVICE CLASSIFICATION~Retail Transmission Rate - Line and Transformation Connection Service Rate | J35: STREET LIGHTING SERVICE CLASSIFICATION~Retail Transmission Rate - Network Service Rate | K35: STREET LIGHTING SERVICE CLASSIFICATION~Retail Transmission Rate - Line and Transformation Connection Service Rate
A36: Greater Sudbury Hydro Inc. | B36: RESIDENTIAL SERVICE CLASSIFICATION~Retail Transmission Rate - Network Service Rate | C36: RESIDENTIAL SERVICE CLASSIFICATION~Retail Transmission Rate - Line and Transformation Connection Service Rate | D36: GENERAL SERVICE LESS THAN 50 KW SERVICE CLASSIFICATION~Retail Transmission Rate - Network Service Rate | E36: GENERAL SERVICE LESS THAN 50 KW SERVICE CLASSIFICATION~Retail Transmission Rate - Line and Transformation Connection Service Rate | F36: GENERAL SERVICE 50 to 4,999 kW SERVICE CLASSIFICATION~Retail Transmission Rate - Network Service Rate | G36: GENERAL SERVICE 50 to 4,999 kW SERVICE CLASSIFICATION~Retail Transmission Rate - Line and Transformation Connection Service Rate | H36: UNMETERED SCATTERED LOAD SERVICE CLASSIFICATION~Retail Transmission Rate - Network Service Rate | I36: UNMETERED SCATTERED LOAD SERVICE CLASSIFICATION~Retail Transmission Rate - Line and Transformation Connection Service Rate | J36: SENTINEL LIGHTING SERVICE CLASSIFICATION~Retail Transmission Rate - Network Service Rate | K36: SENTINEL LIGHTING SERVICE CLASSIFICATION~Retail Transmission Rate - Line and Transformation Connection Service Rate | L36: STREET LIGHTING SERVICE CLASSIFICATION~Retail Transmission Rate - Network Service Rate | M36: STREET LIGHTING SERVICE CLASSIFICATION~Retail Transmission Rate - Line and Transformation Connection Service Rate
A37: Halton Hills Hydro Inc. | B37: RESIDENTIAL SERVICE CLASSIFICATION~Retail Transmission Rate - Network Service Rate | C37: RESIDENTIAL SERVICE CLASSIFICATION~Retail Transmission Rate - Line and Transformation Connection Service Rate | D37: GENERAL SERVICE LESS THAN 50 KW SERVICE CLASSIFICATION~Retail Transmission Rate - Network Service Rate | E37: GENERAL SERVICE LESS THAN 50 KW SERVICE CLASSIFICATION~Retail Transmission Rate - Line and Transformation Connection Service Rate | F37: GENERAL SERVICE 50 TO 999 KW SERVICE CLASSIFICATION~Retail Transmission Rate - Network Service Rate | G37: GENERAL SERVICE 50 TO 999 KW SERVICE CLASSIFICATION~Retail Transmission Rate - Line and Transformation Connection Service Rate | H37: GENERAL SERVICE 1,000 TO 4,999 KW SERVICE CLASSIFICATION~Retail Transmission Rate - Network Service Rate | I37: GENERAL SERVICE 1,000 TO 4,999 KW SERVICE CLASSIFICATION~Retail Transmission Rate - Line and Transformation Connection Service Rate | J37: UNMETERED SCATTERED LOAD SERVICE CLASSIFICATION~Retail Transmission Rate - Network Service Rate | K37: UNMETERED SCATTERED LOAD SERVICE CLASSIFICATION~Retail Transmission Rate - Line and Transformation Connection Service Rate | L37: SENTINEL LIGHTING SERVICE CLASSIFICATION~Retail Transmission Rate - Network Service Rate | M37: SENTINEL LIGHTING SERVICE CLASSIFICATION~Retail Transmission Rate - Line and Transformation Connection Service Rate | N37: STREET LIGHTING SERVICE CLASSIFICATION~Retail Transmission Rate - Network Service Rate | O37: STREET LIGHTING SERVICE CLASSIFICATION~Retail Transmission Rate - Line and Transformation Connection Service Rate
A38: Hydro One Networks Inc.-Former Haldimand County Hydro Inc. Service Area | B38: RESIDENTIAL SERVICE CLASSIFICATION~Retail Transmission Rate - Network Service Rate | C38: RESIDENTIAL SERVICE CLASSIFICATION~Retail Transmission Rate - Line and Transformation Connection Service Rate | D38: GENERAL SERVICE LESS THAN 50 KW SERVICE CLASSIFICATION~Retail Transmission Rate - Network Service Rate | E38: GENERAL SERVICE LESS THAN 50 KW SERVICE CLASSIFICATION~Retail Transmission Rate - Line and Transformation Connection Service Rate | F38: GENERAL SERVICE 50 to 4,999 kW SERVICE CLASSIFICATION~Retail Transmission Rate - Network Service Rate | G38: GENERAL SERVICE 50 to 4,999 kW SERVICE CLASSIFICATION~Retail Transmission Rate - Line and Transformation Connection Service Rate | H38: UNMETERED SCATTERED LOAD SERVICE CLASSIFICATION~Retail Transmission Rate - Network Service Rate | I38: UNMETERED SCATTERED LOAD SERVICE CLASSIFICATION~Retail Transmission Rate - Line and Transformation Connection Service Rate | J38: SENTINEL LIGHTING SERVICE CLASSIFICATION~Retail Transmission Rate - Network Service Rate | K38: SENTINEL LIGHTING SERVICE CLASSIFICATION~Retail Transmission Rate - Line and Transformation Connection Service Rate | L38: STREET LIGHTING SERVICE CLASSIFICATION~Retail Transmission Rate - Network Service Rate | M38: STREET LIGHTING SERVICE CLASSIFICATION~Retail Transmission Rate - Line and Transformation Connection Service Rate | N38: EMBEDDED DISTRIBUTOR SERVICE CLASSIFICATION FOR HYDRO ONE NETWORKS INC.~Retail Transmission Rate - Network Service Rate | O38: EMBEDDED DISTRIBUTOR SERVICE CLASSIFICATION FOR HYDRO ONE NETWORKS INC.~Retail Transmission Rate - Line and Transformation Connection Service Rate
A39: Hydro One Networks Inc.-Former Norfolk Power Distribution Inc. Service Area | B39: RESIDENTIAL SERVICE CLASSIFICATION~Retail Transmission Rate - Network Service Rate | C39: RESIDENTIAL SERVICE CLASSIFICATION~Retail Transmission Rate - Line and Transformation Connection Service Rate | D39: GENERAL SERVICE LESS THAN 50 KW SERVICE CLASSIFICATION~Retail Transmission Rate - Network Service Rate | E39: GENERAL SERVICE LESS THAN 50 KW SERVICE CLASSIFICATION~Retail Transmission Rate - Line and Transformation Connection Service Rate | F39: GENERAL SERVICE 50 to 4,999 kW SERVICE CLASSIFICATION~Retail Transmission Rate - Network Service Rate | G39: GENERAL SERVICE 50 to 4,999 kW SERVICE CLASSIFICATION~Retail Transmission Rate - Line and Transformation Connection Service Rate | H39: UNMETERED SCATTERED LOAD SERVICE CLASSIFICATION~Retail Transmission Rate - Network Service Rate | I39: UNMETERED SCATTERED LOAD SERVICE CLASSIFICATION~Retail Transmission Rate - Line and Transformation Connection Service Rate | J39: SENTINEL LIGHTING SERVICE CLASSIFICATION~Retail Transmission Rate - Network Service Rate | K39: SENTINEL LIGHTING SERVICE CLASSIFICATION~Retail Transmission Rate - Line and Transformation Connection Service Rate | L39: STREET LIGHTING SERVICE CLASSIFICATION~Retail Transmission Rate - Network Service Rate | M39: STREET LIGHTING SERVICE CLASSIFICATION~Retail Transmission Rate - Line and Transformation Connection Service Rate
A40: Hydro One Networks Inc.-Former Woodstock Hydro Services Inc. Service Area | B40: RESIDENTIAL SERVICE CLASSIFICATION~Retail Transmission Rate - Network Service Rate | C40: RESIDENTIAL SERVICE CLASSIFICATION~Retail Transmission Rate - Line and Transformation Connection Service Rate | D40: GENERAL SERVICE LESS THAN 50 KW SERVICE CLASSIFICATION~Retail Transmission Rate - Network Service Rate | E40: GENERAL SERVICE LESS THAN 50 KW SERVICE CLASSIFICATION~Retail Transmission Rate - Line and Transformation Connection Service Rate | F40: GENERAL SERVICE 50 TO 999 KW SERVICE CLASSIFICATION~Retail Transmission Rate - Network Service Rate | G40: GENERAL SERVICE 50 TO 999 KW SERVICE CLASSIFICATION~Retail Transmission Rate - Line and Transformation Connection Service Rate | H40: GENERAL SERVICE GREATER THAN 1,000 KW SERVICE CLASSIFICATION~Retail Transmission Rate - Network Service Rate | I40: GENERAL SERVICE GREATER THAN 1,000 KW SERVICE CLASSIFICATION~Retail Transmission Rate - Line and Transformation Connection Service Rate | J40: UNMETERED SCATTERED LOAD SERVICE CLASSIFICATION~Retail Transmission Rate - Network Service Rate | K40: UNMETERED SCATTERED LOAD SERVICE CLASSIFICATION~Retail Transmission Rate - Line and Transformation Connection Service Rate | L40: STREET LIGHTING SERVICE CLASSIFICATION~Retail Transmission Rate - Network Service Rate | M40: STREET LIGHTING SERVICE CLASSIFICATION~Retail Transmission Rate - Line and Transformation Connection Service Rate
A41: Synergy North Corporation-Kenora Rate Zone | B41: RESIDENTIAL SERVICE CLASSIFICATION~Retail Transmission Rate - Network Service Rate | C41: RESIDENTIAL SERVICE CLASSIFICATION~Retail Transmission Rate - Line and Transformation Connection Service Rate | D41: GENERAL SERVICE LESS THAN 50 KW SERVICE CLASSIFICATION~Retail Transmission Rate - Network Service Rate | E41: GENERAL SERVICE LESS THAN 50 KW SERVICE CLASSIFICATION~Retail Transmission Rate - Line and Transformation Connection Service Rate | F41: GENERAL SERVICE 50 to 4,999 kW SERVICE CLASSIFICATION~Retail Transmission Rate - Network Service Rate | G41: GENERAL SERVICE 50 to 4,999 kW SERVICE CLASSIFICATION~Retail Transmission Rate - Line and Transformation Connection Service Rate | H41: UNMETERED SCATTERED LOAD SERVICE CLASSIFICATION~Retail Transmission Rate - Network Service Rate | I41: UNMETERED SCATTERED LOAD SERVICE CLASSIFICATION~Retail Transmission Rate - Line and Transformation Connection Service Rate | J41: STREET LIGHTING SERVICE CLASSIFICATION~Retail Transmission Rate - Network Service Rate | K41: STREET LIGHTING SERVICE CLASSIFICATION~Retail Transmission Rate - Line and Transformation Connection Service Rate
A42: London Hydro Inc. | B42: RESIDENTIAL SERVICE CLASSIFICATION~Retail Transmission Rate - Network Service Rate | C42: RESIDENTIAL SERVICE CLASSIFICATION~Retail Transmission Rate - Line and Transformation Connection Service Rate | D42: GENERAL SERVICE LESS THAN 50 KW SERVICE CLASSIFICATION~Retail Transmission Rate - Network Service Rate | E42: GENERAL SERVICE LESS THAN 50 KW SERVICE CLASSIFICATION~Retail Transmission Rate - Line and Transformation Connection Service Rate | F42: GENERAL SERVICE 50 to 4,999 kW SERVICE CLASSIFICATION~Retail Transmission Rate - Network Service Rate | G42: GENERAL SERVICE 50 to 4,999 kW SERVICE CLASSIFICATION~Retail Transmission Rate - Line and Transformation Connection Service Rate | H42: GENERAL SERVICE 50 to 4,999 kW SERVICE CLASSIFICATION~Retail Transmission Rate - Network Service Rate - Interval Metered | I42: GENERAL SERVICE 50 to 4,999 kW SERVICE CLASSIFICATION~Retail Transmission Rate - Line and Transformation Connection Service Rate - Interval Metered | J42: GENERAL SERVICE 1,000 TO 4,999 KW (CO-GENERATION) SERVICE CLASSIFICATION~Retail Transmission Rate - Network Service Rate | K42: GENERAL SERVICE 1,000 TO 4,999 KW (CO-GENERATION) SERVICE CLASSIFICATION~Retail Transmission Rate - Line and Transformation Connection Service Rate | L42: LARGE USE SERVICE CLASSIFICATION~Retail Transmission Rate - Network Service Rate - Interval Metered | M42: LARGE USE SERVICE CLASSIFICATION~Retail Transmission Rate - Line and Transformation Connection Service Rate - Interval Metered | N42: STREET LIGHTING SERVICE CLASSIFICATION~Retail Transmission Rate - Network Service Rate | O42: STREET LIGHTING SERVICE CLASSIFICATION~Retail Transmission Rate - Line and Transformation Connection Service Rate | P42: SENTINEL LIGHTING SERVICE CLASSIFICATION~Retail Transmission Rate - Network Service Rate | Q42: SENTINEL LIGHTING SERVICE CLASSIFICATION~Retail Transmission Rate - Line and Transformation Connection Service Rate | R42: UNMETERED SCATTERED LOAD SERVICE CLASSIFICATION~Retail Transmission Rate - Network Service Rate | S42: UNMETERED SCATTERED LOAD SERVICE CLASSIFICATION~Retail Transmission Rate - Line and Transformation Connection Service Rate
A43: Milton Hydro Distribution Inc. | B43: RESIDENTIAL SERVICE CLASSIFICATION~Retail Transmission Rate - Network Service Rate | C43: RESIDENTIAL SERVICE CLASSIFICATION~Retail Transmission Rate - Line and Transformation Connection Service Rate | D43: GENERAL SERVICE LESS THAN 50 KW SERVICE CLASSIFICATION~Retail Transmission Rate - Network Service Rate | E43: GENERAL SERVICE LESS THAN 50 KW SERVICE CLASSIFICATION~Retail Transmission Rate - Line and Transformation Connection Service Rate | F43: GENERAL SERVICE 50 TO 999 KW SERVICE CLASSIFICATION~Retail Transmission Rate - Network Service Rate | G43: GENERAL SERVICE 50 TO 999 KW SERVICE CLASSIFICATION~Retail Transmission Rate - Line and Transformation Connection Service Rate | H43: GENERAL SERVICE 1,000 TO 4,999 KW SERVICE CLASSIFICATION~Retail Transmission Rate - Network Service Rate | I43: GENERAL SERVICE 1,000 TO 4,999 KW SERVICE CLASSIFICATION~Retail Transmission Rate - Line and Transformation Connection Service Rate | J43: LARGE USE SERVICE CLASSIFICATION~Retail Transmission Rate - Network Service Rate - Interval Metered | K43: LARGE USE SERVICE CLASSIFICATION~Retail Transmission Rate - Line and Transformation Connection Service Rate - Interval Metered | L43: UNMETERED SCATTERED LOAD SERVICE CLASSIFICATION~Retail Transmission Rate - Network Service Rate | M43: UNMETERED SCATTERED LOAD SERVICE CLASSIFICATION~Retail Transmission Rate - Line and Transformation Connection Service Rate | N43: SENTINEL LIGHTING SERVICE CLASSIFICATION~Retail Transmission Rate - Network Service Rate | O43: SENTINEL LIGHTING SERVICE CLASSIFICATION~Retail Transmission Rate - Line and Transformation Connection Service Rate | P43: STREET LIGHTING SERVICE CLASSIFICATION~Retail Transmission Rate - Network Service Rate | Q43: STREET LIGHTING SERVICE CLASSIFICATION~Retail Transmission Rate - Line and Transformation Connection Service Rate
A44: North Bay Hydro Distribution Limited | B44: RESIDENTIAL SERVICE CLASSIFICATION~Retail Transmission Rate - Network Service Rate | C44: RESIDENTIAL SERVICE CLASSIFICATION~Retail Transmission Rate - Line and Transformation Connection Service Rate | D44: GENERAL SERVICE LESS THAN 50 KW SERVICE CLASSIFICATION~Retail Transmission Rate - Network Service Rate | E44: GENERAL SERVICE LESS THAN 50 KW SERVICE CLASSIFICATION~Retail Transmission Rate - Line and Transformation Connection Service Rate | F44: GENERAL SERVICE 50 TO 2,999 KW SERVICE CLASSIFICATION~Retail Transmission Rate - Network Service Rate | G44: GENERAL SERVICE 50 TO 2,999 KW SERVICE CLASSIFICATION~Retail Transmission Rate - Line and Transformation Connection Service Rate | H44: GENERAL SERVICE 3,000 TO 4,999 KW SERVICE CLASSIFICATION~Retail Transmission Rate - Network Service Rate - Interval Metered | I44: GENERAL SERVICE 3,000 TO 4,999 KW SERVICE CLASSIFICATION~Retail Transmission Rate - Line and Transformation Connection Service Rate - Interval Metered | J44: UNMETERED SCATTERED LOAD SERVICE CLASSIFICATION~Retail Transmission Rate - Network Service Rate | K44: UNMETERED SCATTERED LOAD SERVICE CLASSIFICATION~Retail Transmission Rate - Line and Transformation Connection Service Rate | L44: SENTINEL LIGHTING SERVICE CLASSIFICATION~Retail Transmission Rate - Network Service Rate | M44: SENTINEL LIGHTING SERVICE CLASSIFICATION~Retail Transmission Rate - Line and Transformation Connection Service Rate | N44: STREET LIGHTING SERVICE CLASSIFICATION~Retail Transmission Rate - Network Service Rate | O44: STREET LIGHTING SERVICE CLASSIFICATION~Retail Transmission Rate - Line and Transformation Connection Service Rate
A45: Northern Ontario Wires Inc. | B45: RESIDENTIAL SERVICE CLASSIFICATION~Retail Transmission Rate - Network Service Rate | C45: RESIDENTIAL SERVICE CLASSIFICATION~Retail Transmission Rate - Line and Transformation Connection Service Rate | D45: GENERAL SERVICE LESS THAN 50 KW SERVICE CLASSIFICATION~Retail Transmission Rate - Network Service Rate | E45: GENERAL SERVICE LESS THAN 50 KW SERVICE CLASSIFICATION~Retail Transmission Rate - Line and Transformation Connection Service Rate | F45: GENERAL SERVICE 50 to 4,999 kW SERVICE CLASSIFICATION~Retail Transmission Rate - Network Service Rate | G45: GENERAL SERVICE 50 to 4,999 kW SERVICE CLASSIFICATION~Retail Transmission Rate - Line and Transformation Connection Service Rate | H45: UNMETERED SCATTERED LOAD SERVICE CLASSIFICATION~Retail Transmission Rate - Network Service Rate | I45: UNMETERED SCATTERED LOAD SERVICE CLASSIFICATION~Retail Transmission Rate - Line and Transformation Connection Service Rate | J45: STREET LIGHTING SERVICE CLASSIFICATION~Retail Transmission Rate - Network Service Rate | K45: STREET LIGHTING SERVICE CLASSIFICATION~Retail Transmission Rate - Line and Transformation Connection Service Rate
A46: Niagara Peninsula Energy Inc. | B46: RESIDENTIAL SERVICE CLASSIFICATION~Retail Transmission Rate - Network Service Rate | C46: RESIDENTIAL SERVICE CLASSIFICATION~Retail Transmission Rate - Line and Transformation Connection Service Rate | D46: GENERAL SERVICE LESS THAN 50 KW SERVICE CLASSIFICATION~Retail Transmission Rate - Network Service Rate | E46: GENERAL SERVICE LESS THAN 50 KW SERVICE CLASSIFICATION~Retail Transmission Rate - Line and Transformation Connection Service Rate | F46: GENERAL SERVICE 50 to 4,999 kW SERVICE CLASSIFICATION~Retail Transmission Rate - Network Service Rate | G46: GENERAL SERVICE 50 to 4,999 kW SERVICE CLASSIFICATION~Retail Transmission Rate - Line and Transformation Connection Service Rate | H46: UNMETERED SCATTERED LOAD SERVICE CLASSIFICATION~Retail Transmission Rate - Network Service Rate | I46: UNMETERED SCATTERED LOAD SERVICE CLASSIFICATION~Retail Transmission Rate - Line and Transformation Connection Service Rate | J46: SENTINEL LIGHTING SERVICE CLASSIFICATION~Retail Transmission Rate - Network Service Rate | K46: SENTINEL LIGHTING SERVICE CLASSIFICATION~Retail Transmission Rate - Line and Transformation Connection Service Rate | L46: STREET LIGHTING SERVICE CLASSIFICATION~Retail Transmission Rate - Network Service Rate | M46: STREET LIGHTING SERVICE CLASSIFICATION~Retail Transmission Rate - Line and Transformation Connection Service Rate
A47: Orangeville Hydro Limited | B47: RESIDENTIAL SERVICE CLASSIFICATION~Retail Transmission Rate - Network Service Rate | C47: RESIDENTIAL SERVICE CLASSIFICATION~Retail Transmission Rate - Line and Transformation Connection Service Rate | D47: GENERAL SERVICE LESS THAN 50 KW SERVICE CLASSIFICATION~Retail Transmission Rate - Network Service Rate | E47: GENERAL SERVICE LESS THAN 50 KW SERVICE CLASSIFICATION~Retail Transmission Rate - Line and Transformation Connection Service Rate | F47: GENERAL SERVICE 50 to 4,999 kW SERVICE CLASSIFICATION~Retail Transmission Rate - Network Service Rate | G47: GENERAL SERVICE 50 to 4,999 kW SERVICE CLASSIFICATION~Retail Transmission Rate - Line and Transformation Connection Service Rate | H47: SENTINEL LIGHTING SERVICE CLASSIFICATION~Retail Transmission Rate - Network Service Rate | I47: SENTINEL LIGHTING SERVICE CLASSIFICATION~Retail Transmission Rate - Line and Transformation Connection Service Rate | J47: STREET LIGHTING SERVICE CLASSIFICATION~Retail Transmission Rate - Network Service Rate | K47: STREET LIGHTING SERVICE CLASSIFICATION~Retail Transmission Rate - Line and Transformation Connection Service Rate | L47: UNMETERED SCATTERED LOAD SERVICE CLASSIFICATION~Retail Transmission Rate - Network Service Rate | M47: UNMETERED SCATTERED LOAD SERVICE CLASSIFICATION~Retail Transmission Rate - Line and Transformation Connection Service Rate
A48: Ottawa River Power Corporation | B48: RESIDENTIAL SERVICE CLASSIFICATION~Retail Transmission Rate - Network Service Rate | C48: RESIDENTIAL SERVICE CLASSIFICATION~Retail Transmission Rate - Line and Transformation Connection Service Rate | D48: GENERAL SERVICE LESS THAN 50 KW SERVICE CLASSIFICATION~Retail Transmission Rate - Network Service Rate | E48: GENERAL SERVICE LESS THAN 50 KW SERVICE CLASSIFICATION~Retail Transmission Rate - Line and Transformation Connection Service Rate | F48: GENERAL SERVICE 50 to 4,999 kW SERVICE CLASSIFICATION~Retail Transmission Rate - Network Service Rate | G48: GENERAL SERVICE 50 to 4,999 kW SERVICE CLASSIFICATION~Retail Transmission Rate - Line and Transformation Connection Service Rate | H48: SENTINEL LIGHTING SERVICE CLASSIFICATION~Retail Transmission Rate - Network Service Rate | I48: SENTINEL LIGHTING SERVICE CLASSIFICATION~Retail Transmission Rate - Line and Transformation Connection Service Rate | J48: STREET LIGHTING SERVICE CLASSIFICATION~Retail Transmission Rate - Network Service Rate | K48: STREET LIGHTING SERVICE CLASSIFICATION~Retail Transmission Rate - Line and Transformation Connection Service Rate | L48: UNMETERED SCATTERED LOAD SERVICE CLASSIFICATION~Retail Transmission Rate - Network Service Rate | M48: UNMETERED SCATTERED LOAD SERVICE CLASSIFICATION~Retail Transmission Rate - Line and Transformation Connection Service Rate
A49: Rideau St. Lawrence Distribution Inc. | B49: RESIDENTIAL SERVICE CLASSIFICATION~Retail Transmission Rate - Network Service Rate | C49: RESIDENTIAL SERVICE CLASSIFICATION~Retail Transmission Rate - Line and Transformation Connection Service Rate | D49: GENERAL SERVICE LESS THAN 50 KW SERVICE CLASSIFICATION~Retail Transmission Rate - Network Service Rate | E49: GENERAL SERVICE LESS THAN 50 KW SERVICE CLASSIFICATION~Retail Transmission Rate - Line and Transformation Connection Service Rate | F49: GENERAL SERVICE 50 to 4,999 kW SERVICE CLASSIFICATION~Retail Transmission Rate - Network Service Rate | G49: GENERAL SERVICE 50 to 4,999 kW SERVICE CLASSIFICATION~Retail Transmission Rate - Line and Transformation Connection Service Rate | H49: GENERAL SERVICE 50 to 4,999 kW SERVICE CLASSIFICATION~Retail Transmission Rate - Network Service Rate - Interval Metered | I49: GENERAL SERVICE 50 to 4,999 kW SERVICE CLASSIFICATION~Retail Transmission Rate - Line and Transformation Connection Service Rate - Interval Metered | J49: UNMETERED SCATTERED LOAD SERVICE CLASSIFICATION~Retail Transmission Rate - Network Service Rate | K49: UNMETERED SCATTERED LOAD SERVICE CLASSIFICATION~Retail Transmission Rate - Line and Transformation Connection Service Rate | L49: SENTINEL LIGHTING SERVICE CLASSIFICATION~Retail Transmission Rate - Network Service Rate | M49: SENTINEL LIGHTING SERVICE CLASSIFICATION~Retail Transmission Rate - Line and Transformation Connection Service Rate | N49: STREET LIGHTING SERVICE CLASSIFICATION~Retail Transmission Rate - Network Service Rate | O49: STREET LIGHTING SERVICE CLASSIFICATION~Retail Transmission Rate - Line and Transformation Connection Service Rate
A50: Sioux Lookout Hydro Inc. | B50: RESIDENTIAL SERVICE CLASSIFICATION~Retail Transmission Rate - Network Service Rate | C50: RESIDENTIAL SERVICE CLASSIFICATION~Retail Transmission Rate - Line and Transformation Connection Service Rate | D50: GENERAL SERVICE LESS THAN 50 KW SERVICE CLASSIFICATION~Retail Transmission Rate - Network Service Rate | E50: GENERAL SERVICE LESS THAN 50 KW SERVICE CLASSIFICATION~Retail Transmission Rate - Line and Transformation Connection Service Rate | F50: GENERAL SERVICE 50 to 4,999 kW SERVICE CLASSIFICATION~Retail Transmission Rate - Network Service Rate | G50: GENERAL SERVICE 50 to 4,999 kW SERVICE CLASSIFICATION~Retail Transmission Rate - Line and Transformation Connection Service Rate | H50: GENERAL SERVICE 50 to 4,999 kW SERVICE CLASSIFICATION~Retail Transmission Rate - Network Service Rate - Interval Metered > 1,000 kW | I50: GENERAL SERVICE 50 to 4,999 kW SERVICE CLASSIFICATION~Retail Transmission Rate - Line and Transformation Connection Service Rate - Interval Metered > 1,000 kW | J50: STREET LIGHTING SERVICE CLASSIFICATION~Retail Transmission Rate - Network Service Rate | K50: STREET LIGHTING SERVICE CLASSIFICATION~Retail Transmission Rate - Line and Transformation Connection Service Rate
A51: Synergy North Corporation-Thunder Bay Rate Zone | B51: RESIDENTIAL SERVICE CLASSIFICATION~Retail Transmission Rate - Network Service Rate | C51: RESIDENTIAL SERVICE CLASSIFICATION~Retail Transmission Rate - Line and Transformation Connection Service Rate | D51: GENERAL SERVICE LESS THAN 50 KW SERVICE CLASSIFICATION~Retail Transmission Rate - Network Service Rate | E51: GENERAL SERVICE LESS THAN 50 KW SERVICE CLASSIFICATION~Retail Transmission Rate - Line and Transformation Connection Service Rate | F51: GENERAL SERVICE 50 TO 999 KW SERVICE CLASSIFICATION~Retail Transmission Rate - Network Service Rate | G51: GENERAL SERVICE 50 TO 999 KW SERVICE CLASSIFICATION~Retail Transmission Rate - Line and Transformation Connection Service Rate | H51: GENERAL SERVICE 50 TO 999 KW SERVICE CLASSIFICATION~Retail Transmission Rate - Network Service Rate - Interval Metered | I51: GENERAL SERVICE 50 TO 999 KW SERVICE CLASSIFICATION~Retail Transmission Rate - Line and Transformation Connection Service Rate - Interval Metered | J51: GENERAL SERVICE 1,000 KW OR GREATER SERVICE CLASSIFICATION~Retail Transmission Rate - Network Service Rate | K51: GENERAL SERVICE 1,000 KW OR GREATER SERVICE CLASSIFICATION~Retail Transmission Rate - Line and Transformation Connection Service Rate | L51: UNMETERED SCATTERED LOAD SERVICE CLASSIFICATION~Retail Transmission Rate - Network Service Rate | M51: UNMETERED SCATTERED LOAD SERVICE CLASSIFICATION~Retail Transmission Rate - Line and Transformation Connection Service Rate | N51: SENTINEL LIGHTING SERVICE CLASSIFICATION~Retail Transmission Rate - Network Service Rate | O51: SENTINEL LIGHTING SERVICE CLASSIFICATION~Retail Transmission Rate - Line and Transformation Connection Service Rate | P51: STREET LIGHTING SERVICE CLASSIFICATION~Retail Transmission Rate - Network Service Rate | Q51: STREET LIGHTING SERVICE CLASSIFICATION~Retail Transmission Rate - Line and Transformation Connection Service Rate
A52: ENWIN Utilities Ltd. | B52: RESIDENTIAL SERVICE CLASSIFICATION~Retail Transmission Rate - Network Service Rate | C52: RESIDENTIAL SERVICE CLASSIFICATION~Retail Transmission Rate - Line and Transformation Connection Service Rate | D52: GENERAL SERVICE LESS THAN 50 KW SERVICE CLASSIFICATION~Retail Transmission Rate - Network Service Rate | E52: GENERAL SERVICE LESS THAN 50 KW SERVICE CLASSIFICATION~Retail Transmission Rate - Line and Transformation Connection Service Rate | F52: GENERAL SERVICE 50 to 4,999 kW SERVICE CLASSIFICATION~Retail Transmission Rate - Network Service Rate | G52: GENERAL SERVICE 50 to 4,999 kW SERVICE CLASSIFICATION~Retail Transmission Rate - Line and Transformation Connection Service Rate | H52: GENERAL SERVICE 3,000 TO 4,999 KW - INTERMEDIATE USE SERVICE CLASSIFICATION~Retail Transmission Rate - Network Service Rate | I52: GENERAL SERVICE 3,000 TO 4,999 KW - INTERMEDIATE USE SERVICE CLASSIFICATION~Retail Transmission Rate - Line and Transformation Connection Service Rate | J52: LARGE USE - REGULAR SERVICE CLASSIFICATION~Retail Transmission Rate - Network Service Rate | K52: LARGE USE - REGULAR SERVICE CLASSIFICATION~Retail Transmission Rate - Line Connection Service Rate | L52: LARGE USE - REGULAR SERVICE CLASSIFICATION~Retail Transmission Rate - Transformation Connection Service Rate | M52: LARGE USE - 3TS SERVICE CLASSIFICATION~Retail Transmission Rate - Network Service Rate | N52: LARGE USE - 3TS SERVICE CLASSIFICATION~Retail Transmission Rate - Line Connection Service Rate | O52: LARGE USE - FORD ANNEX SERVICE CLASSIFICATION~Retail Transmission Rate - Network Service Rate | P52: LARGE USE - FORD ANNEX SERVICE CLASSIFICATION~Retail Transmission Rate - Line Connection Service Rate | Q52: UNMETERED SCATTERED LOAD SERVICE CLASSIFICATION~Retail Transmission Rate - Network Service Rate | R52: UNMETERED SCATTERED LOAD SERVICE CLASSIFICATION~Retail Transmission Rate - Line and Transformation Connection Service Rate | S52: SENTINEL LIGHTING SERVICE CLASSIFICATION~Retail Transmission Rate - Network Service Rate | T52: SENTINEL LIGHTING SERVICE CLASSIFICATION~Retail Transmission Rate - Line and Transformation Connection Service Rate | U52: STREET LIGHTING SERVICE CLASSIFICATION~Retail Transmission Rate - Network Service Rate | V52: STREET LIGHTING SERVICE CLASSIFICATION~Retail Transmission Rate - Line and Transformation Connection Service Rate
A53: Hearst Power Distribution Co. Ltd. | B53: RESIDENTIAL SERVICE CLASSIFICATION~Retail Transmission Rate - Network Service Rate | C53: RESIDENTIAL SERVICE CLASSIFICATION~Retail Transmission Rate - Line and Transformation Connection Service Rate | D53: GENERAL SERVICE LESS THAN 50 KW SERVICE CLASSIFICATION~Retail Transmission Rate - Network Service Rate | E53: GENERAL SERVICE LESS THAN 50 KW SERVICE CLASSIFICATION~Retail Transmission Rate - Line and Transformation Connection Service Rate | F53: GENERAL SERVICE 50 TO 1,499 KW SERVICE CLASSIFICATION~Retail Transmission Rate - Network Service Rate | G53: GENERAL SERVICE 50 TO 1,499 KW SERVICE CLASSIFICATION~Retail Transmission Rate - Line and Transformation Connection Service Rate | H53: INTERMEDIATE USER SERVICE CLASSIFICATION~Retail Transmission Rate - Network Service Rate | I53: INTERMEDIATE USER SERVICE CLASSIFICATION~Retail Transmission Rate - Line and Transformation Connection Service Rate | J53: SENTINEL LIGHTING SERVICE CLASSIFICATION~Retail Transmission Rate - Network Service Rate | K53: SENTINEL LIGHTING SERVICE CLASSIFICATION~Retail Transmission Rate - Line and Transformation Connection Service Rate | L53: STREET LIGHTING SERVICE CLASSIFICATION~Retail Transmission Rate - Network Service Rate | M53: STREET LIGHTING SERVICE CLASSIFICATION~Retail Transmission Rate - Line and Transformation Connection Service Rate
A54: ERTH Power Corporation-ERTH Power Main Rate Zone | B54: RESIDENTIAL SERVICE CLASSIFICATION~Retail Transmission Rate - Network Service Rate | C54: RESIDENTIAL SERVICE CLASSIFICATION~Retail Transmission Rate - Line and Transformation Connection Service Rate | D54: GENERAL SERVICE LESS THAN 50 KW SERVICE CLASSIFICATION~Retail Transmission Rate - Network Service Rate | E54: GENERAL SERVICE LESS THAN 50 KW SERVICE CLASSIFICATION~Retail Transmission Rate - Line and Transformation Connection Service Rate | F54: GENERAL SERVICE 50 TO 999 KW SERVICE CLASSIFICATION~Retail Transmission Rate - Network Service Rate | G54: GENERAL SERVICE 50 TO 999 KW SERVICE CLASSIFICATION~Retail Transmission Rate - Line and Transformation Connection Service Rate | H54: GENERAL SERVICE 1,000 TO 4,999 KW SERVICE CLASSIFICATION~Retail Transmission Rate - Network Service Rate | I54: GENERAL SERVICE 1,000 TO 4,999 KW SERVICE CLASSIFICATION~Retail Transmission Rate - Line and Transformation Connection Service Rate | J54: LARGE USE SERVICE CLASSIFICATION~Retail Transmission Rate - Network Service Rate | K54: LARGE USE SERVICE CLASSIFICATION~Retail Transmission Rate - Line and Transformation Connection Service Rate | L54: UNMETERED SCATTERED LOAD SERVICE CLASSIFICATION~Retail Transmission Rate - Network Service Rate | M54: UNMETERED SCATTERED LOAD SERVICE CLASSIFICATION~Retail Transmission Rate - Line and Transformation Connection Service Rate | N54: SENTINEL LIGHTING SERVICE CLASSIFICATION~Retail Transmission Rate - Network Service Rate | O54: SENTINEL LIGHTING SERVICE CLASSIFICATION~Retail Transmission Rate - Line and Transformation Connection Service Rate | P54: STREET LIGHTING SERVICE CLASSIFICATION~Retail Transmission Rate - Network Service Rate | Q54: STREET LIGHTING SERVICE CLASSIFICATION~Retail Transmission Rate - Line and Transformation Connection Service Rate | R54: EMBEDDED DISTRIBUTOR SERVICE CLASSIFICATION~Retail Transmission Rate - Network Service Rate | S54: EMBEDDED DISTRIBUTOR SERVICE CLASSIFICATION~Retail Transmission Rate - Line and Transformation Connection Service Rate
A55: Welland Hydro-Electric System Corp. | B55: RESIDENTIAL SERVICE CLASSIFICATION~Retail Transmission Rate - Network Service Rate | C55: RESIDENTIAL SERVICE CLASSIFICATION~Retail Transmission Rate - Line and Transformation Connection Service Rate | D55: GENERAL SERVICE LESS THAN 50 KW SERVICE CLASSIFICATION~Retail Transmission Rate - Network Service Rate | E55: GENERAL SERVICE LESS THAN 50 KW SERVICE CLASSIFICATION~Retail Transmission Rate - Line and Transformation Connection Service Rate | F55: GENERAL SERVICE 50 to 4,999 kW SERVICE CLASSIFICATION~Retail Transmission Rate - Network Service Rate | G55: GENERAL SERVICE 50 to 4,999 kW SERVICE CLASSIFICATION~Retail Transmission Rate - Line and Transformation Connection Service Rate | H55: UNMETERED SCATTERED LOAD SERVICE CLASSIFICATION~Retail Transmission Rate - Network Service Rate | I55: UNMETERED SCATTERED LOAD SERVICE CLASSIFICATION~Retail Transmission Rate - Line and Transformation Connection Service Rate | J55: SENTINEL LIGHTING SERVICE CLASSIFICATION~Retail Transmission Rate - Network Service Rate | K55: SENTINEL LIGHTING SERVICE CLASSIFICATION~Retail Transmission Rate - Line and Transformation Connection Service Rate | L55: STREET LIGHTING SERVICE CLASSIFICATION~Retail Transmission Rate - Network Service Rate | M55: STREET LIGHTING SERVICE CLASSIFICATION~Retail Transmission Rate - Line and Transformation Connection Service Rate
A56: Wellington North Power Inc. | B56: RESIDENTIAL SERVICE CLASSIFICATION~Retail Transmission Rate - Network Service Rate | C56: RESIDENTIAL SERVICE CLASSIFICATION~Retail Transmission Rate - Line and Transformation Connection Service Rate | D56: GENERAL SERVICE LESS THAN 50 KW SERVICE CLASSIFICATION~Retail Transmission Rate - Network Service Rate | E56: GENERAL SERVICE LESS THAN 50 KW SERVICE CLASSIFICATION~Retail Transmission Rate - Line and Transformation Connection Service Rate | F56: GENERAL SERVICE 50 TO 999 KW SERVICE CLASSIFICATION~Retail Transmission Rate - Network Service Rate | G56: GENERAL SERVICE 50 TO 999 KW SERVICE CLASSIFICATION~Retail Transmission Rate - Line and Transformation Connection Service Rate | H56: GENERAL SERVICE 1,000 TO 4,999 KW SERVICE CLASSIFICATION~Retail Transmission Rate - Network Service Rate | I56: GENERAL SERVICE 1,000 TO 4,999 KW SERVICE CLASSIFICATION~Retail Transmission Rate - Line and Transformation Connection Service Rate | J56: UNMETERED SCATTERED LOAD SERVICE CLASSIFICATION~Retail Transmission Rate - Network Service Rate | K56: UNMETERED SCATTERED LOAD SERVICE CLASSIFICATION~Retail Transmission Rate - Line and Transformation Connection Service Rate | L56: SENTINEL LIGHTING SERVICE CLASSIFICATION~Retail Transmission Rate - Network Service Rate | M56: SENTINEL LIGHTING SERVICE CLASSIFICATION~Retail Transmission Rate - Line and Transformation Connection Service Rate | N56: STREET LIGHTING SERVICE CLASSIFICATION~Retail Transmission Rate - Network Service Rate | O56: STREET LIGHTING SERVICE CLASSIFICATION~Retail Transmission Rate - Line and Transformation Connection Service Rate
A57: Tillsonburg Hydro Inc. | B57: RESIDENTIAL SERVICE CLASSIFICATION~Retail Transmission Rate - Network Service Rate | C57: RESIDENTIAL SERVICE CLASSIFICATION~Retail Transmission Rate - Line and Transformation Connection Service Rate | D57: GENERAL SERVICE LESS THAN 50 KW SERVICE CLASSIFICATION~Retail Transmission Rate - Network Service Rate | E57: GENERAL SERVICE LESS THAN 50 KW SERVICE CLASSIFICATION~Retail Transmission Rate - Line and Transformation Connection Service Rate | F57: GENERAL SERVICE 50 TO 499 KW SERVICE CLASSIFICATION~Retail Transmission Rate - Network Service Rate | G57: GENERAL SERVICE 50 TO 499 KW SERVICE CLASSIFICATION~Retail Transmission Rate - Line and Transformation Connection Service Rate | H57: GENERAL SERVICE 500 TO 1,499 KW SERVICE CLASSIFICATION~Retail Transmission Rate - Network Service Rate - Interval Metered | I57: GENERAL SERVICE 500 TO 1,499 KW SERVICE CLASSIFICATION~Retail Transmission Rate - Line and Transformation Connection Service Rate - Interval Metered | J57: GENERAL SERVICE EQUAL TO OR GREATER THAN 1,500 KW SERVICE CLASSIFICATION~Retail Transmission Rate - Network Service Rate - Interval Metered | K57: GENERAL SERVICE EQUAL TO OR GREATER THAN 1,500 KW SERVICE CLASSIFICATION~Retail Transmission Rate - Line and Transformation Connection Service Rate - Interval Metered | L57: UNMETERED SCATTERED LOAD SERVICE CLASSIFICATION~Retail Transmission Rate - Network Service Rate | M57: UNMETERED SCATTERED LOAD SERVICE CLASSIFICATION~Retail Transmission Rate - Line and Transformation Connection Service Rate | N57: SENTINEL LIGHTING SERVICE CLASSIFICATION~Retail Transmission Rate - Network Service Rate | O57: SENTINEL LIGHTING SERVICE CLASSIFICATION~Retail Transmission Rate - Line and Transformation Connection Service Rate | P57: STREET LIGHTING SERVICE CLASSIFICATION~Retail Transmission Rate - Network Service Rate | Q57: STREET LIGHTING SERVICE CLASSIFICATION~Retail Transmission Rate - Line and Transformation Connection Service Rate
A58: Elexicon Energy Inc.-Veridian Rate Zone | B58: RESIDENTIAL SERVICE CLASSIFICATION~Retail Transmission Rate - Network Service Rate | C58: RESIDENTIAL SERVICE CLASSIFICATION~Retail Transmission Rate - Line and Transformation Connection Service Rate | D58: SEASONAL RESIDENTIAL SERVICE CLASSIFICATION~Retail Transmission Rate - Network Service Rate | E58: SEASONAL RESIDENTIAL SERVICE CLASSIFICATION~Retail Transmission Rate - Line and Transformation Connection Service Rate | F58: GENERAL SERVICE LESS THAN 50 KW SERVICE CLASSIFICATION~Retail Transmission Rate - Network Service Rate | G58: GENERAL SERVICE LESS THAN 50 KW SERVICE CLASSIFICATION~Retail Transmission Rate - Line and Transformation Connection Service Rate | H58: GENERAL SERVICE 50 TO 2,999 KW SERVICE CLASSIFICATION~Retail Transmission Rate - Network Service Rate | I58: GENERAL SERVICE 50 TO 2,999 KW SERVICE CLASSIFICATION~Retail Transmission Rate - Line and Transformation Connection Service Rate | J58: GENERAL SERVICE 3,000 TO 4,999 KW SERVICE CLASSIFICATION~Retail Transmission Rate - Network Service Rate | K58: GENERAL SERVICE 3,000 TO 4,999 KW SERVICE CLASSIFICATION~Retail Transmission Rate - Line and Transformation Connection Service Rate | L58: LARGE USE SERVICE CLASSIFICATION~Retail Transmission Rate - Network Service Rate | M58: LARGE USE SERVICE CLASSIFICATION~Retail Transmission Rate - Line and Transformation Connection Service Rate | N58: UNMETERED SCATTERED LOAD SERVICE CLASSIFICATION~Retail Transmission Rate - Network Service Rate | O58: UNMETERED SCATTERED LOAD SERVICE CLASSIFICATION~Retail Transmission Rate - Line and Transformation Connection Service Rate | P58: SENTINEL LIGHTING SERVICE CLASSIFICATION~Retail Transmission Rate - Network Service Rate | Q58: SENTINEL LIGHTING SERVICE CLASSIFICATION~Retail Transmission Rate - Line and Transformation Connection Service Rate | R58: STREET LIGHTING SERVICE CLASSIFICATION~Retail Transmission Rate - Network Service Rate | S58: STREET LIGHTING SERVICE CLASSIFICATION~Retail Transmission Rate - Line and Transformation Connection Service Rate
A59: Wasaga Distribution Inc. | B59: RESIDENTIAL SERVICE CLASSIFICATION~Retail Transmission Rate - Network Service Rate | C59: RESIDENTIAL SERVICE CLASSIFICATION~Retail Transmission Rate - Line and Transformation Connection Service Rate | D59: GENERAL SERVICE LESS THAN 50 KW SERVICE CLASSIFICATION~Retail Transmission Rate - Network Service Rate | E59: GENERAL SERVICE LESS THAN 50 KW SERVICE CLASSIFICATION~Retail Transmission Rate - Line and Transformation Connection Service Rate | F59: GENERAL SERVICE 50 to 4,999 kW SERVICE CLASSIFICATION~Retail Transmission Rate - Network Service Rate | G59: GENERAL SERVICE 50 to 4,999 kW SERVICE CLASSIFICATION~Retail Transmission Rate - Line and Transformation Connection Service Rate | H59: UNMETERED SCATTERED LOAD SERVICE CLASSIFICATION~Retail Transmission Rate - Network Service Rate | I59: UNMETERED SCATTERED LOAD SERVICE CLASSIFICATION~Retail Transmission Rate - Line and Transformation Connection Service Rate | J59: STREET LIGHTING SERVICE CLASSIFICATION~Retail Transmission Rate - Network Service Rate | K59: STREET LIGHTING SERVICE CLASSIFICATION~Retail Transmission Rate - Line and Transformation Connection Service Rate
A60: ERTH Power Corporation – Goderich Rate Zone | B60: RESIDENTIAL SERVICE CLASSIFICATION~Retail Transmission Rate - Network Service Rate | C60: RESIDENTIAL SERVICE CLASSIFICATION~Retail Transmission Rate - Line and Transformation Connection Service Rate | D60: GENERAL SERVICE LESS THAN 50 KW SERVICE CLASSIFICATION~Retail Transmission Rate - Network Service Rate | E60: GENERAL SERVICE LESS THAN 50 KW SERVICE CLASSIFICATION~Retail Transmission Rate - Line and Transformation Connection Service Rate | F60: GENERAL SERVICE 50 TO 499 KW SERVICE CLASSIFICATION~Retail Transmission Rate - Network Service Rate | G60: GENERAL SERVICE 50 TO 499 KW SERVICE CLASSIFICATION~Retail Transmission Rate - Line and Transformation Connection Service Rate | H60: GENERAL SERVICE 500 TO 4,999 KW SERVICE CLASSIFICATION~Retail Transmission Rate - Network Service Rate | I60: GENERAL SERVICE 500 TO 4,999 KW SERVICE CLASSIFICATION~Retail Transmission Rate - Line and Transformation Connection Service Rate | J60: LARGE USE SERVICE CLASSIFICATION~Retail Transmission Rate - Network Service Rate | K60: LARGE USE SERVICE CLASSIFICATION~Retail Transmission Rate - Line and Transformation Connection Service Rate | L60: UNMETERED SCATTERED LOAD SERVICE CLASSIFICATION~Retail Transmission Rate - Network Service Rate | M60: UNMETERED SCATTERED LOAD SERVICE CLASSIFICATION~Retail Transmission Rate - Line and Transformation Connection Service Rate | N60: SENTINEL LIGHTING SERVICE CLASSIFICATION~Retail Transmission Rate - Network Service Rate | O60: SENTINEL LIGHTING SERVICE CLASSIFICATION~Retail Transmission Rate - Line and Transformation Connection Service Rate | P60: STREET LIGHTING SERVICE CLASSIFICATION~Retail Transmission Rate - Network Service Rate | Q60: STREET LIGHTING SERVICE CLASSIFICATION~Retail Transmission Rate - Line and Transformation Connection Service Rate
A61: Oshawa PUC Networks Inc. | B61: RESIDENTIAL SERVICE CLASSIFICATION~Retail Transmission Rate - Network Service Rate | C61: RESIDENTIAL SERVICE CLASSIFICATION~Retail Transmission Rate - Line and Transformation Connection Service Rate | D61: GENERAL SERVICE LESS THAN 50 KW SERVICE CLASSIFICATION~Retail Transmission Rate - Network Service Rate | E61: GENERAL SERVICE LESS THAN 50 KW SERVICE CLASSIFICATION~Retail Transmission Rate - Line and Transformation Connection Service Rate | F61: GENERAL SERVICE 50 TO 999 KW SERVICE CLASSIFICATION~Retail Transmission Rate - Network Service Rate | G61: GENERAL SERVICE 50 TO 999 KW SERVICE CLASSIFICATION~Retail Transmission Rate - Line and Transformation Connection Service Rate | H61: GENERAL SERVICE 50 TO 999 KW SERVICE CLASSIFICATION~Retail Transmission Rate - Network Service Rate - Interval Metered | I61: GENERAL SERVICE 50 TO 999 KW SERVICE CLASSIFICATION~Retail Transmission Rate - Line and Transformation Connection Service Rate - Interval Metered | J61: GENERAL SERVICE 1,000 TO 4,999 KW SERVICE CLASSIFICATION~Retail Transmission Rate - Network Service Rate - Interval Metered | K61: GENERAL SERVICE 1,000 TO 4,999 KW SERVICE CLASSIFICATION~Retail Transmission Rate - Line and Transformation Connection Service Rate - Interval Metered | L61: LARGE USE SERVICE CLASSIFICATION~Retail Transmission Rate - Network Service Rate - Interval Metered | M61: LARGE USE SERVICE CLASSIFICATION~Retail Transmission Rate - Line and Transformation Connection Service Rate - Interval Metered | N61: UNMETERED SCATTERED LOAD SERVICE CLASSIFICATION~Retail Transmission Rate - Network Service Rate | O61: UNMETERED SCATTERED LOAD SERVICE CLASSIFICATION~Retail Transmission Rate - Line and Transformation Connection Service Rate | P61: SENTINEL LIGHTING SERVICE CLASSIFICATION~Retail Transmission Rate - Network Service Rate | Q61: SENTINEL LIGHTING SERVICE CLASSIFICATION~Retail Transmission Rate - Line and Transformation Connection Service Rate | R61: STREET LIGHTING SERVICE CLASSIFICATION~Retail Transmission Rate - Network Service Rate | S61: STREET LIGHTING SERVICE CLASSIFICATION~Retail Transmission Rate - Line and Transformation Connection Service Rate
A62: Brantford Power Inc. | B62: RESIDENTIAL SERVICE CLASSIFICATION~Retail Transmission Rate - Network Service Rate | C62: RESIDENTIAL SERVICE CLASSIFICATION~Retail Transmission Rate - Line and Transformation Connection Service Rate | D62: GENERAL SERVICE LESS THAN 50 KW SERVICE CLASSIFICATION~Retail Transmission Rate - Network Service Rate | E62: GENERAL SERVICE LESS THAN 50 KW SERVICE CLASSIFICATION~Retail Transmission Rate - Line and Transformation Connection Service Rate | F62: GENERAL SERVICE 50 to 4,999 kW SERVICE CLASSIFICATION~Retail Transmission Rate - Network Service Rate | G62: GENERAL SERVICE 50 to 4,999 kW SERVICE CLASSIFICATION~Retail Transmission Rate - Line and Transformation Connection Service Rate | H62: EMBEDDED DISTRIBUTOR SERVICE CLASSIFICATION~Retail Transmission Rate - Network Service Rate | I62: EMBEDDED DISTRIBUTOR SERVICE CLASSIFICATION~Retail Transmission Rate - Line and Transformation Connection Service Rate | J62: SENTINEL LIGHTING SERVICE CLASSIFICATION~Retail Transmission Rate - Network Service Rate | K62: SENTINEL LIGHTING SERVICE CLASSIFICATION~Retail Transmission Rate - Line and Transformation Connection Service Rate | L62: STREET LIGHTING SERVICE CLASSIFICATION~Retail Transmission Rate - Network Service Rate | M62: STREET LIGHTING SERVICE CLASSIFICATION~Retail Transmission Rate - Line and Transformation Connection Service Rate | N62: UNMETERED SCATTERED LOAD SERVICE CLASSIFICATION~Retail Transmission Rate - Network Service Rate | O62: UNMETERED SCATTERED LOAD SERVICE CLASSIFICATION~Retail Transmission Rate - Line and Transformation Connection Service Rate
A63: Oakville Hydro Electricity Distribution Inc. | B63: RESIDENTIAL SERVICE CLASSIFICATION~Retail Transmission Rate - Network Service Rate | C63: RESIDENTIAL SERVICE CLASSIFICATION~Retail Transmission Rate - Line and Transformation Connection Service Rate | D63: GENERAL SERVICE LESS THAN 50 KW SERVICE CLASSIFICATION~Retail Transmission Rate - Network Service Rate | E63: GENERAL SERVICE LESS THAN 50 KW SERVICE CLASSIFICATION~Retail Transmission Rate - Line and Transformation Connection Service Rate | F63: GENERAL SERVICE 50 TO 999 KW SERVICE CLASSIFICATION~Retail Transmission Rate - Network Service Rate | G63: GENERAL SERVICE 50 TO 999 KW SERVICE CLASSIFICATION~Retail Transmission Rate - Network Service Rate - Interval Metered | H63: GENERAL SERVICE 50 TO 999 KW SERVICE CLASSIFICATION~Retail Transmission Rate - Line and Transformation Connection Service Rate | I63: GENERAL SERVICE 50 TO 999 KW SERVICE CLASSIFICATION~Retail Transmission Rate - Line and Transformation Connection Service Rate - Interval Metered | J63: GENERAL SERVICE 1,000 KW AND GREATER SERVICE CLASSIFICATION~Retail Transmission Rate - Network Service Rate - Interval Metered | K63: GENERAL SERVICE 1,000 KW AND GREATER SERVICE CLASSIFICATION~Retail Transmission Rate - Line and Transformation Connection Service Rate - Interval Metered | L63: UNMETERED SCATTERED LOAD SERVICE CLASSIFICATION~Retail Transmission Rate - Network Service Rate | M63: UNMETERED SCATTERED LOAD SERVICE CLASSIFICATION~Retail Transmission Rate - Line and Transformation Connection Service Rate | N63: SENTINEL LIGHTING SERVICE CLASSIFICATION~Retail Transmission Rate - Network Service Rate | O63: SENTINEL LIGHTING SERVICE CLASSIFICATION~Retail Transmission Rate - Line and Transformation Connection Service Rate | P63: STREET LIGHTING SERVICE CLASSIFICATION~Retail Transmission Rate - Network Service Rate | Q63: STREET LIGHTING SERVICE CLASSIFICATION~Retail Transmission Rate - Line and Transformation Connection Service Rate | R63: EMBEDDED DISTRIBUTOR SERVICE CLASSIFICATION~Retail Transmission Rate - Network Service Rate | S63: EMBEDDED DISTRIBUTOR SERVICE CLASSIFICATION~Retail Transmission Rate - Line and Transformation Connection Service Rate
A64: Chapleau Public Utilities Corporation | B64: RESIDENTIAL SERVICE CLASSIFICATION~Retail Transmission Rate - Network Service Rate | C64: RESIDENTIAL SERVICE CLASSIFICATION~Retail Transmission Rate - Line and Transformation Connection Service Rate | D64: GENERAL SERVICE LESS THAN 50 kW SERVICE CLASSIFICATION~Retail Transmission Rate - Network Service Rate | E64: GENERAL SERVICE LESS THAN 50 kW SERVICE CLASSIFICATION~Retail Transmission Rate - Line and Transformation Connection Service Rate | F64: GENERAL SERVICE 50 TO 4,999 KW SERVICE CLASSIFICATION~Retail Transmission Rate - Network Service Rate | G64: GENERAL SERVICE 50 TO 4,999 KW SERVICE CLASSIFICATION~Retail Transmission Rate - Line and Transformation Connection Service Rate | H64: UNMETERED SCATTERED LOAD SERVICE CLASSIFICATION~Retail Transmission Rate - Network Service Rate | I64: UNMETERED SCATTERED LOAD SERVICE CLASSIFICATION~Retail Transmission Rate - Line and Transformation Connection Service Rate | J64: SENTINEL LIGHTING SERVICE CLASSIFICATION~Retail Transmission Rate - Network Service Rate | K64: SENTINEL LIGHTING SERVICE CLASSIFICATION~Retail Transmission Rate - Line and Transformation Connection Service Rate | L64: STREET LIGHTING SERVICE CLASSIFICATION~Retail Transmission Rate - Network Service Rate | M64: STREET LIGHTING SERVICE CLASSIFICATION~Retail Transmission Rate - Line and Transformation Connection Service Rate
A65: Espanola Regional Hydro Distribution Corporation | B65: RESIDENTIAL SERVICE CLASSIFICATION~Retail Transmission Rate - Network Service Rate | C65: RESIDENTIAL SERVICE CLASSIFICATION~Retail Transmission Rate - Line and Transformation Connection Service Rate | D65: GENERAL SERVICE LESS THAN 50 kW SERVICE CLASSIFICATION~Retail Transmission Rate - Network Service Rate | E65: GENERAL SERVICE LESS THAN 50 kW SERVICE CLASSIFICATION~Retail Transmission Rate - Line and Transformation Connection Service Rate | F65: GENERAL SERVICE 50 TO 4,999 KW SERVICE CLASSIFICATION~Retail Transmission Rate - Network Service Rate | G65: GENERAL SERVICE 50 TO 4,999 KW SERVICE CLASSIFICATION~Retail Transmission Rate - Line and Transformation Connection Service Rate | H65: GENERAL SERVICE 50 TO 4,999 KW SERVICE CLASSIFICATION~Retail Transmission Rate - Network Service Rate - Interval Metered | I65: GENERAL SERVICE 50 TO 4,999 KW SERVICE CLASSIFICATION~Retail Transmission Rate - Line and Transformation Connection Service Rate - Interval Metered | J65: UNMETERED SCATTERED LOAD SERVICE CLASSIFICATION~Retail Transmission Rate - Network Service Rate | K65: UNMETERED SCATTERED LOAD SERVICE CLASSIFICATION~Retail Transmission Rate - Line and Transformation Connection Service Rate | L65: SENTINEL LIGHTING SERVICE CLASSIFICATION~Retail Transmission Rate - Network Service Rate | M65: SENTINEL LIGHTING SERVICE CLASSIFICATION~Retail Transmission Rate - Line and Transformation Connection Service Rate | N65: STREET LIGHTING SERVICE CLASSIFICATION~Retail Transmission Rate - Network Service Rate | O65: STREET LIGHTING SERVICE CLASSIFICATION~Retail Transmission Rate - Line and Transformation Connection Service Rate
A66: Hydro 2000 Inc. | B66: RESIDENTIAL SERVICE CLASSIFICATION~Retail Transmission Rate - Network Service Rate | C66: RESIDENTIAL SERVICE CLASSIFICATION~Retail Transmission Rate - Line and Transformation Connection Service Rate | D66: GENERAL SERVICE LESS THAN 50 kW SERVICE CLASSIFICATION~Retail Transmission Rate - Network Service Rate | E66: GENERAL SERVICE LESS THAN 50 kW SERVICE CLASSIFICATION~Retail Transmission Rate - Line and Transformation Connection Service Rate | F66: GENERAL SERVICE 50 TO 4,999 KW SERVICE CLASSIFICATION~Retail Transmission Rate - Network Service Rate | G66: GENERAL SERVICE 50 TO 4,999 KW SERVICE CLASSIFICATION~Retail Transmission Rate - Line and Transformation Connection Service Rate | H66: STREET LIGHTING SERVICE CLASSIFICATION~Retail Transmission Rate - Network Service Rate | I66: STREET LIGHTING SERVICE CLASSIFICATION~Retail Transmission Rate - Line and Transformation Connection Service Rate | J66: UNMETERED SCATTERED LOAD SERVICE CLASSIFICATION~Retail Transmission Rate - Network Service Rate | K66: UNMETERED SCATTERED LOAD SERVICE CLASSIFICATION~Retail Transmission Rate - Line and Transformation Connection Service Rate
A67: Niagara-on-the-Lake Hydro Inc. | B67: RESIDENTIAL SERVICE CLASSIFICATION~Retail Transmission Rate - Network Service Rate | C67: RESIDENTIAL SERVICE CLASSIFICATION~Retail Transmission Rate - Line and Transformation Connection Service Rate | D67: GENERAL SERVICE LESS THAN 50 KW SERVICE CLASSIFICATION~Retail Transmission Rate - Network Service Rate | E67: GENERAL SERVICE LESS THAN 50 KW SERVICE CLASSIFICATION~Retail Transmission Rate - Line and Transformation Connection Service Rate | F67: GENERAL SERVICE 50 to 4,999 kW SERVICE CLASSIFICATION~Retail Transmission Rate - Network Service Rate | G67: GENERAL SERVICE 50 to 4,999 kW SERVICE CLASSIFICATION~Retail Transmission Rate - Line and Transformation Connection Service Rate | H67: LARGE USE SERVICE CLASSIFICATION~Retail Transmission Rate - Network Service Rate - Interval Metered | I67: LARGE USE SERVICE CLASSIFICATION~Retail Transmission Rate - Line and Transformation Connection Service Rate - Interval Metered | J67: UNMETERED SCATTERED LOAD SERVICE CLASSIFICATION~Retail Transmission Rate - Network Service Rate | K67: UNMETERED SCATTERED LOAD SERVICE CLASSIFICATION~Retail Transmission Rate - Line and Transformation Connection Service Rate | L67: STREET LIGHTING SERVICE CLASSIFICATION~Retail Transmission Rate - Network Service Rate | M67: STREET LIGHTING SERVICE CLASSIFICATION~Retail Transmission Rate - Line and Transformation Connection Service Rate
A68: PUC Distribution Inc. | B68: RESIDENTIAL SERVICE CLASSIFICATION~Retail Transmission Rate - Network Service Rate | C68: GENERAL SERVICE LESS THAN 50 KW SERVICE CLASSIFICATION~Retail Transmission Rate - Network Service Rate | D68: GENERAL SERVICE 50 to 4,999 kW SERVICE CLASSIFICATION~Retail Transmission Rate - Network Service Rate | E68: GENERAL SERVICE 50 to 4,999 kW SERVICE CLASSIFICATION~Retail Transmission Rate - Network Service Rate - Interval Metered | F68: UNMETERED SCATTERED LOAD SERVICE CLASSIFICATION~Retail Transmission Rate - Network Service Rate | G68: SENTINEL LIGHTING SERVICE CLASSIFICATION~Retail Transmission Rate - Network Service Rate | H68: STREET LIGHTING SERVICE CLASSIFICATION~Retail Transmission Rate - Network Service Rate
A69: Hydro One Networks Inc. | B69: YEAR-ROUND URBAN DENSITY - UR SERVICE CLASSIFICATION~Retail Transmission Rate - Network Service Rate | C69: YEAR-ROUND URBAN DENSITY - UR SERVICE CLASSIFICATION~Retail Transmission Rate - Line and Transformation Connection Service Rate | D69: YEAR-ROUND MEDIUM DENSITY - R1 SERVICE CLASSIFICATION~Retail Transmission Rate - Network Service Rate | E69: YEAR-ROUND MEDIUM DENSITY - R1 SERVICE CLASSIFICATION~Retail Transmission Rate - Line and Transformation Connection Service Rate | F69: YEAR-ROUND LOW DENSITY - R2 SERVICE CLASSIFICATION~Retail Transmission Rate - Network Service Rate | G69: YEAR-ROUND LOW DENSITY - R2 SERVICE CLASSIFICATION~Retail Transmission Rate - Line and Transformation Connection Service Rate | H69: SEASONAL SERVICE CLASSIFICATION~Retail Transmission Rate - Network Service Rate | I69: SEASONAL SERVICE CLASSIFICATION~Retail Transmission Rate - Line and Transformation Connection Service Rate | J69: URBAN GENERAL SERVICE ENERGY BILLED - UGe SERVICE CLASSIFICATION~Retail Transmission Rate - Network Service Rate | K69: URBAN GENERAL SERVICE ENERGY BILLED - UGe SERVICE CLASSIFICATION~Retail Transmission Rate - Line and Transformation Connection Service Rate | L69: GENERAL SERVICE ENERGY BILLED - GSe SERVICE CLASSIFICATION~Retail Transmission Rate - Network Service Rate | M69: GENERAL SERVICE ENERGY BILLED - GSe SERVICE CLASSIFICATION~Retail Transmission Rate - Line and Transformation Connection Service Rate | N69: URBAN GENERAL SERVICE DEMAND BILLED - UGd SERVICE CLASSIFICATION~Retail Transmission Rate - Network Service Rate | O69: URBAN GENERAL SERVICE DEMAND BILLED - UGd SERVICE CLASSIFICATION~Retail Transmission Rate - Line and Transformation Connection Service Rate | P69: GENERAL SERVICE DEMAND BILLED - GSd SERVICE CLASSIFICATION~Retail Transmission Rate - Network Service Rate | Q69: GENERAL SERVICE DEMAND BILLED - GSd SERVICE CLASSIFICATION~Retail Transmission Rate - Line and Transformation Connection Service Rate | R69: DISTRIBUTED GENERATION - DGen SERVICE CLASSIFICATION~Retail Transmission Rate - Network Service Rate | S69: DISTRIBUTED GENERATION - DGen SERVICE CLASSIFICATION~Retail Transmission Rate - Line and Transformation Connection Service Rate | T69: SUB TRANSMISSION - ST SERVICE CLASSIFICATION~Retail Transmission Rate - Network Service Rate | U69: SUB TRANSMISSION - ST SERVICE CLASSIFICATION~Retail Transmission Rate - Line Connection Service Rate | V69: SUB TRANSMISSION - ST SERVICE CLASSIFICATION~Retail Transmission Rate - Transformation Connection Service Rate | W69: UNMETERED SCATTERED LOAD SERVICE CLASSIFICATION~Retail Transmission Rate - Network Service Rate | X69: UNMETERED SCATTERED LOAD SERVICE CLASSIFICATION~Retail Transmission Rate - Line and Transformation Connection Service Rate | Y69: SENTINEL LIGHTING SERVICE CLASSIFICATION~Retail Transmission Rate - Network Service Rate | Z69: SENTINEL LIGHTING SERVICE CLASSIFICATION~Retail Transmission Rate - Line and Transformation Connection Service Rate | AA69: STREET LIGHTING SERVICE CLASSIFICATION~Retail Transmission Rate - Network Service Rate | AB69: STREET LIGHTING SERVICE CLASSIFICATION~Retail Transmission Rate - Line and Transformation Connection Service Rate
A70: Enova Power Corp.-Kitchener-Wilmot Hydro Rate Zone | B70: RESIDENTIAL SERVICE CLASSIFICATION~Retail Transmission Rate - Network Service Rate | C70: RESIDENTIAL SERVICE CLASSIFICATION~Retail Transmission Rate - Line and Transformation Connection Service Rate | D70: GENERAL SERVICE LESS THAN 50 KW SERVICE CLASSIFICATION~Retail Transmission Rate - Network Service Rate | E70: GENERAL SERVICE LESS THAN 50 KW SERVICE CLASSIFICATION~Retail Transmission Rate - Line and Transformation Connection Service Rate | F70: GENERAL SERVICE 50 to 4,999 kW SERVICE CLASSIFICATION~Retail Transmission Rate - Network Service Rate | G70: GENERAL SERVICE 50 to 4,999 kW SERVICE CLASSIFICATION~Retail Transmission Rate - Line and Transformation Connection Service Rate | H70: LARGE USE SERVICE CLASSIFICATION~Retail Transmission Rate - Network Service Rate - Interval Metered | I70: LARGE USE SERVICE CLASSIFICATION~Retail Transmission Rate - Line and Transformation Connection Service Rate - Interval Metered | J70: UNMETERED SCATTERED LOAD SERVICE CLASSIFICATION~Retail Transmission Rate - Network Service Rate | K70: UNMETERED SCATTERED LOAD SERVICE CLASSIFICATION~Retail Transmission Rate - Line and Transformation Connection Service Rate | L70: STREET LIGHTING SERVICE CLASSIFICATION~Retail Transmission Rate - Network Service Rate | M70: STREET LIGHTING SERVICE CLASSIFICATION~Retail Transmission Rate - Line and Transformation Connection Service Rate | N70: EMBEDDED DISTRIBUTOR SERVICE CLASSIFICATION~Retail Transmission Rate - Network Service Rate | O70: EMBEDDED DISTRIBUTOR SERVICE CLASSIFICATION~Retail Transmission Rate - Line and Transformation Connection Service Rate
A71: Enova Power Corp.-Waterloo North Rate Zone | B71: RESIDENTIAL SERVICE CLASSIFICATION~Retail Transmission Rate - Network Service Rate | C71: RESIDENTIAL SERVICE CLASSIFICATION~Retail Transmission Rate - Line and Transformation Connection Service Rate | D71: GENERAL SERVICE LESS THAN 50 KW SERVICE CLASSIFICATION~Retail Transmission Rate - Network Service Rate | E71: GENERAL SERVICE LESS THAN 50 KW SERVICE CLASSIFICATION~Retail Transmission Rate - Line and Transformation Connection Service Rate | F71: GENERAL SERVICE 50 to 4,999 kW SERVICE CLASSIFICATION~Retail Transmission Rate - Network Service Rate | G71: GENERAL SERVICE 50 to 4,999 kW SERVICE CLASSIFICATION~Retail Transmission Rate - Line and Transformation Connection Service Rate | H71: LARGE USE SERVICE CLASSIFICATION~Retail Transmission Rate - Network Service Rate - Interval Metered | I71: LARGE USE SERVICE CLASSIFICATION~Retail Transmission Rate - Line and Transformation Connection Service Rate - Interval Metered | J71: UNMETERED SCATTERED LOAD SERVICE CLASSIFICATION~Retail Transmission Rate - Network Service Rate | K71: UNMETERED SCATTERED LOAD SERVICE CLASSIFICATION~Retail Transmission Rate - Line and Transformation Connection Service Rate | L71: STREET LIGHTING SERVICE CLASSIFICATION~Retail Transmission Rate - Network Service Rate | M71: STREET LIGHTING SERVICE CLASSIFICATION~Retail Transmission Rate - Line and Transformation Connection Service Rate | N71: EMBEDDED DISTRIBUTOR SERVICE CLASSIFICATION~Retail Transmission Rate - Network Service Rate | O71: EMBEDDED DISTRIBUTOR SERVICE CLASSIFICATION~Retail Transmission Rate - Line and Transformation Connection Service Rate
A72: GrandBridge Energy Inc.-Brantford Power Rate Zone | B72: RESIDENTIAL SERVICE CLASSIFICATION~Retail Transmission Rate - Network Service Rate | C72: RESIDENTIAL SERVICE CLASSIFICATION~Retail Transmission Rate - Line and Transformation Connection Service Rate | D72: GENERAL SERVICE LESS THAN 50 KW SERVICE CLASSIFICATION~Retail Transmission Rate - Network Service Rate | E72: GENERAL SERVICE LESS THAN 50 KW SERVICE CLASSIFICATION~Retail Transmission Rate - Line and Transformation Connection Service Rate | F72: EMBEDDED DISTRIBUTOR SERVICE CLASSIFICATION~Retail Transmission Rate - Network Service Rate | G72: EMBEDDED DISTRIBUTOR SERVICE CLASSIFICATION~Retail Transmission Rate - Line and Transformation Connection Service Rate | H72: UNMETERED SCATTERED LOAD SERVICE CLASSIFICATION~Retail Transmission Rate - Network Service Rate | I72: UNMETERED SCATTERED LOAD SERVICE CLASSIFICATION~Retail Transmission Rate - Line and Transformation Connection Service Rate | J72: SENTINEL LIGHTING SERVICE CLASSIFICATION~Retail Transmission Rate - Network Service Rate | K72: SENTINEL LIGHTING SERVICE CLASSIFICATION~Retail Transmission Rate - Line and Transformation Connection Service Rate | L72: STREET LIGHTING SERVICE CLASSIFICATION~Retail Transmission Rate - Network Service Rate | M72: STREET LIGHTING SERVICE CLASSIFICATION~Retail Transmission Rate - Line and Transformation Connection Service Rate
A73: GrandBridge Energy Inc.-Energy+ Rate Zone | B73: RESIDENTIAL SERVICE CLASSIFICATION~Retail Transmission Rate - Network Service Rate | C73: RESIDENTIAL SERVICE CLASSIFICATION~Retail Transmission Rate - Line and Transformation Connection Service Rate | D73: GENERAL SERVICE LESS THAN 50 KW SERVICE CLASSIFICATION~Retail Transmission Rate - Network Service Rate | E73: GENERAL SERVICE LESS THAN 50 KW SERVICE CLASSIFICATION~Retail Transmission Rate - Line and Transformation Connection Service Rate | F73: GENERAL SERVICE 50 to 999 kW SERVICE CLASSIFICATION~Retail Transmission Rate - Network Service Rate | G73: GENERAL SERVICE 50 to 999 kW SERVICE CLASSIFICATION~Retail Transmission Rate - Line and Transformation Connection Service Rate | H73: GENERAL SERVICE 1000 to 4,999 kW SERVICE CLASSIFICATION~Retail Transmission Rate - Network Service Rate | I73: GENERAL SERVICE 1000 to 4,999 kW SERVICE CLASSIFICATION~Retail Transmission Rate - Line and Transformation Connection Service Rate | J73: LARGE USE SERVICE CLASSIFICATION~Retail Transmission Rate - Network Service Rate - Interval Metered | K73: LARGE USE SERVICE CLASSIFICATION~Retail Transmission Rate - Line and Transformation Connection Service Rate - Interval Metered | L73: UNMETERED SCATTERED LOAD SERVICE CLASSIFICATION~Retail Transmission Rate - Network Service Rate | M73: UNMETERED SCATTERED LOAD SERVICE CLASSIFICATION~Retail Transmission Rate - Line and Transformation Connection Service Rate | N73: STREET LIGHTING SERVICE CLASSIFICATION~Retail Transmission Rate - Network Service Rate | O73: STREET LIGHTING SERVICE CLASSIFICATION~Retail Transmission Rate - Line and Transformation Connection Service Rate | P73: SENTINEL LIGHTING SERVICE CLASSIFICATION~Retail Transmission Rate - Network Service Rate | Q73: SENTINEL LIGHTING SERVICE CLASSIFICATION~Retail Transmission Rate - Line and Transformation Connection Service Rate
A74: Hydro One Networks Inc.-Former Orillia Power Distribution Corporation Service Area | B74: RESIDENTIAL SERVICE CLASSIFICATION~Retail Transmission Rate - Network Service Rate | C74: RESIDENTIAL SERVICE CLASSIFICATION~Retail Transmission Rate - Line and Transformation Connection Service Rate | D74: GENERAL SERVICE LESS THAN 50 KW SERVICE CLASSIFICATION~Retail Transmission Rate - Network Service Rate | E74: GENERAL SERVICE LESS THAN 50 KW SERVICE CLASSIFICATION~Retail Transmission Rate - Line and Transformation Connection Service Rate | F74: GENERAL SERVICE 50 to 4,999 kW SERVICE CLASSIFICATION~Retail Transmission Rate - Network Service Rate | G74: GENERAL SERVICE 50 to 4,999 kW SERVICE CLASSIFICATION~Retail Transmission Rate - Line and Transformation Connection Service Rate | H74: UNMETERED SCATTERED LOAD SERVICE CLASSIFICATION~Retail Transmission Rate - Network Service Rate | I74: UNMETERED SCATTERED LOAD SERVICE CLASSIFICATION~Retail Transmission Rate - Line and Transformation Connection Service Rate | J74: SENTINEL LIGHTING SERVICE CLASSIFICATION~Retail Transmission Rate - Network Service Rate | K74: SENTINEL LIGHTING SERVICE CLASSIFICATION~Retail Transmission Rate - Line and Transformation Connection Service Rate | L74: STREET LIGHTING SERVICE CLASSIFICATION~Retail Transmission Rate - Network Service Rate | M74: STREET LIGHTING SERVICE CLASSIFICATION~Retail Transmission Rate - Line and Transformation Connection Service Rate
A75: Hydro One Networks Inc.-Former Peterborough Distribution Inc. Service Area | B75: RESIDENTIAL SERVICE CLASSIFICATION~Retail Transmission Rate - Network Service Rate | C75: RESIDENTIAL SERVICE CLASSIFICATION~Retail Transmission Rate - Line and Transformation Connection Service Rate | D75: GENERAL SERVICE LESS THAN 50 KW SERVICE CLASSIFICATION~Retail Transmission Rate - Network Service Rate | E75: GENERAL SERVICE LESS THAN 50 KW SERVICE CLASSIFICATION~Retail Transmission Rate - Line and Transformation Connection Service Rate | F75: GENERAL SERVICE 50 to 4,999 kW SERVICE CLASSIFICATION~Retail Transmission Rate - Network Service Rate | G75: GENERAL SERVICE 50 to 4,999 kW SERVICE CLASSIFICATION~Retail Transmission Rate - Line and Transformation Connection Service Rate | H75: LARGE USE SERVICE CLASSIFICATION~Retail Transmission Rate - Network Service Rate - Interval Metered | I75: LARGE USE SERVICE CLASSIFICATION~Retail Transmission Rate - Line and Transformation Connection Service Rate - Interval Metered | J75: UNMETERED SCATTERED LOAD SERVICE CLASSIFICATION~Retail Transmission Rate - Network Service Rate | K75: UNMETERED SCATTERED LOAD SERVICE CLASSIFICATION~Retail Transmission Rate - Line and Transformation Connection Service Rate | L75: SENTINEL LIGHTING SERVICE CLASSIFICATION~Retail Transmission Rate - Network Service Rate | M75: SENTINEL LIGHTING SERVICE CLASSIFICATION~Retail Transmission Rate - Line and Transformation Connection Service Rate | N75: STREET LIGHTING SERVICE CLASSIFICATION~Retail Transmission Rate - Network Service Rate | O75: STREET LIGHTING SERVICE CLASSIFICATION~Retail Transmission Rate - Line and Transformation Connection Service Rate

Sheet DELETE 3. Rate Classes (hidden)
C13: 1. Select the appropriate rate classes that appear on your most recent OEB-Approved Tariff of Rates and Charges. 2. Enter the RTSR Network and Connection Rate as it appears on the Tariff of Rates and Charges
C15: Rate Class | E15: Unit | G15: RTSR-Network | I15: RTSR-Connection
L17: =IF(OR(ISBLANK(C17), ISERROR(FIND("Choose", C17))=FALSE), 0, 1) -> 0 | M17: ="C" & ROW(C17) -> C17 | N17: =IF(OR(C17="General Service Intermediate Rate Class 1,000 To 4,999 kW (formerly General Service > 50 kW Customers)", C17="General Service Intermediate Rate Class 1,000 To 4,999 kW (formerly Large Use Customers)"), "x", "") ->  | W17: Choose Rate Class
L18: 0 | M18: C18 | N18: =IF(OR(C18="General Service Intermediate Rate Class 1,000 To 4,999 kW (formerly General Service > 50 kW Customers)", C18="General Service Intermediate Rate Class 1,000 To 4,999 kW (formerly Large Use Customers)"), "x", "") ->  | W18: Residential
L19: 0 | M19: C19 | W19: Residential Regular
L20: 0 | M20: C20 | W20: Residential Urban
L21: 0 | M21: C21 | W21: Residential Urban Year-Round
L22: =IF(OR(ISBLANK(C22), ISERROR(FIND("Choose", C22))=FALSE), 0, 1) -> 0 | M22: C22 | W22: Residential Suburban
L23: 0 | M23: C23 | W23: Residential Suburban Seasonal
L24: 0 | M24: C24 | W24: Residential Suburban Year Round
L25: 0 | M25: C25 | W25: Residential - Time of Use
L26: 0 | M26: C26 | W26: Residential - Hensall
L27: 0 | M27: C27 | W27: Residential – High Density [R1]
L28: 0 | M28: C28 | W28: Residential – Normal Density [R2]
L29: 0 | M29: C29 | W29: Seasonal Residential – High Density [R3]
L30: 0 | M30: C30 | W30: Seasonal Residential – Normal Density [R4]
L31: 0 | M31: C31 | W31: Residential – Urban [UR]
L32: 0 | M32: C32 | W32: General Service Less Than 50 kW
L33: 0 | M33: C33 | W33: General Service Less Than 50 kW – Single Phase energy-billed [G1]
L34: 0 | M34: C34 | W34: General Service Less Than 50 kW – Three Phase energy-billed [G3]
L35: 0 | M35: C35 | W35: General Service Less Than 50 kW – Transmission Class energy-billed [T]
L36: 0 | M36: C36 | W36: General Service Less Than 50 kW – Urban energy-billed [UG]
L37: 0 | M37: C37 | W37: Westport Sewage Treatment Plant
L38: 0 | M38: C38 | W38: Small Commercial and USL - per meter
N39: =COUNTIF(N17:N38, "x") -> 0 | W39: Small Commercial and USL - per connection
W40: Farms – Single Phase energy-billed [F1]
W41: General Service 50 to 499 kW
W42: General Service 50 to 699 kW
W43: General Service 50 to 999 kW
W44: General Service 50 to 999 kW - Interval Metered
W45: General Service 50 to 1,000 kW
W46: General Service 50 to 1,000 kW - Interval Meters
W47: General Service 50 to 1,000 kW - Non Interval Meters
W48: General Service 50 to 1,499 kW
W49: General Service 50 to 1,499 kW - Interval Metered
W50: General Service 50 to 2,499 kW
W51: General Service 50 to 2,999 kW
W52: General Service 50 to 2,999 kW - Time of Use
W53: General Service 50 to 4,999 kW
W54: General Service 50 to 4,999 kW – Interval Metered
W55: General Service 50 to 4,999 kW - Time of Use
W56: General Service 50 to 4,999 kW (CoGeneration)
W57: General Service 50 to 4,999 kW (formerly Time of Use)
W58: General Service 500 to 4,999 kW
W59: General Service 700 to 4,999 kW
W60: General Service 1,000 to 2,999 kW
W61: General Service 1,000 to 4,999 kW
W62: General Service 1,000 to 4,999 kW - Interval Meters
W63: General Service 1,000 To 4,999 kW (co-generation)
W64: General Service Greater Than 1,000 kW
W65: General Service Intermediate Rate Class 1,000 To 4,999 kW (formerly Large Use Customers)
W66: General Service Intermediate Rate Class 1,000 To 4,999 kW (formerly General Service > 50 kW Customers)
W67: General Service 1,500 to 4,999 kW
W68: General Service Equal To Or Greater Than 1,500 kW
W69: General Service Equal To Or Greater Than 1,500 kW - Interval Metered
W70: General Service Intermediate 1,000 To 4,999 kW
W71: General Service 2,500 to 4,999 kW
W72: General Service 3,000 to 4,999 kW
W73: General Service 3,000 to 4,999 kW - Interval Metered
W74: General Service 3,000 to 4,999 kW - Intermediate Use
W75: General Service 3,000 to 4,999 kW - Time of Use
W76: Intermediate With Self Generation
W77: General Service - Commercial
W78: General Service - Institutional
W79: Farms – Three Phase energy-billed [F3]
W80: Large Use
W81: Large Use - Regular
W82: Large Use > 5000 kW
W83: Large Use - 3TS
W84: Large Use - Ford Annex
W85: Unmetered Scattered Load
W86: Sentinel Lighting
W87: Street Lighting
W88: Embedded Distributor
W89: Low Voltage Wheeling Charge Rate
W90: Stand-By
W91: Standby Power
W92: Standby Power – INTERIM APPROVAL
W93: Standby Power - APPROVED ON AN INTERIM BASIS
W94: Standby - General Service 50 - 1,000 kW
W95: Standby Power General Service 50 to 1,499 kW
W96: Standby - General Service 1,000 - 5,000 kW
W97: Standby Power General Service 1,500 to 4,999 kW
W98: Standby - Large Use
W99: Standby Power General Service Large Use
W100: Standby Distribution Service

Sheet 2 1 5 TotalConsumptionData_Dist (hidden)
A1: 2.1.5 TotalConsumptionData_Dist_Ret_Total_Combined_2021_v2
A5: Filing Year | B5: Company Name | C5: Rate Class | D5: Rate Class Detail | E5: Company Detail Class | F5: Ret_Metered_consumption_in_kWhs | G5: Ret_Metered_consumption_in_kWs | H5: RPPMeterCustkWh | I5: Metered Consumption on RPP - Kw | J5: Metered Consumption on Non-RPP - Kwh | K5: Metered Consumption on Non-RPP - Kw | L5: Billed by IESO For Commodity - Kwh | M5: Billed by IESO For Commodity - Kw | N5: Class_A_Consumption_kWhs | O5: Class_A_Consumption_kWs | P5: Total Consumption - Kwh | Q5: Total Consumption - Kw | R5: Calculated_TOTAL_KWH | S5: Calculated_TOTAL_KW
A6: 2023 | B6: Alectra Utilities Corporation | C6: Embedded Distributor(s) | D6: Embedded Distributor - Hydro One Brampton | E6: Alectra Utilities Corporation_Hydro One Brampton_Embedded Distributor Service Classification | F6: 0 | G6: 0 | H6: 0 | P6: 0 | Q6: 0 | R6: 0 | S6: 0
A7: 2023 | B7: Alectra Utilities Corporation | C7: General Service < 50 kW | D7: Distributed Generation - Dgen - Hydro One Brampton | E7: Alectra Utilities Corporation_- Hydro One Brampton_Distributed Generation Service Classification | F7: 0 | G7: 0 | H7: 0 | J7: 288173 | P7: 288173 | Q7: 0 | R7: 288173 | S7: 0
A8: 2023 | B8: Alectra Utilities Corporation | C8: General Service < 50 kW | D8: General Service Less Than 50 kW - Enersource | E8: Alectra Utilities Corporation_ Less Than 50 kW - Enersource_General Service Less Than 50 kW Service Classification | F8: 0 | G8: 0 | H8: 610013517 | J8: 136451 | P8: 610149968 | Q8: 0 | R8: 610149968 | S8: 0
A9: 2023 | B9: Alectra Utilities Corporation | C9: General Service < 50 kW | D9: General Service Less Than 50 kW - Guelph Hydro | E9: Alectra Utilities Corporation_ess Than 50 kW - Guelph Hydro_General Service Less Than 50 kW Service Classification | F9: 0 | G9: 0 | H9: 117373935 | P9: 117373935 | Q9: 0 | R9: 117373935 | S9: 0
A10: 2023 | B10: Alectra Utilities Corporation | C10: General Service < 50 kW | D10: General Service Less Than 50 kW - Horizon | E10: Alectra Utilities Corporation_ice Less Than 50 kW - Horizon_General Service Less Than 50 kW Service Classification | F10: 0 | G10: 0 | H10: 488718110 | J10: 1838651 | P10: 490556761 | Q10: 0 | R10: 490556761 | S10: 0
A11: 2023 | B11: Alectra Utilities Corporation | C11: General Service < 50 kW | D11: General Service Less Than 50 kW - Hydro One Brampton | E11: Alectra Utilities Corporation_an 50 kW - Hydro One Brampton_General Service Less Than 50 kW Service Classification | F11: 0 | G11: 0 | H11: 283967363 | P11: 283967363 | Q11: 0 | R11: 283967363 | S11: 0
A12: 2023 | B12: Alectra Utilities Corporation | C12: General Service < 50 kW | D12: General Service Less Than 50 kW - PowerStream | E12: Alectra Utilities Corporation_Less Than 50 kW - PowerStream_General Service Less Than 50 kW Service Classification | F12: 0 | G12: 0 | H12: 886509649 | J12: 5709269 | P12: 892218918 | Q12: 0 | R12: 892218918 | S12: 0
A13: 2023 | B13: Alectra Utilities Corporation | C13: General Service >= 50 kW | D13: Energy From Waste - Hydro One Brampton | E13: Alectra Utilities Corporation_ro One Brampton_Energy From Waste Service Classification | F13: 0 | G13: 0 | H13: 0 | P13: 0 | Q13: 0 | R13: 0 | S13: 0
A14: 2023 | B14: Alectra Utilities Corporation | C14: General Service >= 50 kW | D14: General Service 1,000 to 4,999 kW - Guelph Hydro | E14: Alectra Utilities Corporation_,000 to 4,999 kW - Guelph Hydro_General Service 1,000 to 4,999 kW Service Classification | F14: 0 | G14: 0 | H14: 0 | J14: 482656221 | K14: 1052883 | P14: 482656221 | Q14: 1052883 | R14: 482656221 | S14: 1052883
A15: 2023 | B15: Alectra Utilities Corporation | C15: General Service >= 50 kW | D15: General Service 50 To 999 kW - Guelph Hydro | E15: Alectra Utilities Corporation_0 To 999 kW - Guelph Hydro_General Service 50 To 999 kW Service Classification | F15: 0 | G15: 0 | H15: 59582356 | I15: 164297 | J15: 251729134 | K15: 667435 | L15: 5726944 | M15: 11907 | P15: 317038434 | Q15: 843639 | R15: 317038434 | S15: 843639
A16: 2023 | B16: Alectra Utilities Corporation | C16: General Service >= 50 kW | D16: General Service 50 to 4,999 kW - Horizon | E16: Alectra Utilities Corporation_ice 50 to 4,999 kW - Horizon_General Service 50 to 4,999 kW Service Classification | F16: 0 | G16: 0 | H16: 221128817 | I16: 599813 | J16: 1374133598 | K16: 3727342 | L16: 8953112 | M16: 16780 | P16: 1604215527 | Q16: 4343935 | R16: 1604215527 | S16: 4343935
A17: 2023 | B17: Alectra Utilities Corporation | C17: General Service >= 50 kW | D17: General Service 50 to 4,999 kW - PowerStream | E17: Alectra Utilities Corporation_50 to 4,999 kW - PowerStream_General Service 50 to 4,999 kW Service Classification | F17: 0 | G17: 0 | H17: 480548267 | I17: 1248914 | J17: 3707874153 | K17: 9636524 | L17: 27026834 | M17: 67567 | P17: 4215449254 | Q17: 10953005 | R17: 4215449254 | S17: 10953005
A18: 2023 | B18: Alectra Utilities Corporation | C18: General Service >= 50 kW | D18: General Service 50 to 499 kW - Enersource | E18: Alectra Utilities Corporation_ 50 to 499 kW - Enersource_General Service 50 to 499 kW Service Classification | F18: 0 | G18: 0 | H18: 346373345 | I18: 987751 | J18: 1240712005 | K18: 3552293 | P18: 1587085350 | Q18: 4540044 | R18: 1587085350 | S18: 4540044
A19: 2023 | B19: Alectra Utilities Corporation | C19: General Service >= 50 kW | D19: General Service 50 to 699 kW - Hydro One Brampton | E19: Alectra Utilities Corporation_99 kW - Hydro One Brampton_General Service 50 to 699 kW Service Classification | F19: 0 | G19: 0 | H19: 143069083 | I19: 411795 | J19: 789930507 | K19: 2273650 | L19: 3411951 | M19: 18445 | P19: 936411541 | Q19: 2703890 | R19: 936411541 | S19: 2703890
A20: 2023 | B20: Alectra Utilities Corporation | C20: General Service >= 50 kW | D20: General Service 500 to 4,999 kW - Enersource | E20: Alectra Utilities Corporation_ 500 to 4,999 kW - Enersource_General Service 500 to 4,999 kW Service Classification | F20: 0 | G20: 0 | H20: 137328568 | I20: 330467 | J20: 1320078703 | K20: 3112513 | L20: 24252203 | M20: 49025 | P20: 1481659474 | Q20: 3492005 | R20: 1481659474 | S20: 3492005
A21: 2023 | B21: Alectra Utilities Corporation | C21: General Service >= 50 kW | D21: General Service 700 to 4,999 kW - Hydro One Brampton | E21: Alectra Utilities Corporation_4,999 kW - Hydro One Brampton_General Service 700 to 4,999 kW Service Classification | F21: 0 | G21: 0 | H21: 583753 | I21: 1332 | J21: 674040640 | K21: 1537464 | L21: 69827529 | M21: 114419 | P21: 744451922 | Q21: 1653215 | R21: 744451922 | S21: 1653215
A22: 2023 | B22: Alectra Utilities Corporation | C22: Large User | D22: Large Use - Enersource | E22: Alectra Utilities Corporation_rsource_Large Use Service Classification | F22: 134371201 | G22: 237188 | H22: 0 | J22: 857051180 | K22: 1453338 | P22: 857051180 | Q22: 1453338 | R22: 991422381 | S22: 1690526
A23: 2023 | B23: Alectra Utilities Corporation | C23: Large User | D23: Large Use - Guelph Hydro | E23: Alectra Utilities Corporation_h Hydro_Large Use Service Classification | F23: 134371201 | G23: 237188 | H23: 0 | J23: 204125168 | K23: 401558 | P23: 204125168 | Q23: 401558 | R23: 338496369 | S23: 638746
A24: 2023 | B24: Alectra Utilities Corporation | C24: Large User | D24: Large Use - Horizon | E24: Alectra Utilities Corporation_Horizon_Large Use Service Classification | F24: 134371201 | G24: 237188 | H24: 0 | J24: 157885376 | K24: 364850 | P24: 157885376 | Q24: 364850 | R24: 292256577 | S24: 602038
A25: 2023 | B25: Alectra Utilities Corporation | C25: Large User | D25: Large Use - Hydro One Brampton | E25: Alectra Utilities Corporation_rampton_Large Use Service Classification | F25: 134371201 | G25: 237188 | H25: 0 | J25: 264616100 | K25: 515067 | P25: 264616100 | Q25: 515067 | R25: 398987301 | S25: 752255
A26: 2023 | B26: Alectra Utilities Corporation | C26: Large User | D26: Large Use - PowerStream | E26: Alectra Utilities Corporation_rStream_Large Use Service Classification | F26: 134371201 | G26: 237188 | H26: 0 | J26: 121322389 | K26: 191317 | P26: 121322389 | Q26: 191317 | R26: 255693590 | S26: 428505
A27: 2023 | B27: Alectra Utilities Corporation | C27: Large User | D27: Large Use with Dedicated Assets - Horizon | E27: Alectra Utilities Corporation_th Dedicated Assets - Horizon_Large Use with Dedicated Assets Service Classification | F27: 134371201 | G27: 237188 | H27: 0 | J27: 256876948 | K27: 607375 | L27: 730817919 | M27: 1165390 | P27: 987694867 | Q27: 1772765 | R27: 1122066068 | S27: 2009953
A28: 2023 | B28: Alectra Utilities Corporation | C28: Residential | D28: Residential - Enersource | E28: Alectra Utilities Corporation_nersource_Residential Service Classification | F28: 22314847 | G28: 0 | H28: 1576831528 | P28: 1576831528 | Q28: 0 | R28: 1599146375 | S28: 0
A29: 2023 | B29: Alectra Utilities Corporation | C29: Residential | D29: Residential - Guelph Hydro | E29: Alectra Utilities Corporation_lph Hydro_Residential Service Classification | F29: 22314847 | G29: 0 | H29: 397140964 | P29: 397140964 | Q29: 0 | R29: 419455811 | S29: 0
A30: 2023 | B30: Alectra Utilities Corporation | C30: Residential | D30: Residential - Horizon | E30: Alectra Utilities Corporation_- Horizon_Residential Service Classification | F30: 22314847 | G30: 0 | H30: 1696239740 | J30: -42 | P30: 1696239698 | Q30: 0 | R30: 1718554545 | S30: 0
A31: 2023 | B31: Alectra Utilities Corporation | C31: Residential | D31: Residential - Hydro One Brampton | E31: Alectra Utilities Corporation_ Brampton_Residential Service Classification | F31: 22314847 | G31: 0 | H31: 1491809314 | P31: 1491809314 | Q31: 0 | R31: 1514124161 | S31: 0
A32: 2023 | B32: Alectra Utilities Corporation | C32: Residential | D32: Residential - PowerStream | E32: Alectra Utilities Corporation_werStream_Residential Service Classification | F32: 22314847 | G32: 0 | H32: 2901002988 | J32: -9097 | P32: 2900993891 | Q32: 0 | R32: 2923308738 | S32: 0
A33: 2023 | B33: Alectra Utilities Corporation | C33: Sentinel Lighting Connections | D33: Sentinel Lighting - Guelph Hydro | E33: Alectra Utilities Corporation_ - Guelph Hydro_Sentinel Lighting Service Classification | F33: 0 | G33: 0 | H33: 10392 | I33: 29 | P33: 10392 | Q33: 29 | R33: 10392 | S33: 29
A34: 2023 | B34: Alectra Utilities Corporation | C34: Sentinel Lighting Connections | D34: Sentinel Lighting - Horizon | E34: Alectra Utilities Corporation_hting - Horizon_Sentinel Lighting Service Classification | F34: 0 | G34: 0 | H34: 336189 | I34: 846 | J34: 61745 | K34: 155 | P34: 397934 | Q34: 1001 | R34: 397934 | S34: 1001
A35: 2023 | B35: Alectra Utilities Corporation | C35: Sentinel Lighting Connections | D35: Sentinel Lighting - PowerStream | E35: Alectra Utilities Corporation_g - PowerStream_Sentinel Lighting Service Classification | F35: 0 | G35: 0 | H35: 184175 | I35: 496 | J35: 58310 | K35: 157 | P35: 242485 | Q35: 653 | R35: 242485 | S35: 653
A36: 2023 | B36: Alectra Utilities Corporation | C36: Street Lighting Connections | D36: Street Lighting - Enersource | E36: Alectra Utilities Corporation_ - Enersource_Street Lighting Service Classification | F36: 0 | G36: 0 | H36: 0 | J36: 13531876 | K36: 36860 | P36: 13531876 | Q36: 36860 | R36: 13531876 | S36: 36860
A37: 2023 | B37: Alectra Utilities Corporation | C37: Street Lighting Connections | D37: Street Lighting - Guelph Hydro | E37: Alectra Utilities Corporation_ Guelph Hydro_Street Lighting Service Classification | F37: 0 | G37: 0 | H37: 0 | J37: 3484910 | K37: 9625 | P37: 3484910 | Q37: 9625 | R37: 3484910 | S37: 9625
A38: 2023 | B38: Alectra Utilities Corporation | C38: Street Lighting Connections | D38: Street Lighting - Horizon | E38: Alectra Utilities Corporation_ing - Horizon_Street Lighting Service Classification | F38: 0 | G38: 0 | H38: 225550 | I38: 637 | J38: 16586945 | K38: 46848 | P38: 16812495 | Q38: 47485 | R38: 16812495 | S38: 47485
A39: 2023 | B39: Alectra Utilities Corporation | C39: Street Lighting Connections | D39: Street Lighting - Hydro One Brampton | E39: Alectra Utilities Corporation_ One Brampton_Street Lighting Service Classification | F39: 0 | G39: 0 | H39: 0 | J39: 22607635 | K39: 63600 | P39: 22607635 | Q39: 63600 | R39: 22607635 | S39: 63600
A40: 2023 | B40: Alectra Utilities Corporation | C40: Street Lighting Connections | D40: Street Lighting - PowerStream | E40: Alectra Utilities Corporation_- PowerStream_Street Lighting Service Classification | F40: 0 | G40: 0 | H40: 744131 | I40: 2105 | J40: 38015750 | K40: 107563 | P40: 38759881 | Q40: 109668 | R40: 38759881 | S40: 109668
A41: 2023 | B41: Alectra Utilities Corporation | C41: Unmetered Scattered Load Connections | D41: Unmetered Scattered Load - Enersource | E41: Alectra Utilities Corporation_ered Load - Enersource_Unmetered Scattered Load Service Classification | F41: 466574 | G41: 0 | H41: 10808606 | P41: 10808606 | Q41: 0 | R41: 11275180 | S41: 0
A42: 2023 | B42: Alectra Utilities Corporation | C42: Unmetered Scattered Load Connections | D42: Unmetered Scattered Load - Guelph Hydro | E42: Alectra Utilities Corporation_ed Load - Guelph Hydro_Unmetered Scattered Load Service Classification | F42: 466574 | G42: 0 | H42: 1578203 | P42: 1578203 | Q42: 0 | R42: 2044777 | S42: 0
A43: 2023 | B43: Alectra Utilities Corporation | C43: Unmetered Scattered Load Connections | D43: Unmetered Scattered Load - Horizon | E43: Alectra Utilities Corporation_attered Load - Horizon_Unmetered Scattered Load Service Classification | F43: 466574 | G43: 0 | H43: 10004410 | P43: 10004410 | Q43: 0 | R43: 10470984 | S43: 0
A44: 2023 | B44: Alectra Utilities Corporation | C44: Unmetered Scattered Load Connections | D44: Unmetered Scattered Load - Hydro One Brampton | E44: Alectra Utilities Corporation_d - Hydro One Brampton_Unmetered Scattered Load Service Classification | F44: 466574 | G44: 0 | H44: 5646693 | P44: 5646693 | Q44: 0 | R44: 6113267 | S44: 0
A45: 2023 | B45: Alectra Utilities Corporation | C45: Unmetered Scattered Load Connections | D45: Unmetered Scattered Load - PowerStream | E45: Alectra Utilities Corporation_red Load - PowerStream_Unmetered Scattered Load Service Classification | F45: 466574 | G45: 0 | H45: 14335579 | J45: -573 | P45: 14335006 | Q45: 0 | R45: 14801580 | S45: 0
A46: 2023 | B46: Algoma Power Inc. | C46: General Service >= 50 kW | D46: Residential – R2 | E46: Algoma Power Inc._Residential – R2 Service Classification | F46: 514683.27 | G46: 1584.93 | H46: 5421718.57 | I46: 15973.73 | J46: 114358003.4 | K46: 243267.44 | P46: 119779722 | Q46: 259241.17 | R46: 120294405.3 | S46: 260826.1
A47: 2023 | B47: Algoma Power Inc. | C47: Residential | D47: Residential – R1 | E47: Algoma Power Inc._Residential – R1 Service Classification | F47: 4448057.64 | G47: 0 | H47: 124411344.8 | P47: 124411344.8 | Q47: 0 | R47: 128859402.5 | S47: 0
A48: 2023 | B48: Algoma Power Inc. | C48: Residential | D48: Residential – Seasonal | E48: Algoma Power Inc._Residential – Seasonal Service Classification | F48: 4448057.64 | G48: 0 | H48: 6530093.39 | P48: 6530093.39 | Q48: 0 | R48: 10978151.03 | S48: 0
A49: 2023 | B49: Algoma Power Inc. | C49: Street Lighting Connections | D49: Street Lighting | E49: Algoma Power Inc._Street Lighting Service Classification | F49: 126429.8 | G49: 0 | H49: 0 | J49: 466545.1 | K49: 1705.9 | P49: 466545.1 | Q49: 1705.9 | R49: 592974.9 | S49: 1705.9
A50: 2023 | B50: Atikokan Hydro Inc. | C50: General Service < 50 kW | D50: General Service Less Than 50 kW | E50: Atikokan Hydro Inc._General Service Less Than 50 kW Service Classification | F50: 44321.54 | G50: 0 | H50: 4594277.59 | P50: 4594277.59 | Q50: 0 | R50: 4638599.13 | S50: 0
A51: 2023 | B51: Atikokan Hydro Inc. | C51: General Service >= 50 kW | D51: General Service 50 to 4,999 kW | E51: Atikokan Hydro Inc._General Service 50 to 4,999 kW Service Classification | F51: 1024353.15 | G51: 2270.88 | H51: 0 | J51: 14554079.3 | K51: 44317.77 | P51: 14554079.3 | Q51: 44317.77 | R51: 15578432.45 | S51: 46588.65
A52: 2023 | B52: Atikokan Hydro Inc. | C52: Residential | D52: Residential | E52: Atikokan Hydro Inc._Residential Service Classification | F52: 98456.5 | G52: 0 | H52: 9270926.57 | P52: 9270926.57 | Q52: 0 | R52: 9369383.07 | S52: 0
A53: 2023 | B53: Atikokan Hydro Inc. | C53: Street Lighting Connections | D53: Street Lighting | E53: Atikokan Hydro Inc._Street Lighting Service Classification | F53: 0 | G53: 0 | H53: 0 | J53: 394776.41 | K53: 1153.8 | P53: 394776.41 | Q53: 1153.8 | R53: 394776.41 | S53: 1153.8
A54: 2023 | B54: Bluewater Power Distribution Corporation | C54: General Service < 50 kW | D54: General Service Less Than 50 kW | E54: Bluewater Power Distribution Corporation_General Service Less Than 50 kW Service Classification | F54: 17661993 | G54: 0 | H54: 86018006 | J54: 57563 | P54: 86075569 | Q54: 0 | R54: 103737562 | S54: 0
A55: 2023 | B55: Bluewater Power Distribution Corporation | C55: General Service >= 50 kW | D55: General Service 1,000 to 4,999 kW | E55: Bluewater Power Distribution Corporation_General Service 1,000 to 4,999 kW Service Classification | F55: 0 | G55: 0 | H55: 0 | J55: 123485396 | K55: 243520 | P55: 123485396 | Q55: 243520 | R55: 123485396 | S55: 243520
A56: 2023 | B56: Bluewater Power Distribution Corporation | C56: General Service >= 50 kW | D56: General Service 50 to 999 kW | E56: Bluewater Power Distribution Corporation_General Service 50 to 999 kW Service Classification | F56: 0 | G56: 0 | H56: 35580316 | I56: 107064 | J56: 115004076 | K56: 307599 | L56: 4121266 | M56: 8018 | P56: 154705658 | Q56: 422681 | R56: 154705658 | S56: 422681
A57: 2023 | B57: Bluewater Power Distribution Corporation | C57: Large User | D57: Large Use | E57: Bluewater Power Distribution Corporation_Large Use Service Classification | F57: 0 | G57: 0 | H57: 0 | J57: 156270531 | K57: 272559 | L57: 113434615 | M57: 182231 | P57: 269705146 | Q57: 454790 | R57: 269705146 | S57: 454790
A58: 2023 | B58: Bluewater Power Distribution Corporation | C58: Residential | D58: Residential | E58: Bluewater Power Distribution Corporation_Residential Service Classification | F58: 4989396 | G58: 0 | H58: 269173436 | P58: 269173436 | Q58: 0 | R58: 274162832 | S58: 0
A59: 2023 | B59: Bluewater Power Distribution Corporation | C59: Sentinel Lighting Connections | D59: Sentinel Lighting | E59: Bluewater Power Distribution Corporation_Sentinel Lighting Service Classification | F59: 34244 | G59: 94 | H59: 394557 | I59: 1081 | P59: 394557 | Q59: 1081 | R59: 428801 | S59: 1175
A60: 2023 | B60: Bluewater Power Distribution Corporation | C60: Street Lighting Connections | D60: Street Lighting | E60: Bluewater Power Distribution Corporation_Street Lighting Service Classification | F60: 0 | G60: 0 | H60: 0 | J60: 3056551 | K60: 7854 | P60: 3056551 | Q60: 7854 | R60: 3056551 | S60: 7854
A61: 2023 | B61: Bluewater Power Distribution Corporation | C61: Unmetered Scattered Load Connections | D61: Unmetered Scattered Load | E61: Bluewater Power Distribution Corporation_Unmetered Scattered Load Service Classification | F61: 330660 | G61: 0 | H61: 1837966 | P61: 1837966 | Q61: 0 | R61: 2168626 | S61: 0
A62: 2023 | B62: Burlington Hydro Inc. | C62: General Service < 50 kW | D62: General Service Less Than 50 kW | E62: Burlington Hydro Inc._General Service Less Than 50 kW Service Classification | F62: 20729028 | G62: 0 | H62: 146839379 | J62: 170609 | P62: 147009988 | Q62: 0 | R62: 167739016 | S62: 0
A63: 2023 | B63: Burlington Hydro Inc. | C63: General Service >= 50 kW | D63: General Service 50 to 4,999 kW | E63: Burlington Hydro Inc._General Service 50 to 4,999 kW Service Classification | F63: 130582463 | G63: 368831 | H63: 119408209 | I63: 356669 | J63: 562208340 | K63: 1454517 | P63: 681616549 | Q63: 1811186 | R63: 812199012 | S63: 2180017
A64: 2023 | B64: Burlington Hydro Inc. | C64: Residential | D64: Residential | E64: Burlington Hydro Inc._Residential Service Classification | F64: 4646034 | G64: 0 | H64: 538417288 | P64: 538417288 | Q64: 0 | R64: 543063322 | S64: 0
A65: 2023 | B65: Burlington Hydro Inc. | C65: Street Lighting Connections | D65: Street Lighting | E65: Burlington Hydro Inc._Street Lighting Service Classification | F65: 0 | G65: 0 | H65: 46998 | I65: 131 | J65: 5503158 | K65: 15344 | P65: 5550156 | Q65: 15475 | R65: 5550156 | S65: 15475
A66: 2023 | B66: Burlington Hydro Inc. | C66: Unmetered Scattered Load Connections | D66: Unmetered Scattered Load | E66: Burlington Hydro Inc._Unmetered Scattered Load Service Classification | F66: 0 | G66: 0 | H66: 3146744 | P66: 3146744 | Q66: 0 | R66: 3146744 | S66: 0
A67: 2023 | B67: Canadian Niagara Power Inc. | C67: Embedded Distributor(s) | D67: Embedded Distributor | E67: Canadian Niagara Power Inc._Embedded Distributor Service Classification | F67: 0 | G67: 0 | H67: 0 | J67: 5531274.67 | K67: 15056.95 | P67: 5531274.67 | Q67: 15056.95 | R67: 5531274.67 | S67: 15056.95
A68: 2023 | B68: Canadian Niagara Power Inc. | C68: General Service < 50 kW | D68: General Service Less Than 50 kW | E68: Canadian Niagara Power Inc._General Service Less Than 50 kW Service Classification | F68: 9242587.12 | G68: 0 | H68: 58725472.76 | P68: 58725472.76 | Q68: 0 | R68: 67968059.88 | S68: 0
A69: 2023 | B69: Canadian Niagara Power Inc. | C69: General Service >= 50 kW | D69: General Service 50 To 4,999 kW | E69: Canadian Niagara Power Inc._General Service 50 To 4,999 kW Service Classification | F69: 10792116.09 | G69: 40595.66 | H69: 17901181.89 | I69: 56439.36 | J69: 151256435 | K69: 473291.91 | P69: 169157616.9 | Q69: 529731.27 | R69: 179949733 | S69: 570326.93
A70: 2023 | B70: Canadian Niagara Power Inc. | C70: Residential | D70: Residential | E70: Canadian Niagara Power Inc._Residential Service Classification | F70: 3013861.72 | G70: 0 | H70: 223302592.1 | P70: 223302592.1 | Q70: 0 | R70: 226316453.8 | S70: 0
A71: 2023 | B71: Canadian Niagara Power Inc. | C71: Sentinel Lighting Connections | D71: Sentinel Lighting | E71: Canadian Niagara Power Inc._Sentinel Lighting Service Classification | F71: 360.68 | G71: 1.2 | H71: 499384.31 | I71: 1635.13 | P71: 499384.31 | Q71: 1635.13 | R71: 499744.99 | S71: 1636.33
A72: 2023 | B72: Canadian Niagara Power Inc. | C72: Street Lighting Connections | D72: Street Lighting | E72: Canadian Niagara Power Inc._Street Lighting Service Classification | F72: 0 | G72: 0 | H72: 78588.92 | I72: 259.22 | J72: 1345127.16 | K72: 4093.2 | P72: 1423716.08 | Q72: 4352.42 | R72: 1423716.08 | S72: 4352.42
A73: 2023 | B73: Canadian Niagara Power Inc. | C73: Unmetered Scattered Load Connections | D73: Unmetered Scattered Load | E73: Canadian Niagara Power Inc._Unmetered Scattered Load Service Classification | F73: 883032 | G73: 0 | H73: 400968.59 | P73: 400968.59 | Q73: 0 | R73: 1284000.59 | S73: 0
A74: 2023 | B74: Centre Wellington Hydro Ltd. | C74: General Service < 50 kW | D74: General Service Less Than 50 kW | E74: Centre Wellington Hydro Ltd._General Service Less Than 50 kW Service Classification | F74: 4547485 | G74: 0 | H74: 20710592 | P74: 20710592 | Q74: 0 | R74: 25258077 | S74: 0
A75: 2023 | B75: Centre Wellington Hydro Ltd. | C75: General Service >= 50 kW | D75: General Service 3,000 to 4,999 kW | E75: Centre Wellington Hydro Ltd._General Service 3,000 to 4,999 kW Service Classification | F75: 0 | G75: 0 | H75: 0 | J75: 14802769.2 | K75: 36197.43 | P75: 14802769.2 | Q75: 36197.43 | R75: 14802769.2 | S75: 36197.43
A76: 2023 | B76: Centre Wellington Hydro Ltd. | C76: General Service >= 50 kW | D76: General Service 50 to 2,999 kW | E76: Centre Wellington Hydro Ltd._General Service 50 to 2,999 kW Service Classification | F76: 0 | G76: 0 | H76: 1938350 | I76: 7415.4 | J76: 37516561.2 | K76: 109290.43 | L76: 2632776.43 | M76: 4940.94 | P76: 42087687.63 | Q76: 121646.77 | R76: 42087687.63 | S76: 121646.77
A77: 2023 | B77: Centre Wellington Hydro Ltd. | C77: Residential | D77: Residential | E77: Centre Wellington Hydro Ltd._Residential Service Classification | F77: 531746 | G77: 0 | H77: 49647360 | P77: 49647360 | Q77: 0 | R77: 50179106 | S77: 0
A78: 2023 | B78: Centre Wellington Hydro Ltd. | C78: Sentinel Lighting Connections | D78: Sentinel Lighting | E78: Centre Wellington Hydro Ltd._Sentinel Lighting Service Classification | F78: 12921 | G78: 35.89 | H78: 22564 | I78: 62.68 | P78: 22564 | Q78: 62.68 | R78: 35485 | S78: 98.57
A79: 2023 | B79: Centre Wellington Hydro Ltd. | C79: Street Lighting Connections | D79: Street Lighting | E79: Centre Wellington Hydro Ltd._Street Lighting Service Classification | F79: 0 | G79: 0 | H79: 0 | J79: 607654.53 | K79: 1682.76 | P79: 607654.53 | Q79: 1682.76 | R79: 607654.53 | S79: 1682.76
A80: 2023 | B80: Centre Wellington Hydro Ltd. | C80: Unmetered Scattered Load Connections | D80: Unmetered Scattered Load | E80: Centre Wellington Hydro Ltd._Unmetered Scattered Load Service Classification | F80: 121440 | G80: 0 | H80: 510037 | P80: 510037 | Q80: 0 | R80: 631477 | S80: 0
A81: 2023 | B81: Chapleau Public Utilities Corporation | C81: General Service < 50 kW | D81: General Service Less Than 50 kW | E81: Chapleau Public Utilities Corporation_General Service Less Than 50 kW Service Classification | F81: 639296 | G81: 0 | H81: 3918152 | P81: 3918152 | Q81: 0 | R81: 4557448 | S81: 0
A82: 2023 | B82: Chapleau Public Utilities Corporation | C82: General Service >= 50 kW | D82: General Service 50 to 4,999 kW | E82: Chapleau Public Utilities Corporation_General Service 50 to 4,999 kW Service Classification | F82: 658659 | G82: 2467 | H82: 0 | J82: 3252804 | K82: 11807 | P82: 3252804 | Q82: 11807 | R82: 3911463 | S82: 14274
A83: 2023 | B83: Chapleau Public Utilities Corporation | C83: Residential | D83: Residential | E83: Chapleau Public Utilities Corporation_Residential Service Classification | F83: 51450 | G83: 0 | H83: 14629309 | P83: 14629309 | Q83: 0 | R83: 14680759 | S83: 0
A84: 2023 | B84: Chapleau Public Utilities Corporation | C84: Sentinel Lighting Connections | D84: Sentinel Lighting | E84: Chapleau Public Utilities Corporation_Sentinel Lighting Service Classification | F84: 4027 | G84: 5.5 | H84: 15178 | I84: 55 | P84: 15178 | Q84: 55 | R84: 19205 | S84: 60.5
A85: 2023 | B85: Chapleau Public Utilities Corporation | C85: Street Lighting Connections | D85: Street Lighting | E85: Chapleau Public Utilities Corporation_Street Lighting Service Classification | F85: 0 | G85: 0 | H85: 162841 | I85: 456 | P85: 162841 | Q85: 456 | R85: 162841 | S85: 456
A86: 2023 | B86: Chapleau Public Utilities Corporation | C86: Unmetered Scattered Load Connections | D86: Unmetered Scattered Load | E86: Chapleau Public Utilities Corporation_Unmetered Scattered Load Service Classification | F86: 0 | G86: 0 | H86: 2892 | P86: 2892 | Q86: 0 | R86: 2892 | S86: 0
A87: 2023 | B87: Cooperative Hydro Embrun Inc. | C87: General Service < 50 kW | D87: General Service Less Than 50 kW | E87: Cooperative Hydro Embrun Inc._General Service Less Than 50 kW Service Classification | F87: 1148943 | G87: 0 | H87: 3479724 | I87: 0 | J87: 0 | K87: 0 | L87: 0 | M87: 0 | P87: 3479724 | Q87: 0 | R87: 4628667 | S87: 0
A88: 2023 | B88: Cooperative Hydro Embrun Inc. | C88: General Service >= 50 kW | D88: General Service 50 to 4,999 kW | E88: Cooperative Hydro Embrun Inc._General Service 50 to 4,999 kW Service Classification | F88: 0 | G88: 0 | H88: 772198 | I88: 0 | J88: 2871748 | K88: 10244 | L88: 0 | M88: 0 | P88: 3643946 | Q88: 10244 | R88: 3643946 | S88: 10244
A89: 2023 | B89: Cooperative Hydro Embrun Inc. | C89: Residential | D89: Residential | E89: Cooperative Hydro Embrun Inc._Residential Service Classification | F89: 76288 | G89: 0 | H89: 22038097 | I89: 0 | J89: 0 | K89: 0 | L89: 0 | M89: 0 | P89: 22038097 | Q89: 0 | R89: 22114385 | S89: 0
A90: 2023 | B90: Cooperative Hydro Embrun Inc. | C90: Street Lighting Connections | D90: Street Lighting | E90: Cooperative Hydro Embrun Inc._Street Lighting Service Classification | F90: 0 | G90: 0 | H90: 0 | I90: 0 | J90: 215021 | K90: 602 | L90: 0 | M90: 0 | P90: 215021 | Q90: 602 | R90: 215021 | S90: 602
A91: 2023 | B91: Cooperative Hydro Embrun Inc. | C91: Unmetered Scattered Load Connections | D91: Unmetered Scattered Load | E91: Cooperative Hydro Embrun Inc._Unmetered Scattered Load Service Classification | F91: 0 | G91: 0 | H91: 93084 | I91: 0 | J91: 0 | K91: 0 | L91: 0 | M91: 0 | P91: 93084 | Q91: 0 | R91: 93084 | S91: 0
A92: 2023 | B92: E.L.K. Energy Inc. | C92: Embedded Distributor(s) | D92: Embedded Distributor | E92: E.L.K. Energy Inc._Embedded Distributor Service Classification | F92: 0 | G92: 0 | H92: 0 | J92: 45020625 | K92: 129568 | P92: 45020625 | Q92: 129568 | R92: 45020625 | S92: 129568
A93: 2023 | B93: E.L.K. Energy Inc. | C93: General Service < 50 kW | D93: General Service Less Than 50 kW | E93: E.L.K. Energy Inc._General Service Less Than 50 kW Service Classification | F93: 5505797 | G93: 0 | H93: 20301709 | J93: 3856294 | P93: 24158003 | Q93: 0 | R93: 29663800 | S93: 0
A94: 2023 | B94: E.L.K. Energy Inc. | C94: General Service >= 50 kW | D94: General Service 50 to 4,999 kW | E94: E.L.K. Energy Inc._General Service 50 to 4,999 kW Service Classification | F94: 13107641 | G94: 0 | H94: 6105988 | I94: 5859 | J94: 33793282 | K94: 140629 | L94: 2671090.56 | M94: 4636.07 | P94: 42570360.56 | Q94: 151124.07 | R94: 55678001.56 | S94: 151124.07
A95: 2023 | B95: E.L.K. Energy Inc. | C95: Residential | D95: Residential | E95: E.L.K. Energy Inc._Residential Service Classification | F95: 1602165 | G95: 0 | H95: 102120501 | J95: 2116789 | P95: 104237290 | Q95: 0 | R95: 105839455 | S95: 0
A96: 2023 | B96: E.L.K. Energy Inc. | C96: Sentinel Lighting Connections | D96: Sentinel Lighting | E96: E.L.K. Energy Inc._Sentinel Lighting Service Classification | F96: 1924 | G96: 0 | H96: 0 | J96: 136555 | K96: 360 | P96: 136555 | Q96: 360 | R96: 138479 | S96: 360
A97: 2023 | B97: E.L.K. Energy Inc. | C97: Street Lighting Connections | D97: Street Lighting | E97: E.L.K. Energy Inc._Street Lighting Service Classification | F97: 1271846 | G97: 0 | H97: 0 | J97: 79990 | K97: 3336 | P97: 79990 | Q97: 3336 | R97: 1351836 | S97: 3336
A98: 2023 | B98: E.L.K. Energy Inc. | C98: Unmetered Scattered Load Connections | D98: Unmetered Scattered Load | E98: E.L.K. Energy Inc._Unmetered Scattered Load Service Classification | F98: 0 | G98: 0 | H98: 0 | J98: 248448 | P98: 248448 | Q98: 0 | R98: 248448 | S98: 0
A99: 2023 | B99: ENWIN Utilities Ltd. | C99: General Service < 50 kW | D99: General Service Less Than 50 kW | E99: ENWIN Utilities Ltd._General Service Less Than 50 kW Service Classification | F99: 32929080.38 | G99: 0 | H99: 217425258.2 | P99: 217425258.2 | Q99: 0 | R99: 250354338.6 | S99: 0
A100: 2023 | B100: ENWIN Utilities Ltd. | C100: General Service >= 50 kW | D100: General Service 3,000 to 4,999 kW - Intermediate Use | E100: ENWIN Utilities Ltd._ to 4,999 kW - Intermediate Use_General Service 3,000 to 4,999 kW Service Classification | F100: 0 | G100: 0 | H100: 0 | P100: 0 | Q100: 0 | R100: 0 | S100: 0
A101: 2023 | B101: ENWIN Utilities Ltd. | C101: General Service >= 50 kW | D101: General Service 50 to 4,999 kW | E101: ENWIN Utilities Ltd._General Service 50 to 4,999 kW Service Classification | F101: 0 | G101: 0 | H101: 136964406.1 | I101: 335458.09 | J101: 611116041.1 | K101: 1525735.62 | L101: 10246507.88 | M101: 19457.33 | P101: 758326955 | Q101: 1880651.04 | R101: 758326955 | S101: 1880651.04
A102: 2023 | B102: ENWIN Utilities Ltd. | C102: Large User | D102: Dedicated TS | E102: ENWIN Utilities Ltd._Dedicated TS Service Classification | F102: 0 | G102: 0 | H102: 0 | J102: 105928150.5 | K102: 262331.12 | L102: 74886540.06 | M102: 127788.48 | P102: 180814690.6 | Q102: 390119.6 | R102: 180814690.6 | S102: 390119.6
A103: 2023 | B103: ENWIN Utilities Ltd. | C103: Large User | D103: Large Use - Ford Annex | E103: ENWIN Utilities Ltd._d Annex_Large Use Service Classification | F103: 0 | G103: 0 | H103: 0 | P103: 0 | Q103: 0 | R103: 0 | S103: 0
A104: 2023 | B104: ENWIN Utilities Ltd. | C104: Large User | D104: Large Use - Regular | E104: ENWIN Utilities Ltd._Regular_Large Use Service Classification | F104: 0 | G104: 0 | H104: 0 | J104: 81496800.24 | K104: 224075.69 | L104: 99959167.25 | M104: 177248.31 | P104: 181455967.5 | Q104: 401324 | R104: 181455967.5 | S104: 401324
A105: 2023 | B105: ENWIN Utilities Ltd. | C105: Residential | D105: Residential | E105: ENWIN Utilities Ltd._Residential Service Classification | F105: 9085939.74 | G105: 0 | H105: 642418269.3 | P105: 642418269.3 | Q105: 0 | R105: 651504209 | S105: 0
A106: 2023 | B106: ENWIN Utilities Ltd. | C106: Sentinel Lighting Connections | D106: Sentinel Lighting | E106: ENWIN Utilities Ltd._Sentinel Lighting Service Classification | F106: 45674.34 | G106: 127.26 | H106: 652010.6 | I106: 1815.57 | P106: 652010.6 | Q106: 1815.57 | R106: 697684.94 | S106: 1942.83
A107: 2023 | B107: ENWIN Utilities Ltd. | C107: Street Lighting Connections | D107: Street Lighting | E107: ENWIN Utilities Ltd._Street Lighting Service Classification | F107: 0 | G107: 0 | H107: 18381.53 | I107: 53.04 | J107: 6587600.44 | K107: 18991.54 | P107: 6605981.97 | Q107: 19044.58 | R107: 6605981.97 | S107: 19044.58
A108: 2023 | B108: ENWIN Utilities Ltd. | C108: Unmetered Scattered Load Connections | D108: Unmetered Scattered Load | E108: ENWIN Utilities Ltd._Unmetered Scattered Load Service Classification | F108: 38880 | G108: 0 | H108: 100370.68 | J108: 2172201.75 | P108: 2272572.43 | Q108: 0 | R108: 2311452.43 | S108: 0
A109: 2023 | B109: EPCOR Electricity Distribution Ontario Inc. | C109: General Service < 50 kW | D109: General Service Less Than 50 kW | E109: EPCOR Electricity Distribution Ontario Inc._General Service Less Than 50 kW Service Classification | F109: 7043307.43 | G109: 0 | H109: 39536433.38 | J109: 203045 | P109: 39739478.38 | Q109: 0 | R109: 46782785.81 | S109: 0
A110: 2023 | B110: EPCOR Electricity Distribution Ontario Inc. | C110: General Service >= 50 kW | D110: General Service 50 to 4,999 kW | E110: EPCOR Electricity Distribution Ontario Inc._General Service 50 to 4,999 kW Service Classification | F110: 19195476.85 | G110: 42825.83 | H110: 14881993.55 | I110: 49573.87 | J110: 90482648.4 | K110: 215241.45 | L110: 2302949.07 | M110: 4656.49 | P110: 107667591 | Q110: 269471.81 | R110: 126863067.9 | S110: 312297.64
A111: 2023 | B111: EPCOR Electricity Distribution Ontario Inc. | C111: Residential | D111: Residential | E111: EPCOR Electricity Distribution Ontario Inc._Residential Service Classification | F111: 1855014.88 | G111: 0 | H111: 136902465.6 | P111: 136902465.6 | Q111: 0 | R111: 138757480.5 | S111: 0
A112: 2023 | B112: EPCOR Electricity Distribution Ontario Inc. | C112: Street Lighting Connections | D112: Street Lighting | E112: EPCOR Electricity Distribution Ontario Inc._Street Lighting Service Classification | F112: 0 | G112: 0 | H112: 0 | J112: 1223181.2 | K112: 3435.44 | P112: 1223181.2 | Q112: 3435.44 | R112: 1223181.2 | S112: 3435.44
A113: 2023 | B113: EPCOR Electricity Distribution Ontario Inc. | C113: Unmetered Scattered Load Connections | D113: Unmetered Scattered Load | E113: EPCOR Electricity Distribution Ontario Inc._Unmetered Scattered Load Service Classification | F113: 336.02 | G113: 0 | H113: 394813.47 | P113: 394813.47 | Q113: 0 | R113: 395149.49 | S113: 0
A114: 2023 | B114: ERTH Power Corporation | C114: Embedded Distributor(s) | D114: Embedded Distributor - Main | E114: ERTH Power Corporation_Distributor - Main_Embedded Distributor Service Classification | F114: 0 | G114: 0 | H114: 0 | J114: 17962949 | K114: 39090 | P114: 17962949 | Q114: 39090 | R114: 17962949 | S114: 39090
A115: 2023 | B115: ERTH Power Corporation | C115: General Service < 50 kW | D115: General Service Less Than 50 kW - Goderich | E115: ERTH Power Corporation_ce Less Than 50 kW - Goderich_General Service Less Than 50 kW Service Classification | F115: 2434703 | G115: 0 | H115: 11495494 | P115: 11495494 | Q115: 0 | R115: 13930197 | S115: 0
A116: 2023 | B116: ERTH Power Corporation | C116: General Service < 50 kW | D116: General Service Less Than 50 kW - Main | E116: ERTH Power Corporation_ervice Less Than 50 kW - Main_General Service Less Than 50 kW Service Classification | F116: 2434703 | G116: 0 | H116: 42665734 | I116: 0 | J116: 0 | K116: 0 | L116: 0 | M116: 0 | P116: 42665734 | Q116: 0 | R116: 45100437 | S116: 0
A117: 2023 | B117: ERTH Power Corporation | C117: General Service >= 50 kW | D117: General Service 1,000 to 4,999 kW - Main | E117: ERTH Power Corporation_ervice 1,000 to 4,999 kW - Main_General Service 1,000 to 4,999 kW Service Classification | F117: 6081749 | G117: 14763 | H117: 0 | J117: 74989453 | K117: 163311 | P117: 74989453 | Q117: 163311 | R117: 81071202 | S117: 178074
A118: 2023 | B118: ERTH Power Corporation | C118: General Service >= 50 kW | D118: General Service 50 to 499 kW - Goderich | E118: ERTH Power Corporation_ce 50 to 499 kW - Goderich_General Service 50 to 499 kW Service Classification | F118: 6081749 | G118: 14763 | H118: 1955204 | I118: 5399 | J118: 12154367 | K118: 35353 | L118: 119773 | M118: 281 | P118: 14229344 | Q118: 41033 | R118: 20311093 | S118: 55796
A119: 2023 | B119: ERTH Power Corporation | C119: General Service >= 50 kW | D119: General Service 50 to 999 kW - Main | E119: ERTH Power Corporation_ervice 50 to 999 kW - Main_General Service 50 to 999 kW Service Classification | F119: 6081749 | G119: 14763 | H119: 7436623 | I119: 30449 | J119: 43587080 | K119: 125039 | P119: 51023703 | Q119: 155488 | R119: 57105452 | S119: 170251
A120: 2023 | B120: ERTH Power Corporation | C120: General Service >= 50 kW | D120: General Service 500 to 4,999 kW - Goderich | E120: ERTH Power Corporation_ce 500 to 4,999 kW - Goderich_General Service 500 to 4,999 kW Service Classification | F120: 6081749 | G120: 14763 | H120: 0 | J120: 12396267 | K120: 32665 | P120: 12396267 | Q120: 32665 | R120: 18478016 | S120: 47428
A121: 2023 | B121: ERTH Power Corporation | C121: Large User | D121: Large Use - Goderich | E121: ERTH Power Corporation_oderich_Large Use Service Classification | F121: 0 | G121: 0 | H121: 0 | L121: 73319224 | M121: 178904 | P121: 73319224 | Q121: 178904 | R121: 73319224 | S121: 178904
A122: 2023 | B122: ERTH Power Corporation | C122: Large User | D122: Large Use- Main | E122: ERTH Power Corporation_- Main_Large Us Service Classification | F122: 0 | G122: 0 | H122: 0 | J122: 93760171 | K122: 167472 | P122: 93760171 | Q122: 167472 | R122: 93760171 | S122: 167472
A123: 2023 | B123: ERTH Power Corporation | C123: Residential | D123: Residential - Goderich | E123: ERTH Power Corporation_ Goderich_Residential Service Classification | F123: 427385 | G123: 0 | H123: 26341038 | P123: 26341038 | Q123: 0 | R123: 26768423 | S123: 0
A124: 2023 | B124: ERTH Power Corporation | C124: Residential | D124: Residential - Main | E124: ERTH Power Corporation_al - Main_Residential Service Classification | F124: 427385 | G124: 0 | H124: 153146768 | I124: 0 | J124: 33878 | K124: 0 | L124: 0 | M124: 0 | P124: 153180646 | Q124: 0 | R124: 153608031 | S124: 0
A125: 2023 | B125: ERTH Power Corporation | C125: Sentinel Lighting Connections | D125: Sentinel Lighting - Goderich | E125: ERTH Power Corporation_ting - Goderich_Sentinel Lighting Service Classification | F125: 0 | G125: 0 | H125: 1901 | P125: 1901 | Q125: 0 | R125: 1901 | S125: 0
A126: 2023 | B126: ERTH Power Corporation | C126: Sentinel Lighting Connections | D126: Sentinel Lighting - Main | E126: ERTH Power Corporation_Lighting - Main_Sentinel Lighting Service Classification | F126: 0 | G126: 0 | H126: 189178 | P126: 189178 | Q126: 0 | R126: 189178 | S126: 0
A127: 2023 | B127: ERTH Power Corporation | C127: Street Lighting Connections | D127: Street Lighting - Goderich | E127: ERTH Power Corporation_ng - Goderich_Street Lighting Service Classification | F127: 380209 | G127: 976 | H127: 71382 | I127: 8 | P127: 71382 | Q127: 8 | R127: 451591 | S127: 984
A128: 2023 | B128: ERTH Power Corporation | C128: Street Lighting Connections | D128: Street Lighting - Main | E128: ERTH Power Corporation_ghting - Main_Street Lighting Service Classification | F128: 380209 | G128: 976 | H128: 698702 | I128: 1893 | J128: 832953 | K128: 2259 | P128: 1531655 | Q128: 4152 | R128: 1911864 | S128: 5128
A129: 2023 | B129: ERTH Power Corporation | C129: Unmetered Scattered Load Connections | D129: Unmetered Scattered Load - Goderich | E129: ERTH Power Corporation_ttered Load - Goderich_Unmetered Scattered Load Service Classification | F129: 0 | G129: 0 | H129: 83100 | P129: 83100 | Q129: 0 | R129: 83100 | S129: 0
A130: 2023 | B130: ERTH Power Corporation | C130: Unmetered Scattered Load Connections | D130: Unmetered Scattered Load - Main | E130: ERTH Power Corporation_ Scattered Load - Main_Unmetered Scattered Load Service Classification | F130: 0 | G130: 0 | H130: 351990 | P130: 351990 | Q130: 0 | R130: 351990 | S130: 0
A131: 2023 | B131: Elexicon Energy Inc. | C131: General Service < 50 kW | D131: General Service < 50 kW - Veridian | E131: Elexicon Energy Inc._ce < 50 kW - Veridian_General Service < 50 kW Service Classification | F131: 46128505 | G131: 0 | H131: 247484698 | J131: 299880 | P131: 247784578 | Q131: 0 | R131: 293913083 | S131: 0
A132: 2023 | B132: Elexicon Energy Inc. | C132: General Service < 50 kW | D132: General Service < 50 kW - Whitby | E132: Elexicon Energy Inc._vice < 50 kW - Whitby_General Service < 50 kW Service Classification | F132: 46128505 | G132: 0 | H132: 78472237 | P132: 78472237 | Q132: 0 | R132: 124600742 | S132: 0
A133: 2023 | B133: Elexicon Energy Inc. | C133: General Service >= 50 kW | D133: General Service 3,000 to 4,999 kW - Veridian | E133: Elexicon Energy Inc._ce 3,000 to 4,999 kW - Veridian_General Service 3,000 to 4,999 kW Service Classification | F133: 0 | G133: 0 | H133: 0 | J133: 106165862 | K133: 230323 | P133: 106165862 | Q133: 230323 | R133: 106165862 | S133: 230323
A134: 2023 | B134: Elexicon Energy Inc. | C134: General Service >= 50 kW | D134: General Service 50 to 2,999 kW - Veridian | E134: Elexicon Energy Inc._ce 50 to 2,999 kW - Veridian_General Service 50 to 2,999 kW Service Classification | F134: 0 | G134: 0 | H134: 95619460 | I134: 240793 | J134: 707599784 | K134: 1646930 | L134: 33951099 | M134: 60065 | P134: 837170343 | Q134: 1947788 | R134: 837170343 | S134: 1947788
A135: 2023 | B135: Elexicon Energy Inc. | C135: General Service >= 50 kW | D135: General Service 50 to 4,999 kW - Whitby | E135: Elexicon Energy Inc._vice 50 to 4,999 kW - Whitby_General Service 50 to 4,999 kW Service Classification | F135: 0 | G135: 0 | H135: 41495299 | I135: 121169 | J135: 265582934 | K135: 619875 | L135: 3993260 | M135: 7529 | P135: 311071493 | Q135: 748573 | R135: 311071493 | S135: 748573
A136: 2023 | B136: Elexicon Energy Inc. | C136: Large User | D136: Large Use - Veridian | E136: Elexicon Energy Inc._eridian_Large Use Service Classification | F136: 0 | G136: 0 | H136: 0 | J136: 296296133 | K136: 490452 | P136: 296296133 | Q136: 490452 | R136: 296296133 | S136: 490452
A137: 2023 | B137: Elexicon Energy Inc. | C137: Residential | D137: Residential - Veridian | E137: Elexicon Energy Inc._ Veridian_Residential Service Classification | F137: 19146462 | G137: 0 | H137: 993379175 | P137: 993379175 | Q137: 0 | R137: 1012525637 | S137: 0
A138: 2023 | B138: Elexicon Energy Inc. | C138: Residential | D138: Residential - Whitby | E138: Elexicon Energy Inc._ - Whitby_Residential Service Classification | F138: 19146462 | G138: 0 | H138: 392222781 | P138: 392222781 | Q138: 0 | R138: 411369243 | S138: 0
A139: 2023 | B139: Elexicon Energy Inc. | C139: Residential | D139: Residential Seasonal - Veridian | E139: Elexicon Energy Inc._easonal - Veridian_Residential Seasonal Service Classification | F139: 19146462 | G139: 0 | H139: 12452168 | P139: 12452168 | Q139: 0 | R139: 31598630 | S139: 0
A140: 2023 | B140: Elexicon Energy Inc. | C140: Sentinel Lighting Connections | D140: Sentinel Lighting - Veridian | E140: Elexicon Energy Inc._ting - Veridian_Sentinel Lighting Service Classification | F140: 65481 | G140: 182 | H140: 150964 | I140: 419 | P140: 150964 | Q140: 419 | R140: 216445 | S140: 601
A141: 2023 | B141: Elexicon Energy Inc. | C141: Sentinel Lighting Connections | D141: Sentinel Lighting - Whitby | E141: Elexicon Energy Inc._ghting - Whitby_Sentinel Lighting Service Classification | F141: 65481 | G141: 182 | H141: 33915 | I141: 95 | P141: 33915 | Q141: 95 | R141: 99396 | S141: 277
A142: 2023 | B142: Elexicon Energy Inc. | C142: Street Lighting Connections | D142: Street Lighting - Veridian | E142: Elexicon Energy Inc._ng - Veridian_Street Lighting Service Classification | F142: 2647480 | G142: 7397 | H142: 0 | J142: 8458161 | K142: 23613 | P142: 8458161 | Q142: 23613 | R142: 11105641 | S142: 31010
A143: 2023 | B143: Elexicon Energy Inc. | C143: Street Lighting Connections | D143: Street Lighting - Whitby | E143: Elexicon Energy Inc._ting - Whitby_Street Lighting Service Classification | F143: 2647480 | G143: 7397 | H143: 0 | J143: 3451734 | K143: 9581 | P143: 3451734 | Q143: 9581 | R143: 6099214 | S143: 16978
A144: 2023 | B144: Elexicon Energy Inc. | C144: Unmetered Scattered Load Connections | D144: Unmetered Scattered Load - Veridian | E144: Elexicon Energy Inc._ttered Load - Veridian_Unmetered Scattered Load Service Classification | F144: 220200 | G144: 0 | H144: 4342427 | I144: 894 | P144: 4342427 | Q144: 894 | R144: 4562627 | S144: 894
A145: 2023 | B145: Elexicon Energy Inc. | C145: Unmetered Scattered Load Connections | D145: Unmetered Scattered Load - Whitby | E145: Elexicon Energy Inc._cattered Load - Whitby_Unmetered Scattered Load Service Classification | F145: 220200 | G145: 0 | H145: 1752566 | P145: 1752566 | Q145: 0 | R145: 1972766 | S145: 0
A146: 2023 | B146: Enova Power Corp. | C146: Embedded Distributor(s) | D146: Embedded Distributor-Kitchener-Wilmot | E146: Enova Power Corp._-Kitchener-Wilmot_Embedded Distributo Service Classification | F146: 0 | G146: 0 | H146: 0 | L146: 21251984.99 | M146: 50207.73 | P146: 21251984.99 | Q146: 50207.73 | R146: 21251984.99 | S146: 50207.73
A147: 2023 | B147: Enova Power Corp. | C147: Embedded Distributor(s) | D147: Embedded Distributor-Waterloo North | E147: Enova Power Corp._or-Waterloo North_Embedded Distributo Service Classification | F147: 0 | G147: 0 | H147: 0 | J147: 43405374 | K147: 93864 | P147: 43405374 | Q147: 93864 | R147: 43405374 | S147: 93864
A148: 2023 | B148: Enova Power Corp. | C148: General Service < 50 kW | D148: General Service Less Than 50 kW-Kitchener-Wilmot | E148: Enova Power Corp._ Than 50 kW-Kitchener-Wilmot_General Service Less Than 50 k Service Classification | F148: 26006175.27 | G148: 0 | H148: 203013857 | P148: 203013857 | Q148: 0 | R148: 229020032.3 | S148: 0
A149: 2023 | B149: Enova Power Corp. | C149: General Service < 50 kW | D149: General Service Less Than 50 kW-Waterloo North | E149: Enova Power Corp._ss Than 50 kW-Waterloo North_General Service Less Than 50 k Service Classification | F149: 26006175.27 | G149: 0 | H149: 177964637 | J149: 739634.16 | P149: 178704271.2 | Q149: 0 | R149: 204710446.4 | S149: 0
A150: 2023 | B150: Enova Power Corp. | C150: General Service >= 50 kW | D150: General Service 50 to 4,999 kW-Kitchener-Wilmot | E150: Enova Power Corp._o 4,999 kW-Kitchener-Wilmot_General Service 50 to 4,999 k Service Classification | F150: 118029215.3 | G150: 321277.18 | H150: 146399325 | J150: 553877861.2 | K150: 1803398.92 | L150: 13677771.62 | M150: 27001.97 | P150: 713954957.8 | Q150: 1830400.89 | R150: 831984173.1 | S150: 2151678.07
A151: 2023 | B151: Enova Power Corp. | C151: General Service >= 50 kW | D151: General Service 50 to 4,999 kW-Waterloo North | E151: Enova Power Corp._ to 4,999 kW-Waterloo North_General Service 50 to 4,999 k Service Classification | F151: 118029215.3 | G151: 321277.18 | H151: 90201878 | I151: 234300.61 | J151: 487984782.1 | K151: 1232352.09 | L151: 7707047 | M151: 16568.11 | P151: 585893707.1 | Q151: 1483220.81 | R151: 703922922.4 | S151: 1804497.99
A152: 2023 | B152: Enova Power Corp. | C152: Large User | D152: Large Use-Kitchener-Wilmot | E152: Enova Power Corp._Wilmot_Large Us Service Classification | F152: 0 | G152: 0 | H152: 0 | J152: 24869019.28 | K152: 53382.78 | P152: 24869019.28 | Q152: 53382.78 | R152: 24869019.28 | S152: 53382.78
A153: 2023 | B153: Enova Power Corp. | C153: Large User | D153: Large Use-Waterloo North | E153: Enova Power Corp._ North_Large Us Service Classification | F153: 0 | G153: 0 | H153: 0 | J153: 92951206 | K153: 162547 | P153: 92951206 | Q153: 162547 | R153: 92951206 | S153: 162547
A154: 2023 | B154: Enova Power Corp. | C154: Residential | D154: Residential-Kitchener-Wilmot | E154: Enova Power Corp._r-Wilmot_Residentia Service Classification | F154: 6418694.76 | G154: 0 | H154: 710643836.6 | P154: 710643836.6 | Q154: 0 | R154: 717062531.3 | S154: 0
A155: 2023 | B155: Enova Power Corp. | C155: Residential | D155: Residential-Waterloo North | E155: Enova Power Corp._oo North_Residentia Service Classification | F155: 6418694.76 | G155: 0 | H155: 432433970 | P155: 432433970 | Q155: 0 | R155: 438852664.8 | S155: 0
A156: 2023 | B156: Enova Power Corp. | C156: Street Lighting Connections | D156: Street Lighting-Kitchener-Wilmot | E156: Enova Power Corp._hener-Wilmot_Street Lightin Service Classification | F156: 0 | G156: 0 | H156: 485999.5 | J156: 6629008.27 | K156: 19791.06 | P156: 7115007.77 | Q156: 19791.06 | R156: 7115007.77 | S156: 19791.06
A157: 2023 | B157: Enova Power Corp. | C157: Street Lighting Connections | D157: Street Lighting-Waterloo North | E157: Enova Power Corp._terloo North_Street Lightin Service Classification | F157: 0 | G157: 0 | H157: 0 | J157: 3578606 | K157: 9989 | P157: 3578606 | Q157: 9989 | R157: 3578606 | S157: 9989
A158: 2023 | B158: Enova Power Corp. | C158: Unmetered Scattered Load Connections | D158: Unmetered Scattered Load-Kitchener-Wilmot | E158: Enova Power Corp._Load-Kitchener-Wilmot_Unmetered Scattered Loa Service Classification | F158: 0 | G158: 0 | H158: 3957293.93 | P158: 3957293.93 | Q158: 0 | R158: 3957293.93 | S158: 0
A159: 2023 | B159: Enova Power Corp. | C159: Unmetered Scattered Load Connections | D159: Unmetered Scattered Load-Waterloo North | E159: Enova Power Corp._d Load-Waterloo North_Unmetered Scattered Loa Service Classification | F159: 0 | G159: 0 | H159: 3333217 | P159: 3333217 | Q159: 0 | R159: 3333217 | S159: 0
A160: 2023 | B160: Entegrus Powerlines Inc. | C160: Embedded Distributor(s) | D160: Embedded Distributor - Main | E160: Entegrus Powerlines Inc._Distributor - Main_Embedded Distributor Service Classification | F160: 0 | G160: 0 | H160: 0 | I160: 0 | J160: 0.01 | K160: 0.01 | L160: 0 | M160: 0 | P160: 0.01 | Q160: 0.01 | R160: 0.01 | S160: 0.01
A161: 2023 | B161: Entegrus Powerlines Inc. | C161: General Service < 50 kW | D161: General Service Less Than 50 kW - Main | E161: Entegrus Powerlines Inc._ervice Less Than 50 kW - Main_General Service Less Than 50 kW Service Classification | F161: 19171539 | G161: 0 | H161: 95978517 | I161: 0 | J161: 0 | K161: 0 | L161: 0 | M161: 0 | P161: 95978517 | Q161: 0 | R161: 115150056 | S161: 0
A162: 2023 | B162: Entegrus Powerlines Inc. | C162: General Service < 50 kW | D162: General Service Less Than 50 kW - St. Thomas Energy | E162: Entegrus Powerlines Inc._han 50 kW - St. Thomas Energy_General Service Less Than 50 kW Service Classification | F162: 19171539 | G162: 0 | H162: 37821678 | I162: 0 | J162: 0 | K162: 0 | L162: 0 | M162: 0 | P162: 37821678 | Q162: 0 | R162: 56993217 | S162: 0
A163: 2023 | B163: Entegrus Powerlines Inc. | C163: General Service >= 50 kW | D163: General Service 50 to 4,999 kW - Main | E163: Entegrus Powerlines Inc._ervice 50 to 4,999 kW - Main_General Service 50 to 4,999 kW Service Classification | F163: 94697354 | G163: 251431 | H163: 27381995 | I163: 133258 | J163: 315669025 | K163: 777009 | L163: 3377521 | M163: 6608 | P163: 346428541 | Q163: 916875 | R163: 441125895 | S163: 1168306
A164: 2023 | B164: Entegrus Powerlines Inc. | C164: General Service >= 50 kW | D164: General Service 50 to 4,999 kW - St. Thomas Energy | E164: Entegrus Powerlines Inc._4,999 kW - St. Thomas Energy_General Service 50 to 4,999 kW Service Classification | F164: 94697354 | G164: 251431 | H164: 9240225 | I164: 31032 | J164: 82933868 | K164: 229377 | L164: 3195289 | M164: 6228 | P164: 95369382 | Q164: 266637 | R164: 190066736 | S164: 518068
A165: 2023 | B165: Entegrus Powerlines Inc. | C165: Large User | D165: Large Use - Main | E165: Entegrus Powerlines Inc._ - Main_Large Use Service Classification | F165: 12490952 | G165: 41752 | H165: 0 | I165: 0 | J165: 68223485 | K165: 137372 | L165: 0 | M165: 0 | P165: 68223485 | Q165: 137372 | R165: 80714437 | S165: 179124
A166: 2023 | B166: Entegrus Powerlines Inc. | C166: Residential | D166: Residential - Main | E166: Entegrus Powerlines Inc._al - Main_Residential Service Classification | F166: 5929601 | G166: 0 | H166: 306666331 | I166: 0 | J166: 0 | K166: 0 | L166: 0 | M166: 0 | P166: 306666331 | Q166: 0 | R166: 312595932 | S166: 0
A167: 2023 | B167: Entegrus Powerlines Inc. | C167: Residential | D167: Residential - St. Thomas Energy | E167: Entegrus Powerlines Inc._as Energy_Residential Service Classification | F167: 5929601 | G167: 0 | H167: 129680705 | I167: 0 | J167: 0 | K167: 0 | L167: 0 | M167: 0 | P167: 129680705 | Q167: 0 | R167: 135610306 | S167: 0
A168: 2023 | B168: Entegrus Powerlines Inc. | C168: Sentinel Lighting Connections | D168: Sentinel Lighting - Main | E168: Entegrus Powerlines Inc._Lighting - Main_Sentinel Lighting Service Classification | F168: 36503 | G168: 105 | H168: 225740 | I168: 627 | J168: 63103 | K168: 175 | L168: 0 | M168: 0 | P168: 288843 | Q168: 802 | R168: 325346 | S168: 907
A169: 2023 | B169: Entegrus Powerlines Inc. | C169: Sentinel Lighting Connections | D169: Sentinel Lighting - St. Thomas Energy | E169: Entegrus Powerlines Inc._. Thomas Energy_Sentinel Lighting Service Classification | F169: 36503 | G169: 105 | H169: 51065 | I169: 0 | J169: 0 | K169: 0 | L169: 0 | M169: 0 | P169: 51065 | Q169: 0 | R169: 87568 | S169: 105
A170: 2023 | B170: Entegrus Powerlines Inc. | C170: Street Lighting Connections | D170: Street Lighting - Main | E170: Entegrus Powerlines Inc._ghting - Main_Street Lighting Service Classification | F170: 0 | G170: 0 | H170: 0 | I170: 0 | J170: 3566675 | K170: 10551 | L170: 0 | M170: 0 | P170: 3566675 | Q170: 10551 | R170: 3566675 | S170: 10551
A171: 2023 | B171: Entegrus Powerlines Inc. | C171: Street Lighting Connections | D171: Street Lighting - St. Thomas Energy | E171: Entegrus Powerlines Inc._Thomas Energy_Street Lighting Service Classification | F171: 0 | G171: 0 | H171: 0 | I171: 0 | J171: 1818382 | K171: 5070 | L171: 0 | M171: 0 | P171: 1818382 | Q171: 5070 | R171: 1818382 | S171: 5070
A172: 2023 | B172: Entegrus Powerlines Inc. | C172: Unmetered Scattered Load Connections | D172: Unmetered Scattered Load - Main | E172: Entegrus Powerlines Inc._ Scattered Load - Main_Unmetered Scattered Load Service Classification | F172: 717852 | G172: 0 | H172: 529825 | I172: 0 | J172: 0 | K172: 0 | L172: 0 | M172: 0 | P172: 529825 | Q172: 0 | R172: 1247677 | S172: 0
A173: 2023 | B173: Essex Powerlines Corporation | C173: Embedded Distributor(s) | D173: Embedded Distributor | E173: Essex Powerlines Corporation_Embedded Distributor Service Classification | F173: 0 | G173: 0 | H173: 0 | J173: 27551639.09 | K173: 82760.36 | P173: 27551639.09 | Q173: 82760.36 | R173: 27551639.09 | S173: 82760.36
A174: 2023 | B174: Essex Powerlines Corporation | C174: General Service < 50 kW | D174: General Service Less Than 50 kW | E174: Essex Powerlines Corporation_General Service Less Than 50 kW Service Classification | F174: 11920950.77 | G174: 41408.34 | H174: 55552694.76 | J174: 216696.82 | P174: 55769391.58 | Q174: 0 | R174: 67690342.35 | S174: 41408.34
A175: 2023 | B175: Essex Powerlines Corporation | C175: General Service >= 50 kW | D175: General Service 50 to 4,999 kW | E175: Essex Powerlines Corporation_General Service 50 to 4,999 kW Service Classification | F175: 43158433.92 | G175: 110421.05 | H175: 25479777.56 | I175: 77354.12 | J175: 105767129.8 | K175: 299246.66 | L175: 9394709.12 | M175: 17894.02 | P175: 140641616.5 | Q175: 394494.8 | R175: 183800050.4 | S175: 504915.85
A176: 2023 | B176: Essex Powerlines Corporation | C176: Residential | D176: Residential | E176: Essex Powerlines Corporation_Residential Service Classification | F176: 3590168.94 | G176: 0 | H176: 268998080.2 | J176: 87998.25 | P176: 269086078.5 | Q176: 0 | R176: 272676247.4 | S176: 0
A177: 2023 | B177: Essex Powerlines Corporation | C177: Sentinel Lighting Connections | D177: Sentinel Lighting | E177: Essex Powerlines Corporation_Sentinel Lighting Service Classification | F177: 24185.92 | G177: 0 | H177: 247482.05 | I177: 742.1 | P177: 247482.05 | Q177: 742.1 | R177: 271667.97 | S177: 742.1
A178: 2023 | B178: Essex Powerlines Corporation | C178: Street Lighting Connections | D178: Street Lighting | E178: Essex Powerlines Corporation_Street Lighting Service Classification | F178: 1527827.6 | G178: 4617.95 | H178: 0 | J178: 878164.71 | K178: 2668.49 | P178: 878164.71 | Q178: 2668.49 | R178: 2405992.31 | S178: 7286.44
A179: 2023 | B179: Essex Powerlines Corporation | C179: Unmetered Scattered Load Connections | D179: Unmetered Scattered Load | E179: Essex Powerlines Corporation_Unmetered Scattered Load Service Classification | F179: 758940.38 | G179: 0 | H179: 649764.36 | P179: 649764.36 | Q179: 0 | R179: 1408704.74 | S179: 0
A180: 2023 | B180: Festival Hydro Inc. | C180: General Service < 50 kW | D180: General Service Less Than 50 kW | E180: Festival Hydro Inc._General Service Less Than 50 kW Service Classification | F180: 14216724.41 | G180: 84.23 | H180: 46915642.37 | P180: 46915642.37 | Q180: 0 | R180: 61132366.78 | S180: 84.23
A181: 2023 | B181: Festival Hydro Inc. | C181: General Service >= 50 kW | D181: General Service 50 to 4,999 kW | E181: Festival Hydro Inc._General Service 50 to 4,999 kW Service Classification | F181: 64950616.07 | G181: 193650.21 | H181: 20886720.85 | I181: 51190.82 | J181: 277926128.9 | K181: 636208.37 | L181: 2663143.46 | M181: 5133.87 | P181: 301475993.2 | Q181: 692533.06 | R181: 366426609.2 | S181: 886183.27
A182: 2023 | B182: Festival Hydro Inc. | C182: Large User | D182: Large Use | E182: Festival Hydro Inc._Large Use Service Classification | F182: 0 | G182: 0 | H182: 0 | J182: 29487368.7 | K182: 44237.86 | L182: 600788.56 | M182: 5040.93 | P182: 30088157.26 | Q182: 49278.79 | R182: 30088157.26 | S182: 49278.79
A183: 2023 | B183: Festival Hydro Inc. | C183: Residential | D183: Residential | E183: Festival Hydro Inc._Residential Service Classification | F183: 3144496.09 | G183: 0 | H183: 150814751.6 | P183: 150814751.6 | Q183: 0 | R183: 153959247.7 | S183: 0
A184: 2023 | B184: Festival Hydro Inc. | C184: Sentinel Lighting Connections | D184: Sentinel Lighting | E184: Festival Hydro Inc._Sentinel Lighting Service Classification | F184: 749.98 | G184: 0 | H184: 98744.5 | I184: 276.37 | P184: 98744.5 | Q184: 276.37 | R184: 99494.48 | S184: 276.37
A185: 2023 | B185: Festival Hydro Inc. | C185: Street Lighting Connections | D185: Street Lighting | E185: Festival Hydro Inc._Street Lighting Service Classification | F185: 2226991.04 | G185: 6021.18 | H185: 319060.45 | I185: 223.53 | P185: 319060.45 | Q185: 223.53 | R185: 2546051.49 | S185: 6244.71
A186: 2023 | B186: Festival Hydro Inc. | C186: Unmetered Scattered Load Connections | D186: Unmetered Scattered Load | E186: Festival Hydro Inc._Unmetered Scattered Load Service Classification | F186: 63228.02 | G186: 0 | H186: 276643.92 | J186: 362516.1 | P186: 639160.02 | Q186: 0 | R186: 702388.04 | S186: 0
A187: 2023 | B187: Fort Frances Power Corporation | C187: General Service < 50 kW | D187: General Service Less Than 50 kW | E187: Fort Frances Power Corporation_General Service Less Than 50 kW Service Classification | F187: 192880.2 | G187: 0 | H187: 14273246 | P187: 14273246 | Q187: 0 | R187: 14466126.2 | S187: 0
A188: 2023 | B188: Fort Frances Power Corporation | C188: General Service >= 50 kW | D188: General Service 50 to 4,999 kW | E188: Fort Frances Power Corporation_General Service 50 to 4,999 kW Service Classification | F188: 0 | G188: 0 | H188: 4075840 | J188: 16252936 | K188: 48376 | P188: 20328776 | Q188: 48376 | R188: 20328776 | S188: 48376
A189: 2023 | B189: Fort Frances Power Corporation | C189: Residential | D189: Residential | E189: Fort Frances Power Corporation_Residential Service Classification | F189: 60833.62 | G189: 0 | H189: 37769265 | P189: 37769265 | Q189: 0 | R189: 37830098.62 | S189: 0
A190: 2023 | B190: Fort Frances Power Corporation | C190: Street Lighting Connections | D190: Street Lighting | E190: Fort Frances Power Corporation_Street Lighting Service Classification | F190: 0 | G190: 0 | H190: 0 | J190: 432172 | K190: 1159 | P190: 432172 | Q190: 1159 | R190: 432172 | S190: 1159
A191: 2023 | B191: Fort Frances Power Corporation | C191: Unmetered Scattered Load Connections | D191: Unmetered Scattered Load | E191: Fort Frances Power Corporation_Unmetered Scattered Load Service Classification | F191: 0 | G191: 0 | H191: 62628 | P191: 62628 | Q191: 0 | R191: 62628 | S191: 0
A192: 2023 | B192: GrandBridge Energy Inc. | C192: Embedded Distributor(s) | D192: Embedded Distributor - Brantford-Energy+ | E192: GrandBridge Energy Inc._ Brantford-Energy+_Embedded Distributor Service Classification | F192: 0 | G192: 0 | H192: 0 | I192: 0 | J192: 403148.85 | K192: 1321.85 | L192: 0 | M192: 0 | P192: 403148.85 | Q192: 1321.85 | R192: 403148.85 | S192: 1321.85
A193: 2023 | B193: GrandBridge Energy Inc. | C193: Embedded Distributor(s) | D193: Embedded Distributor - Hydro One #1-Energy+ | E193: GrandBridge Energy Inc._dro One #1-Energy+_Embedded Distributor Service Classification | F193: 0 | G193: 0 | H193: 0 | I193: 0 | J193: 10415104.14 | K193: 21598.88 | L193: 0 | M193: 0 | P193: 10415104.14 | Q193: 21598.88 | R193: 10415104.14 | S193: 21598.88
A194: 2023 | B194: GrandBridge Energy Inc. | C194: Embedded Distributor(s) | D194: Embedded Distributor - Hydro One #2-Energy+ | E194: GrandBridge Energy Inc._dro One #2-Energy+_Embedded Distributor Service Classification | F194: 0 | G194: 0 | H194: 0 | I194: 0 | J194: 64737314.65 | K194: 159678.22 | L194: 0 | M194: 0 | P194: 64737314.65 | Q194: 159678.22 | R194: 64737314.65 | S194: 159678.22
A195: 2023 | B195: GrandBridge Energy Inc. | C195: Embedded Distributor(s) | D195: Embedded Distributor - Hydro One CND-Energy+ | E195: GrandBridge Energy Inc._ro One CND-Energy+_Embedded Distributor Service Classification | F195: 0 | G195: 0 | H195: 0 | I195: 0 | J195: 13682586.54 | K195: 28945.79 | L195: 0 | M195: 0 | P195: 13682586.54 | Q195: 28945.79 | R195: 13682586.54 | S195: 28945.79
A196: 2023 | B196: GrandBridge Energy Inc. | C196: Embedded Distributor(s) | D196: Embedded Distributor - Waterloo North Hydro-Energy+ | E196: GrandBridge Energy Inc._orth Hydro-Energy+_Embedded Distributor Service Classification | F196: 0 | G196: 0 | H196: 0 | I196: 0 | J196: 0 | K196: 0 | L196: 73009014.42 | M196: 138260.13 | P196: 73009014.42 | Q196: 138260.13 | R196: 73009014.42 | S196: 138260.13
A197: 2023 | B197: GrandBridge Energy Inc. | C197: Embedded Distributor(s) | D197: Embedded Distributor-Brantford | E197: GrandBridge Energy Inc._ributor-Brantford_Embedded Distributo Service Classification | F197: 0 | G197: 0 | H197: 0 | I197: 0 | J197: 0 | K197: 0 | L197: 25511349.18 | M197: 61775.4 | P197: 25511349.18 | Q197: 61775.4 | R197: 25511349.18 | S197: 61775.4
A198: 2023 | B198: GrandBridge Energy Inc. | C198: General Service < 50 kW | D198: General Service Less Than 50 kW-Brantford | E198: GrandBridge Energy Inc._ce Less Than 50 kW-Brantford_General Service Less Than 50 k Service Classification | F198: 14735485.38 | G198: 0 | H198: 82143173.32 | I198: 0 | J198: 378323.8 | K198: 3938.4 | L198: 0 | M198: 0 | P198: 82521497.12 | Q198: 3938.4 | R198: 97256982.5 | S198: 3938.4
A199: 2023 | B199: GrandBridge Energy Inc. | C199: General Service < 50 kW | D199: General Service Less Than 50 kW-Energy+ | E199: GrandBridge Energy Inc._vice Less Than 50 kW-Energy+_General Service Less Than 50 k Service Classification | F199: 14735485.38 | G199: 0 | H199: 188125012.7 | I199: 0 | J199: 106414.44 | K199: 3999.29 | L199: 0 | M199: 0 | P199: 188231427.1 | Q199: 3999.29 | R199: 202966912.5 | S199: 3999.29
A200: 2023 | B200: GrandBridge Energy Inc. | C200: General Service >= 50 kW | D200: General Service 1000 to 4,999 kW-Energy+ | E200: GrandBridge Energy Inc._vice 1000 to 4,999 kW-Energy+_General Service 1000 to 4,999 k Service Classification | F200: 76020691.38 | G200: 163094.43 | H200: 0 | I200: 0 | J200: 140576813 | K200: 367046.34 | L200: 25941123.46 | M200: 44285.27 | P200: 166517936.4 | Q200: 411331.61 | R200: 242538627.8 | S200: 574426.04
A201: 2023 | B201: GrandBridge Energy Inc. | C201: General Service >= 50 kW | D201: General Service 50 to 4,999 kW-Brantford | E201: GrandBridge Energy Inc._ce 50 to 4,999 kW-Brantford_General Service 50 to 4,999 k Service Classification | F201: 76020691.38 | G201: 163094.43 | H201: 22566196.65 | I201: 54870.53 | J201: 465419919.7 | K201: 1202378.09 | L201: 5780814.41 | M201: 11416.89 | P201: 493766930.8 | Q201: 1268665.51 | R201: 569787622.1 | S201: 1431759.94
A202: 2023 | B202: GrandBridge Energy Inc. | C202: General Service >= 50 kW | D202: General Service 50 to 999 kW-Energy+ | E202: GrandBridge Energy Inc._vice 50 to 999 kW-Energy+_General Service 50 to 999 k Service Classification | F202: 76020691.38 | G202: 163094.43 | H202: 52062834.95 | I202: 184657.45 | J202: 325466693.9 | K202: 985097.34 | L202: 8651118.36 | M202: 17160.64 | P202: 386180647.2 | Q202: 1186915.43 | R202: 462201338.6 | S202: 1350009.86
A203: 2023 | B203: GrandBridge Energy Inc. | C203: Large User | D203: Large Use-Energy+ | E203: GrandBridge Energy Inc._nergy+_Large Us Service Classification | F203: 0 | G203: 0 | H203: 0 | I203: 0 | J203: 152323702.4 | K203: 342419.6 | L203: 0 | M203: 0 | P203: 152323702.4 | Q203: 342419.6 | R203: 152323702.4 | S203: 342419.6
... 294 more rows

Sheet hidden1 (hidden)
A1: =IF('DELETE 3. Rate Classes'!L17=1, 'DELETE 3. Rate Classes'!#REF!, "") ->  | B1: 1
A2: =IF('DELETE 3. Rate Classes'!L18=1, 'DELETE 3. Rate Classes'!#REF!, "") ->  | B2: 2
A3: =IF('DELETE 3. Rate Classes'!L19=1, 'DELETE 3. Rate Classes'!#REF!, "") ->  | B3: 3
A4: =IF('DELETE 3. Rate Classes'!L20=1, 'DELETE 3. Rate Classes'!#REF!, "") ->  | B4: 4
A5: =IF('DELETE 3. Rate Classes'!L21=1, 'DELETE 3. Rate Classes'!#REF!, "") ->  | B5: 5
A6: =IF('DELETE 3. Rate Classes'!L22=1, 'DELETE 3. Rate Classes'!#REF!, "") ->  | B6: 6
A7: =IF('DELETE 3. Rate Classes'!L23=1, 'DELETE 3. Rate Classes'!#REF!, "") ->  | B7: 7
A8: =IF('DELETE 3. Rate Classes'!L24=1, 'DELETE 3. Rate Classes'!#REF!, "") ->  | B8: 8
A9: =IF('DELETE 3. Rate Classes'!L25=1, 'DELETE 3. Rate Classes'!#REF!, "") ->  | B9: 9
A10: =IF('DELETE 3. Rate Classes'!L26=1, 'DELETE 3. Rate Classes'!#REF!, "") ->  | B10: 10
A11: =IF('DELETE 3. Rate Classes'!L27=1, 'DELETE 3. Rate Classes'!#REF!, "") ->  | B11: 11
A12: =IF('DELETE 3. Rate Classes'!L28=1, 'DELETE 3. Rate Classes'!#REF!, "") ->  | B12: 12
A13: =IF('DELETE 3. Rate Classes'!L29=1, 'DELETE 3. Rate Classes'!#REF!, "") ->  | B13: 13
A14: =IF('DELETE 3. Rate Classes'!L30=1, 'DELETE 3. Rate Classes'!#REF!, "") ->  | B14: 14
A15: =IF('DELETE 3. Rate Classes'!L31=1, 'DELETE 3. Rate Classes'!#REF!, "") ->  | B15: 15
A16: =IF('DELETE 3. Rate Classes'!L32=1, 'DELETE 3. Rate Classes'!#REF!, "") ->  | B16: 16
A17: =IF('DELETE 3. Rate Classes'!L33=1, 'DELETE 3. Rate Classes'!#REF!, "") ->  | B17: 17
A18: =IF('DELETE 3. Rate Classes'!L34=1, 'DELETE 3. Rate Classes'!#REF!, "") ->  | B18: 18
A19: =IF('DELETE 3. Rate Classes'!L35=1, 'DELETE 3. Rate Classes'!#REF!, "") ->  | B19: 19
A20: =IF('DELETE 3. Rate Classes'!L36=1, 'DELETE 3. Rate Classes'!#REF!, "") ->  | B20: 20
A21: =IF('DELETE 3. Rate Classes'!L37=1, 'DELETE 3. Rate Classes'!#REF!, "") ->  | B21: 21
A22: =IF('DELETE 3. Rate Classes'!L38=1, 'DELETE 3. Rate Classes'!#REF!, "") ->  | B22: 22
